Council Name,Date,TransNo,Amount � (Excl VAT),Supplier name,Supplier Category,Expense Area,Expense Type,Expense Code,Unclaimed VAT
London Borough of Sutton,10/03/2022,20020635,"5,000.00",31ten Consulting Ltd,FINANCIAL / INSURANCE INSTNS,HRA,Professional Fees,A44066,0
London Borough of Sutton,01/02/2022,50124472,"14,959.84",4D Care Ltd,SOCIAL SERVICES RESIDENTIAL,Peoples Services,Residential Care-Children,A56115,0
London Borough of Sutton,04/03/2022,50123388,"11,762.70",A Step Beyond Ltd,SOCIAL SERVICES - OTHER,Peoples Services,Supported Living,A56088,0
London Borough of Sutton,17/03/2022,20021050,455.00,A T Sound Hire,OFFICE SERVICES,Resources,Equipment And Materials Purchase,A40000,0
London Borough of Sutton,31/12/2021,20020275,642.30,A Wilderness Way Ltd,CHILDREN'S SERVICES - FOSTERING & ADOPTION SERVICES,Peoples Services,Non-Staff Travel Subsistence & Training,A46006,0
London Borough of Sutton,25/02/2022,20020277,905.42,A Wilderness Way Ltd,CHILDREN'S SERVICES - FOSTERING & ADOPTION SERVICES,Peoples Services,Non-Staff Travel Subsistence & Training,A46006,0
London Borough of Sutton,31/12/2021,20020325,513.00,A Wilderness Way Ltd,CHILDREN'S SERVICES - FOSTERING & ADOPTION SERVICES,Peoples Services,Non-Staff Travel Subsistence & Training,A46006,0
London Borough of Sutton,31/01/2022,20020328,"1,593.00",A Wilderness Way Ltd,CHILDREN'S SERVICES - FOSTERING & ADOPTION SERVICES,Peoples Services,Non-Staff Travel Subsistence & Training,A46006,0
London Borough of Sutton,01/02/2022,50124367,"14,985.70",A Wilderness Way Ltd,CHILDREN'S SERVICES - FOSTERING & ADOPTION SERVICES,Peoples Services,Residential Care-Children,A56115,0
London Borough of Sutton,01/02/2022,50124437,"27,160.00",A Wilderness Way Ltd,CHILDREN'S SERVICES - FOSTERING & ADOPTION SERVICES,Peoples Services,Residential Care-Children,A56115,0
London Borough of Sutton,01/02/2022,50124473,"27,160.00",A Wilderness Way Ltd,CHILDREN'S SERVICES - FOSTERING & ADOPTION SERVICES,Peoples Services,Residential Care-Children,A56115,0
London Borough of Sutton,01/02/2022,50124474,"27,160.00",A Wilderness Way Ltd,CHILDREN'S SERVICES - FOSTERING & ADOPTION SERVICES,Peoples Services,Residential Care-Children,A56115,0
London Borough of Sutton,01/03/2022,50130453,"30,070.00",A Wilderness Way Ltd,CHILDREN'S SERVICES - FOSTERING & ADOPTION SERVICES,Peoples Services,Residential Care-Children,A56115,0
London Borough of Sutton,01/03/2022,50130462,"30,070.00",A Wilderness Way Ltd,CHILDREN'S SERVICES - FOSTERING & ADOPTION SERVICES,Peoples Services,Residential Care-Children,A56115,0
London Borough of Sutton,09/03/2022,50122759,"3,000.00",A&M Senior Care Services Ltd,SOCIAL SERVICES RESIDENTIAL,Peoples Services,Contract Cleaning,A27010,0
London Borough of Sutton,18/03/2022,50126810,-884.40,Abbey Care Centre,SOCIAL SERVICES RESIDENTIAL,Peoples Services,Nursing Care - 3rd party top up payment,A56023,0
London Borough of Sutton,18/03/2022,50126810,"4,403.14",Abbey Care Centre,SOCIAL SERVICES RESIDENTIAL,Peoples Services,Nursing Care Short Term,A56026,0
London Borough of Sutton,18/03/2022,50126810,"-1,759.37",Abbey Care Centre,SOCIAL SERVICES RESIDENTIAL,Peoples Services,Nursing Care - 3rd party top up payment,A56023,0
London Borough of Sutton,18/03/2022,50126922,"-2,706.80",Abbey Care Centre,SOCIAL SERVICES RESIDENTIAL,Peoples Services,Nursing Care - 3rd party top up payment,A56023,0
London Borough of Sutton,18/03/2022,50126922,"13,476.29",Abbey Care Centre,SOCIAL SERVICES RESIDENTIAL,Peoples Services,Nursing Care Short Term,A56026,0
London Borough of Sutton,18/03/2022,50127029,"3,736.00",Abbey Care Centre,SOCIAL SERVICES RESIDENTIAL,Peoples Services,Nursing Care - Ext Provider,A56025,0
London Borough of Sutton,18/03/2022,50127029,-750.40,Abbey Care Centre,SOCIAL SERVICES RESIDENTIAL,Peoples Services,Nursing Care - 3rd party top up payment,A56023,0
London Borough of Sutton,18/03/2022,50127144,"-2,706.80",Abbey Care Centre,SOCIAL SERVICES RESIDENTIAL,Peoples Services,Nursing Care - 3rd party top up payment,A56023,0
London Borough of Sutton,18/03/2022,50127144,"13,476.29",Abbey Care Centre,SOCIAL SERVICES RESIDENTIAL,Peoples Services,Nursing Care Short Term,A56026,0
London Borough of Sutton,08/03/2022,50122324,963.30,ABC Pre-School Beddington LLP,GRANTS & EX GRATIA PAYMENTS,Peoples Services,Place Funding,A56110,0
London Borough of Sutton,08/03/2022,50122391,"2,836.94",ABC Pre-School Beddington LLP,GRANTS & EX GRATIA PAYMENTS,Peoples Services,Place Funding,A56110,0
London Borough of Sutton,28/02/2022,20019784,"1,715.00",Ability Start Limited,SUNDRY SUPPLIER - EDUCATION,Health and Wellbeing,Other Supplies & Services,A44291,0
London Borough of Sutton,27/09/2021,20019047,"5,589.89",Absolute Care Services Ltd,SOCIAL SERVICES DAY CARE,Peoples Services,Homecare Core Services,A56020,0
London Borough of Sutton,21/02/2022,20019311,"5,589.89",Absolute Care Services Ltd,SOCIAL SERVICES DAY CARE,Peoples Services,Homecare Core Services,A56020,0
London Borough of Sutton,21/02/2022,20019312,"6,357.91",Absolute Care Services Ltd,SOCIAL SERVICES DAY CARE,Peoples Services,Homecare Core Services,A56020,0
London Borough of Sutton,28/02/2022,20019705,"6,357.91",Absolute Care Services Ltd,SOCIAL SERVICES DAY CARE,Peoples Services,Homecare Core Services,A56020,0
London Borough of Sutton,28/02/2022,20019706,"5,348.23",Absolute Care Services Ltd,SOCIAL SERVICES DAY CARE,Peoples Services,Homecare Core Services,A56020,0
London Borough of Sutton,28/02/2022,20019708,"5,589.89",Absolute Care Services Ltd,SOCIAL SERVICES DAY CARE,Peoples Services,Homecare Core Services,A56020,0
London Borough of Sutton,01/03/2022,20019857,"1,467.76",Absolute Care Services Ltd,SOCIAL SERVICES DAY CARE,Peoples Services,Building Rents,A22005,0
London Borough of Sutton,07/03/2022,20020259,"6,357.91",Absolute Care Services Ltd,SOCIAL SERVICES DAY CARE,Peoples Services,Homecare Core Services,A56020,0
London Borough of Sutton,07/03/2022,20020260,"5,589.89",Absolute Care Services Ltd,SOCIAL SERVICES DAY CARE,Peoples Services,Homecare Core Services,A56020,0
London Borough of Sutton,07/03/2022,20020261,"5,348.23",Absolute Care Services Ltd,SOCIAL SERVICES DAY CARE,Peoples Services,Homecare Core Services,A56020,0
London Borough of Sutton,14/03/2022,20020767,"5,589.89",Absolute Care Services Ltd,SOCIAL SERVICES DAY CARE,Peoples Services,Homecare Core Services,A56020,0
London Borough of Sutton,14/03/2022,20020768,"5,348.23",Absolute Care Services Ltd,SOCIAL SERVICES DAY CARE,Peoples Services,Homecare Core Services,A56020,0
London Borough of Sutton,14/03/2022,20020770,"6,357.91",Absolute Care Services Ltd,SOCIAL SERVICES DAY CARE,Peoples Services,Homecare Core Services,A56020,0
London Borough of Sutton,16/12/2019,20021173,"5,766.81",Absolute Care Services Ltd,SOCIAL SERVICES DAY CARE,Peoples Services,Homecare Core Services,A56020,0
London Borough of Sutton,16/12/2019,20021174,"4,851.00",Absolute Care Services Ltd,SOCIAL SERVICES DAY CARE,Peoples Services,Homecare Core Services,A56020,0
London Borough of Sutton,16/12/2019,20021175,"5,070.19",Absolute Care Services Ltd,SOCIAL SERVICES DAY CARE,Peoples Services,Homecare Core Services,A56020,0
London Borough of Sutton,21/03/2022,20021236,"5,589.89",Absolute Care Services Ltd,SOCIAL SERVICES DAY CARE,Peoples Services,Homecare Core Services,A56020,0
London Borough of Sutton,21/03/2022,20021237,"5,348.23",Absolute Care Services Ltd,SOCIAL SERVICES DAY CARE,Peoples Services,Homecare Core Services,A56020,0
London Borough of Sutton,21/03/2022,20021238,"6,357.91",Absolute Care Services Ltd,SOCIAL SERVICES DAY CARE,Peoples Services,Homecare Core Services,A56020,0
London Borough of Sutton,20/02/2022,50120571,734.72,Absolute Care Services Ltd,SOCIAL SERVICES DAY CARE,Peoples Services,Home Care Services,A56019,0
London Borough of Sutton,20/02/2022,50120571,26.24,Absolute Care Services Ltd,SOCIAL SERVICES DAY CARE,Peoples Services,Home Care Services,A56019,0
London Borough of Sutton,20/02/2022,50120583,551.18,Absolute Care Services Ltd,SOCIAL SERVICES DAY CARE,Peoples Services,Home Care Services,A56019,0
London Borough of Sutton,20/02/2022,50120592,764.99,Absolute Care Services Ltd,SOCIAL SERVICES DAY CARE,Peoples Services,Home Care Services,A56019,0
London Borough of Sutton,20/02/2022,50120592,100.87,Absolute Care Services Ltd,SOCIAL SERVICES DAY CARE,Peoples Services,Home Care Services,A56019,0
London Borough of Sutton,20/02/2022,50120650,62.00,Absolute Care Services Ltd,SOCIAL SERVICES DAY CARE,Peoples Services,Home Care Services,A56019,0
London Borough of Sutton,20/02/2022,50120650,542.64,Absolute Care Services Ltd,SOCIAL SERVICES DAY CARE,Peoples Services,Home Care Services,A56019,0
London Borough of Sutton,27/02/2022,50124701,62.00,Absolute Care Services Ltd,SOCIAL SERVICES DAY CARE,Peoples Services,Home Care Services,A56019,0
London Borough of Sutton,27/02/2022,50124701,542.64,Absolute Care Services Ltd,SOCIAL SERVICES DAY CARE,Peoples Services,Home Care Services,A56019,0
London Borough of Sutton,06/03/2022,50124702,62.00,Absolute Care Services Ltd,SOCIAL SERVICES DAY CARE,Peoples Services,Home Care Services,A56019,0
London Borough of Sutton,06/03/2022,50124702,542.64,Absolute Care Services Ltd,SOCIAL SERVICES DAY CARE,Peoples Services,Home Care Services,A56019,0
London Borough of Sutton,06/03/2022,50124712,46.50,Absolute Care Services Ltd,SOCIAL SERVICES DAY CARE,Peoples Services,Home Care Services,A56019,0
London Borough of Sutton,06/03/2022,50124712,488.33,Absolute Care Services Ltd,SOCIAL SERVICES DAY CARE,Peoples Services,Home Care Services,A56019,0
London Borough of Sutton,27/02/2022,50124792,768.55,Absolute Care Services Ltd,SOCIAL SERVICES DAY CARE,Peoples Services,Home Care Services,A56019,0
London Borough of Sutton,27/02/2022,50124792,27.45,Absolute Care Services Ltd,SOCIAL SERVICES DAY CARE,Peoples Services,Home Care Services,A56019,0
London Borough of Sutton,27/02/2022,50124817,551.18,Absolute Care Services Ltd,SOCIAL SERVICES DAY CARE,Peoples Services,Home Care Services,A56019,0
London Borough of Sutton,27/02/2022,50124825,819.08,Absolute Care Services Ltd,SOCIAL SERVICES DAY CARE,Peoples Services,Home Care Services,A56019,0
London Borough of Sutton,27/02/2022,50124825,108.00,Absolute Care Services Ltd,SOCIAL SERVICES DAY CARE,Peoples Services,Home Care Services,A56019,0
London Borough of Sutton,27/02/2022,50124972,504.73,Absolute Care Services Ltd,SOCIAL SERVICES DAY CARE,Peoples Services,Home Care Services,A56019,0
London Borough of Sutton,27/02/2022,50124972,72.17,Absolute Care Services Ltd,SOCIAL SERVICES DAY CARE,Peoples Services,Home Care Services,A56019,0
London Borough of Sutton,27/02/2022,50124972,105.24,Absolute Care Services Ltd,SOCIAL SERVICES DAY CARE,Peoples Services,Home Care Services,A56019,0
London Borough of Sutton,06/03/2022,50124973,504.73,Absolute Care Services Ltd,SOCIAL SERVICES DAY CARE,Peoples Services,Home Care Services,A56019,0
London Borough of Sutton,06/03/2022,50124973,72.17,Absolute Care Services Ltd,SOCIAL SERVICES DAY CARE,Peoples Services,Home Care Services,A56019,0
London Borough of Sutton,06/03/2022,50124973,105.24,Absolute Care Services Ltd,SOCIAL SERVICES DAY CARE,Peoples Services,Home Care Services,A56019,0
London Borough of Sutton,27/02/2022,50124974,391.58,Absolute Care Services Ltd,SOCIAL SERVICES DAY CARE,Peoples Services,Home Care Services,A56019,0
London Borough of Sutton,27/02/2022,50124974,12.44,Absolute Care Services Ltd,SOCIAL SERVICES DAY CARE,Peoples Services,Home Care Services,A56019,0
London Borough of Sutton,27/02/2022,50124974,99.79,Absolute Care Services Ltd,SOCIAL SERVICES DAY CARE,Peoples Services,Home Care Services,A56019,0
London Borough of Sutton,06/03/2022,50124975,391.59,Absolute Care Services Ltd,SOCIAL SERVICES DAY CARE,Peoples Services,Home Care Services,A56019,0
London Borough of Sutton,06/03/2022,50124975,12.43,Absolute Care Services Ltd,SOCIAL SERVICES DAY CARE,Peoples Services,Home Care Services,A56019,0
London Borough of Sutton,06/03/2022,50124975,99.80,Absolute Care Services Ltd,SOCIAL SERVICES DAY CARE,Peoples Services,Home Care Services,A56019,0
London Borough of Sutton,13/03/2022,50127267,795.90,Absolute Care Services Ltd,SOCIAL SERVICES DAY CARE,Peoples Services,Home Care Services,A56019,0
London Borough of Sutton,13/03/2022,50127267,104.94,Absolute Care Services Ltd,SOCIAL SERVICES DAY CARE,Peoples Services,Home Care Services,A56019,0
London Borough of Sutton,13/03/2022,50127283,62.00,Absolute Care Services Ltd,SOCIAL SERVICES DAY CARE,Peoples Services,Home Care Services,A56019,0
London Borough of Sutton,13/03/2022,50127283,542.64,Absolute Care Services Ltd,SOCIAL SERVICES DAY CARE,Peoples Services,Home Care Services,A56019,0
London Borough of Sutton,13/03/2022,50127293,734.72,Absolute Care Services Ltd,SOCIAL SERVICES DAY CARE,Peoples Services,Home Care Services,A56019,0
London Borough of Sutton,13/03/2022,50127293,26.24,Absolute Care Services Ltd,SOCIAL SERVICES DAY CARE,Peoples Services,Home Care Services,A56019,0
London Borough of Sutton,13/03/2022,50127321,46.50,Absolute Care Services Ltd,SOCIAL SERVICES DAY CARE,Peoples Services,Home Care Services,A56019,0
London Borough of Sutton,13/03/2022,50127321,488.32,Absolute Care Services Ltd,SOCIAL SERVICES DAY CARE,Peoples Services,Home Care Services,A56019,0
London Borough of Sutton,13/03/2022,50127324,15.50,Absolute Care Services Ltd,SOCIAL SERVICES DAY CARE,Peoples Services,Home Care Services,A56019,0
London Borough of Sutton,13/03/2022,50127324,488.32,Absolute Care Services Ltd,SOCIAL SERVICES DAY CARE,Peoples Services,Home Care Services,A56019,0
London Borough of Sutton,13/03/2022,50127330,506.81,Absolute Care Services Ltd,SOCIAL SERVICES DAY CARE,Peoples Services,Home Care Services,A56019,0
London Borough of Sutton,13/03/2022,50127330,9.39,Absolute Care Services Ltd,SOCIAL SERVICES DAY CARE,Peoples Services,Home Care Services,A56019,0
London Borough of Sutton,13/03/2022,50127445,391.59,Absolute Care Services Ltd,SOCIAL SERVICES DAY CARE,Peoples Services,Home Care Services,A56019,0
London Borough of Sutton,13/03/2022,50127445,12.43,Absolute Care Services Ltd,SOCIAL SERVICES DAY CARE,Peoples Services,Home Care Services,A56019,0
London Borough of Sutton,13/03/2022,50127445,99.80,Absolute Care Services Ltd,SOCIAL SERVICES DAY CARE,Peoples Services,Home Care Services,A56019,0
London Borough of Sutton,13/03/2022,50127447,509.00,Absolute Care Services Ltd,SOCIAL SERVICES DAY CARE,Peoples Services,Home Care Services,A56019,0
London Borough of Sutton,13/03/2022,50127447,64.64,Absolute Care Services Ltd,SOCIAL SERVICES DAY CARE,Peoples Services,Home Care Services,A56019,0
London Borough of Sutton,13/03/2022,50127449,504.73,Absolute Care Services Ltd,SOCIAL SERVICES DAY CARE,Peoples Services,Home Care Services,A56019,0
London Borough of Sutton,13/03/2022,50127449,72.17,Absolute Care Services Ltd,SOCIAL SERVICES DAY CARE,Peoples Services,Home Care Services,A56019,0
London Borough of Sutton,13/03/2022,50127449,105.24,Absolute Care Services Ltd,SOCIAL SERVICES DAY CARE,Peoples Services,Home Care Services,A56019,0
London Borough of Sutton,28/03/2022,50130998,"1,410.50",Absolute Care Services Ltd,SOCIAL SERVICES DAY CARE,Peoples Services,Home Care Services,A56019,0
London Borough of Sutton,28/03/2022,50130998,387.50,Absolute Care Services Ltd,SOCIAL SERVICES DAY CARE,Peoples Services,Home Care Services,A56019,0
London Borough of Sutton,28/03/2022,50130998,775.00,Absolute Care Services Ltd,SOCIAL SERVICES DAY CARE,Peoples Services,Home Care Services,A56019,0
London Borough of Sutton,28/03/2022,50130999,"4,007.24",Absolute Care Services Ltd,SOCIAL SERVICES DAY CARE,Peoples Services,Home Care Services,A56019,0
London Borough of Sutton,28/03/2022,50130999,-81.41,Absolute Care Services Ltd,SOCIAL SERVICES DAY CARE,Peoples Services,Home Care Services,A56019,0
London Borough of Sutton,17/03/2022,50131114,"1,600.00",Absolute Care Services Ltd,SOCIAL SERVICES DAY CARE,Peoples Services,Home Care Services,A56019,0
London Borough of Sutton,21/03/2022,20021248,"1,800.00",Accommadata Ltd,SUNDRY SUPPLIER - HOUSING,Environment Housing and Neighbourhoods,PSL Payments To Landlords,A22031,0
London Borough of Sutton,09/03/2022,50123564,"3,080.00",Accomplish Group Ltd,SOCIAL SERVICES RESIDENTIAL,Peoples Services,Supported Living,A56088,0
London Borough of Sutton,09/03/2022,50123576,"4,671.40",Accomplish Group Ltd,SOCIAL SERVICES RESIDENTIAL,Peoples Services,Supported Living,A56088,0
London Borough of Sutton,09/03/2022,50123577,"4,887.00",Accomplish Group Ltd,SOCIAL SERVICES RESIDENTIAL,Peoples Services,Supported Living,A56088,0
London Borough of Sutton,18/03/2022,50126708,"6,160.00",Achieve Together Limited,SOCIAL SERVICES RESIDENTIAL,Peoples Services,Residential Care - Ext Provider,A56114,0
London Borough of Sutton,18/03/2022,50126708,-425.60,Achieve Together Limited,SOCIAL SERVICES RESIDENTIAL,Peoples Services,Residential Care - Client Cont ( Net Paymt ),A56113,0
London Borough of Sutton,18/03/2022,50126745,"6,597.00",Achieve Together Limited,SOCIAL SERVICES RESIDENTIAL,Peoples Services,Residential Care - Ext Provider,A56114,0
London Borough of Sutton,18/03/2022,50126745,-441.60,Achieve Together Limited,SOCIAL SERVICES RESIDENTIAL,Peoples Services,Residential Care - Client Cont ( Net Paymt ),A56113,0
London Borough of Sutton,18/03/2022,50127075,"4,512.76",Achieve Together Limited,SOCIAL SERVICES RESIDENTIAL,Peoples Services,Residential Care - Ext Provider,A56114,0
London Borough of Sutton,18/03/2022,50127075,-492.80,Achieve Together Limited,SOCIAL SERVICES RESIDENTIAL,Peoples Services,Residential Care - Client Cont ( Net Paymt ),A56113,0
London Borough of Sutton,18/03/2022,50127094,"5,600.00",Achieve Together Limited,SOCIAL SERVICES RESIDENTIAL,Peoples Services,Residential Care - Ext Provider,A56114,0
London Borough of Sutton,18/03/2022,50127115,"4,915.20",Achieve Together Limited,SOCIAL SERVICES RESIDENTIAL,Peoples Services,Residential Care - Ext Provider,A56114,0
London Borough of Sutton,18/03/2022,50127155,"4,216.92",Achieve Together Limited,SOCIAL SERVICES RESIDENTIAL,Peoples Services,Residential Care - Ext Provider,A56114,0
London Borough of Sutton,18/03/2022,50127155,-488.80,Achieve Together Limited,SOCIAL SERVICES RESIDENTIAL,Peoples Services,Residential Care - Client Cont ( Net Paymt ),A56113,0
London Borough of Sutton,18/03/2022,50126808,"10,647.52",ACHIEVE TOGETHER LTD,SOCIAL SERVICES RESIDENTIAL,Peoples Services,Residential Care - Ext Provider,A56114,0
London Borough of Sutton,18/03/2022,50126904,"7,036.00",ACHIEVE TOGETHER LTD,SOCIAL SERVICES RESIDENTIAL,Peoples Services,Residential Care - Ext Provider,A56114,0
London Borough of Sutton,18/03/2022,50126904,-611.00,ACHIEVE TOGETHER LTD,SOCIAL SERVICES RESIDENTIAL,Peoples Services,Residential Care - Client Cont ( Net Paymt ),A56113,0
London Borough of Sutton,18/03/2022,50127017,"5,416.92",ACHIEVE TOGETHER LTD,SOCIAL SERVICES RESIDENTIAL,Peoples Services,Residential Care - Ext Provider,A56114,0
London Borough of Sutton,18/03/2022,50127017,-425.60,ACHIEVE TOGETHER LTD,SOCIAL SERVICES RESIDENTIAL,Peoples Services,Residential Care - Client Cont ( Net Paymt ),A56113,0
London Borough of Sutton,21/03/2022,50127615,"3,555.26",ACHIEVE TOGETHER LTD,SOCIAL SERVICES RESIDENTIAL,Peoples Services,Supported Living,A56088,0
London Borough of Sutton,21/03/2022,50127621,"3,162.00",ACHIEVE TOGETHER LTD,SOCIAL SERVICES RESIDENTIAL,Peoples Services,Supported Living,A56088,0
London Borough of Sutton,21/03/2022,50127627,"3,662.42",ACHIEVE TOGETHER LTD,SOCIAL SERVICES RESIDENTIAL,Peoples Services,Supported Living,A56088,0
London Borough of Sutton,21/03/2022,50127656,"4,592.42",ACHIEVE TOGETHER LTD,SOCIAL SERVICES RESIDENTIAL,Peoples Services,Supported Living,A56088,0
London Borough of Sutton,25/02/2022,50120810,575.00,Achieving For Children Limited,SOCIAL SERVICES - OTHER,Peoples Services,Top-up Funding,A51016,0
London Borough of Sutton,25/02/2022,50120811,575.00,Achieving For Children Limited,SOCIAL SERVICES - OTHER,Peoples Services,Top-up Funding,A51016,0
London Borough of Sutton,25/02/2022,50120813,"1,450.00",Achieving For Children Limited,SOCIAL SERVICES - OTHER,Peoples Services,Top-up Funding,A51016,0
London Borough of Sutton,25/02/2022,50120814,"1,896.15",Achieving For Children Limited,SOCIAL SERVICES - OTHER,Peoples Services,Top-up Funding,A51016,0
London Borough of Sutton,22/03/2022,50129869,"8,086.00",Achieving For Children Limited,SOCIAL SERVICES - OTHER,Peoples Services,Top-up Funding,A51016,0
London Borough of Sutton,23/03/2022,50131085,"30,167.00",Achieving For Children Limited,SOCIAL SERVICES - OTHER,Peoples Services,Top-up Funding,A51016,0
London Borough of Sutton,23/03/2022,50131085,"61,529.00",Achieving For Children Limited,SOCIAL SERVICES - OTHER,Peoples Services,Top-up Funding,A51016,0
London Borough of Sutton,25/03/2022,50131099,"1,950.00",Achieving For Children Limited,SOCIAL SERVICES - OTHER,Peoples Services,Top-up Funding,A51016,0
London Borough of Sutton,18/03/2022,50126762,"2,903.20",Acorn Lodge,SOCIAL SERVICES RESIDENTIAL,Peoples Services,Residential Care - Ext Provider,A56114,0
London Borough of Sutton,18/03/2022,50127049,"3,115.36",Acorn Residential Home,SOCIAL SERVICES RESIDENTIAL,Peoples Services,Residential Care - Ext Provider,A56114,0
London Borough of Sutton,02/03/2022,20020130,"123,358.25",ADAM HTT LTD,TAXI AND COACH HIRE,Peoples Services,Contract Cleaning,A27010,0
London Borough of Sutton,07/03/2022,20020344,-680.00,ADAM HTT LTD,TAXI AND COACH HIRE,Peoples Services,Contract Cleaning,A27010,0
London Borough of Sutton,09/03/2022,20020703,"243,158.68",ADAM HTT LTD,TAXI AND COACH HIRE,Peoples Services,Contract Cleaning,A27010,0
London Borough of Sutton,16/03/2022,20021135,"181,824.42",ADAM HTT LTD,TAXI AND COACH HIRE,Peoples Services,Contract Cleaning,A27010,0
London Borough of Sutton,23/03/2022,20021531,"198,389.69",ADAM HTT LTD,TAXI AND COACH HIRE,Peoples Services,Contract Cleaning,A27010,0
London Borough of Sutton,28/02/2022,20020096,728.74,Advanced Health & Care,CONFERENCES,Peoples Services,Telephones,A45020,0
London Borough of Sutton,01/02/2022,20019929,"25,000.00",Advice Support Knowledge Information,CHARITIES & VOLUNTARY ORGNS,Resources,"Grants, Contributions & Donations",A47005,0
London Borough of Sutton,28/02/2022,20020012,"12,916.67",Advocacy For All,LEGAL & PROFESSIONAL SERVICES,Peoples Services,Provider Contract Payments,A44290,0
London Borough of Sutton,28/02/2022,20020013,"2,916.66",Advocacy For All,LEGAL & PROFESSIONAL SERVICES,Peoples Services,Provider Contract Payments,A44290,0
London Borough of Sutton,21/02/2022,50124442,"3,356.00",Affinity Fostering Services Ltd,CHILDREN'S SERVICES - FOSTERING & ADOPTION SERVICES,Peoples Services,Foster Parents Support,A44110,0
London Borough of Sutton,21/02/2022,50124443,"3,186.20",Affinity Fostering Services Ltd,CHILDREN'S SERVICES - FOSTERING & ADOPTION SERVICES,Peoples Services,Foster Parents Support,A44110,0
London Borough of Sutton,21/02/2022,50124450,"2,996.20",Affinity Fostering Services Ltd,CHILDREN'S SERVICES - FOSTERING & ADOPTION SERVICES,Peoples Services,Foster Parents Support,A44110,0
London Borough of Sutton,21/02/2022,50124451,"3,156.00",Affinity Fostering Services Ltd,CHILDREN'S SERVICES - FOSTERING & ADOPTION SERVICES,Peoples Services,Foster Parents Support,A44110,0
London Borough of Sutton,21/02/2022,50124494,"3,156.00",Affinity Fostering Services Ltd,CHILDREN'S SERVICES - FOSTERING & ADOPTION SERVICES,Peoples Services,Foster Parents Support,A44110,0
London Borough of Sutton,03/03/2022,20020112,"10,612.50",Age UK Sutton,SOCIAL SERVICES - OTHER,Resources,Provider Contract Payments,A44290,0
London Borough of Sutton,22/03/2022,20021362,"8,247.31",Age UK Sutton,SOCIAL SERVICES - OTHER,Peoples Services,Provider Contract Payments,A44290,0
London Borough of Sutton,18/03/2022,50127054,"7,511.00",Leighton House Ltd,SOCIAL SERVICES RESIDENTIAL,Peoples Services,Residential Care - Ext Provider,A56114,0
London Borough of Sutton,30/03/2022,20021877,"2,634.00",Air Cool Environmental Ltd,SUNDRY SUPPLIER - ASC,Health and Wellbeing,Other Premises Costs,A29040,0
London Borough of Sutton,18/03/2022,50126836,"8,400.16",Aitch Care Homes,SOCIAL SERVICES RESIDENTIAL,Peoples Services,Residential Care - Ext Provider,A56114,0
London Borough of Sutton,14/03/2022,20020838,423.80,Alastair Fyfe Photography Ltd,SUNDRY SUPPLIER - FINANCE,Resources,Miscellaneous Expenses,A49000,0
London Borough of Sutton,08/03/2022,50121514,"154,210.19",All Saints Benhilton C Of E,GRANTS & EX GRATIA PAYMENTS,Peoples Services,Payments to Schools,A51013,0
London Borough of Sutton,08/03/2022,50121625,"17,821.25",All Saints Benhilton C Of E,GRANTS & EX GRATIA PAYMENTS,Peoples Services,Payments to Schools,A51013,0
London Borough of Sutton,08/03/2022,50121626,"1,758.75",All Saints Benhilton C Of E,GRANTS & EX GRATIA PAYMENTS,Peoples Services,Payments to Schools,A51013,0
London Borough of Sutton,08/03/2022,50121686,"14,861.88",All Saints Benhilton C Of E,GRANTS & EX GRATIA PAYMENTS,Peoples Services,Payments to Schools,A51013,0
London Borough of Sutton,08/03/2022,50121722,"1,590.00",All Saints Benhilton C Of E,GRANTS & EX GRATIA PAYMENTS,Resources,"Grants, Contributions & Donations",A47005,0
London Borough of Sutton,08/03/2022,50121774,735.00,All Saints Benhilton C Of E,GRANTS & EX GRATIA PAYMENTS,Resources,"Grants, Contributions & Donations",A47005,0
London Borough of Sutton,08/03/2022,50121839,661.50,All Saints Benhilton C Of E,GRANTS & EX GRATIA PAYMENTS,Peoples Services,Payments to Schools,A51013,0
London Borough of Sutton,22/03/2022,50127602,"4,524.00",All Saints Benhilton C Of E,GRANTS & EX GRATIA PAYMENTS,Resources,"Grants, Contributions & Donations",A47005,0
London Borough of Sutton,22/03/2022,50127603,"1,590.00",All Saints Benhilton C Of E,GRANTS & EX GRATIA PAYMENTS,Resources,"Grants, Contributions & Donations",A47005,0
London Borough of Sutton,08/03/2022,50121687,"17,713.08",All Saints Carshalton Primary School,GRANTS & EX GRATIA PAYMENTS,Peoples Services,Payments to Schools,A51013,0
London Borough of Sutton,08/03/2022,50121723,720.00,All Saints Carshalton Primary School,GRANTS & EX GRATIA PAYMENTS,Resources,"Grants, Contributions & Donations",A47005,0
London Borough of Sutton,18/03/2022,50129865,"13,000.00",ALLEN EDWARDS PRIMARY SCHOOL,CHILDREN'S SERVICES - SEN SERVICES,Peoples Services,Top-up Funding,A51016,0
London Borough of Sutton,18/03/2022,50126741,"4,454.16",Allied Care (Mhs) Ltd,SOCIAL SERVICES - OTHER,Peoples Services,Residential Care - Ext Provider,A56114,0
London Borough of Sutton,28/02/2022,20019829,619.96,Allied Publicity Services (Manchester) Ltd,REPROGRAPHICS & PHOTOGRAPHY,Health and Wellbeing,Mobility Scheme for the Disabled,A61015,0
London Borough of Sutton,01/03/2022,20020109,"1,453.81",Allstar Business Solutions,FUEL AND VEHICLE SUPPLIES,Environment Housing and Neighbourhoods,Vehicles -  Fuel,A30015,0
London Borough of Sutton,18/03/2022,50127014,"5,202.00",Allswell Care Services Ltd,SOCIAL SERVICES RESIDENTIAL,Peoples Services,Residential Care - Ext Provider,A56114,0
London Borough of Sutton,18/03/2022,50127056,"6,370.00",Allswell Care Services Ltd,SOCIAL SERVICES RESIDENTIAL,Peoples Services,Residential Care - Ext Provider,A56114,0
London Borough of Sutton,18/03/2022,50127153,"5,202.00",Allswell Care Services Ltd,SOCIAL SERVICES RESIDENTIAL,Peoples Services,Residential Care - Ext Provider,A56114,0
London Borough of Sutton,03/03/2022,50122117,"1,534.50",Alpenbest Limited,SOCIAL SERVICES DAY CARE,Peoples Services,Home Care Services,A56019,0
London Borough of Sutton,03/03/2022,50122119,"1,150.46",Alpenbest Limited,SOCIAL SERVICES DAY CARE,Peoples Services,Home Care Services,A56019,0
London Borough of Sutton,03/03/2022,50122121,"1,163.46",Alpenbest Limited,SOCIAL SERVICES DAY CARE,Peoples Services,Home Care Services,A56019,0
London Borough of Sutton,03/03/2022,50122122,"3,537.75",Alpenbest Limited,SOCIAL SERVICES DAY CARE,Peoples Services,Home Care Services,A56019,0
London Borough of Sutton,03/03/2022,50122123,852.64,Alpenbest Limited,SOCIAL SERVICES DAY CARE,Peoples Services,Home Care Services,A56019,0
London Borough of Sutton,03/03/2022,50122124,739.12,Alpenbest Limited,SOCIAL SERVICES DAY CARE,Peoples Services,Home Care Services,A56019,0
London Borough of Sutton,03/03/2022,50122126,582.80,Alpenbest Limited,SOCIAL SERVICES DAY CARE,Peoples Services,Home Care Services,A56019,0
London Borough of Sutton,03/03/2022,50122128,"1,052.38",Alpenbest Limited,SOCIAL SERVICES DAY CARE,Peoples Services,Home Care Services,A56019,0
London Borough of Sutton,03/03/2022,50122131,795.91,Alpenbest Limited,SOCIAL SERVICES DAY CARE,Peoples Services,Home Care Services,A56019,0
London Borough of Sutton,03/03/2022,50122132,852.64,Alpenbest Limited,SOCIAL SERVICES DAY CARE,Peoples Services,Home Care Services,A56019,0
London Borough of Sutton,03/03/2022,50122135,"1,206.77",Alpenbest Limited,SOCIAL SERVICES DAY CARE,Peoples Services,Home Care Services,A56019,0
London Borough of Sutton,03/03/2022,50122142,691.64,Alpenbest Limited,SOCIAL SERVICES DAY CARE,Peoples Services,Home Care Services,A56019,0
London Borough of Sutton,03/03/2022,50122143,"1,279.32",Alpenbest Limited,SOCIAL SERVICES DAY CARE,Peoples Services,Home Care Services,A56019,0
London Borough of Sutton,03/03/2022,50122144,"1,648.88",Alpenbest Limited,SOCIAL SERVICES DAY CARE,Peoples Services,Home Care Services,A56019,0
London Borough of Sutton,03/03/2022,50122147,"1,591.76",Alpenbest Limited,SOCIAL SERVICES DAY CARE,Peoples Services,Home Care Services,A56019,0
London Borough of Sutton,03/03/2022,50122148,739.12,Alpenbest Limited,SOCIAL SERVICES DAY CARE,Peoples Services,Home Care Services,A56019,0
London Borough of Sutton,03/03/2022,50122149,"1,591.76",Alpenbest Limited,SOCIAL SERVICES DAY CARE,Peoples Services,Home Care Services,A56019,0
London Borough of Sutton,15/03/2022,50125473,767.78,Alpenbest Limited,SOCIAL SERVICES DAY CARE,Peoples Services,Home Care Services,A56019,0
London Borough of Sutton,15/03/2022,50125474,763.04,Alpenbest Limited,SOCIAL SERVICES DAY CARE,Peoples Services,Home Care Services,A56019,0
London Borough of Sutton,15/03/2022,50125475,772.52,Alpenbest Limited,SOCIAL SERVICES DAY CARE,Peoples Services,Home Care Services,A56019,0
London Borough of Sutton,15/03/2022,50125476,602.65,Alpenbest Limited,SOCIAL SERVICES DAY CARE,Peoples Services,Home Care Services,A56019,0
London Borough of Sutton,24/03/2022,50130640,521.00,Alpenbest Limited,SOCIAL SERVICES DAY CARE,Peoples Services,Home Care Services,A56019,0
London Borough of Sutton,24/03/2022,50130642,852.64,Alpenbest Limited,SOCIAL SERVICES DAY CARE,Peoples Services,Home Care Services,A56019,0
London Borough of Sutton,24/03/2022,50130643,532.89,Alpenbest Limited,SOCIAL SERVICES DAY CARE,Peoples Services,Home Care Services,A56019,0
London Borough of Sutton,24/03/2022,50130644,852.64,Alpenbest Limited,SOCIAL SERVICES DAY CARE,Peoples Services,Home Care Services,A56019,0
London Borough of Sutton,24/03/2022,50130646,"1,695.82",Alpenbest Limited,SOCIAL SERVICES DAY CARE,Peoples Services,Home Care Services,A56019,0
London Borough of Sutton,24/03/2022,50130647,710.57,Alpenbest Limited,SOCIAL SERVICES DAY CARE,Peoples Services,Home Care Services,A56019,0
London Borough of Sutton,24/03/2022,50130648,852.64,Alpenbest Limited,SOCIAL SERVICES DAY CARE,Peoples Services,Home Care Services,A56019,0
London Borough of Sutton,03/03/2022,50130650,839.69,Alpenbest Limited,SOCIAL SERVICES DAY CARE,Peoples Services,Home Care Services,A56019,0
London Borough of Sutton,24/03/2022,50130651,658.59,Alpenbest Limited,SOCIAL SERVICES DAY CARE,Peoples Services,Home Care Services,A56019,0
London Borough of Sutton,24/03/2022,50130652,528.44,Alpenbest Limited,SOCIAL SERVICES DAY CARE,Peoples Services,Home Care Services,A56019,0
London Borough of Sutton,24/03/2022,50130655,"1,591.76",Alpenbest Limited,SOCIAL SERVICES DAY CARE,Peoples Services,Home Care Services,A56019,0
London Borough of Sutton,04/03/2022,50130657,"2,588.86",Alpenbest Limited,SOCIAL SERVICES DAY CARE,Peoples Services,Home Care Services,A56019,0
London Borough of Sutton,24/03/2022,50130658,"6,571.07",Alpenbest Limited,SOCIAL SERVICES DAY CARE,Peoples Services,Home Care Services,A56019,0
London Borough of Sutton,24/03/2022,50130659,"3,507.87",Alpenbest Limited,SOCIAL SERVICES DAY CARE,Peoples Services,Home Care Services,A56019,0
London Borough of Sutton,24/03/2022,50130660,"1,591.76",Alpenbest Limited,SOCIAL SERVICES DAY CARE,Peoples Services,Home Care Services,A56019,0
London Borough of Sutton,24/03/2022,50130661,739.12,Alpenbest Limited,SOCIAL SERVICES DAY CARE,Peoples Services,Home Care Services,A56019,0
London Borough of Sutton,24/03/2022,50130664,"1,574.83",Alpenbest Limited,SOCIAL SERVICES DAY CARE,Peoples Services,Home Care Services,A56019,0
London Borough of Sutton,24/03/2022,50130665,851.66,Alpenbest Limited,SOCIAL SERVICES DAY CARE,Peoples Services,Home Care Services,A56019,0
London Borough of Sutton,24/03/2022,50130667,739.12,Alpenbest Limited,SOCIAL SERVICES DAY CARE,Peoples Services,Home Care Services,A56019,0
London Borough of Sutton,24/03/2022,50130668,"1,591.76",Alpenbest Limited,SOCIAL SERVICES DAY CARE,Peoples Services,Home Care Services,A56019,0
London Borough of Sutton,24/03/2022,50130671,797.85,Alpenbest Limited,SOCIAL SERVICES DAY CARE,Peoples Services,Home Care Services,A56019,0
London Borough of Sutton,24/03/2022,50130673,"1,132.27",Alpenbest Limited,SOCIAL SERVICES DAY CARE,Peoples Services,Home Care Services,A56019,0
London Borough of Sutton,24/03/2022,50130674,"1,233.25",Alpenbest Limited,SOCIAL SERVICES DAY CARE,Peoples Services,Home Care Services,A56019,0
London Borough of Sutton,24/03/2022,50130676,"3,183.52",Alpenbest Limited,SOCIAL SERVICES DAY CARE,Peoples Services,Home Care Services,A56019,0
London Borough of Sutton,18/03/2022,50126738,"3,854.29",ANA Treatment Centres Ltd,SOCIAL SERVICES RESIDENTIAL,Peoples Services,Interim Placements - Ext Provider,A56102,0
London Borough of Sutton,01/02/2022,50124416,"4,060.00",Anchor Foster Care Services Ltd,CHILDREN'S SERVICES - FOSTERING & ADOPTION SERVICES,Peoples Services,Foster Parents Support,A44110,0
London Borough of Sutton,01/03/2022,50130389,"4,495.00",Anchor Foster Care Services Ltd,CHILDREN'S SERVICES - FOSTERING & ADOPTION SERVICES,Peoples Services,Foster Parents Support,A44110,0
London Borough of Sutton,18/03/2022,50126919,"2,662.40",Anchor Trust,SOCIAL SERVICES RESIDENTIAL,Peoples Services,Residential Care - Ext Provider,A56114,0
London Borough of Sutton,08/03/2022,50122398,636.48,REDACTED - PERSONAL DATA,"SOCIAL SERVICES - DOLS, GUM & BIA ASSESSMENTS",Peoples Services,Place Funding,A56110,0
London Borough of Sutton,23/01/2022,20020347,938.34,REDACTED - PERSONAL DATA,PLS LANDLORDS,Environment Housing and Neighbourhoods,Temporary Protection - Homeless Persons,A62028,0
London Borough of Sutton,23/02/2022,20020349,938.34,REDACTED - PERSONAL DATA,PLS LANDLORDS,Environment Housing and Neighbourhoods,Temporary Protection - Homeless Persons,A62028,0
London Borough of Sutton,24/02/2022,50124460,"3,140.00",Ansacare Fostering Agency Ltd,CHILDREN'S SERVICES - FOSTERING & ADOPTION SERVICES,Peoples Services,Foster Parents Support,A44110,0
London Borough of Sutton,24/02/2022,50124475,"3,140.00",Ansacare Fostering Agency Ltd,CHILDREN'S SERVICES - FOSTERING & ADOPTION SERVICES,Peoples Services,Foster Parents Support,A44110,0
London Borough of Sutton,20/03/2022,50130414,"3,476.43",Ansacare Fostering Agency Ltd,CHILDREN'S SERVICES - FOSTERING & ADOPTION SERVICES,Peoples Services,Foster Parents Support,A44110,0
London Borough of Sutton,20/03/2022,50130418,"3,476.43",Ansacare Fostering Agency Ltd,CHILDREN'S SERVICES - FOSTERING & ADOPTION SERVICES,Peoples Services,Foster Parents Support,A44110,0
London Borough of Sutton,14/12/2021,20019192,"25,600.00",Aon Solutions UK Limited,FINANCIAL / INSURANCE INSTNS,Resources,Fees,A44040,0
London Borough of Sutton,04/11/2021,20019144,"6,722.22",Aon UK Limited,FINANCIAL / INSURANCE INSTNS,Resources,General Insurance (Excl Premises & Transport),A44260,0
London Borough of Sutton,28/02/2022,20020061,"6,278.34",Apetito Ltd,FOOD & DRINK,Health and Wellbeing,Provisions,A41006,0
London Borough of Sutton,28/02/2022,20020691,"4,119.20",Apex Housing Solutions Ltd,SOCIAL SERVICES DAY CARE,Environment Housing and Neighbourhoods,Bed & Breakfast,A56000,0
London Borough of Sutton,20/10/2021,20019779,"1,257.00",Arthur Rai Medical Services Ltd,TEMP STAFF & CONSULTANCY,Health and Wellbeing,Agency Staff - Other,A10505,0
London Borough of Sutton,16/02/2022,20019791,"1,257.00",Arthur Rai Medical Services Ltd,TEMP STAFF & CONSULTANCY,Health and Wellbeing,Agency Staff - Other,A10505,0
London Borough of Sutton,16/02/2022,20019792,"1,282.14",Arthur Rai Medical Services Ltd,TEMP STAFF & CONSULTANCY,Health and Wellbeing,Agency Staff - Other,A10505,0
London Borough of Sutton,23/02/2022,20020138,"1,257.00",Arthur Rai Medical Services Ltd,TEMP STAFF & CONSULTANCY,Health and Wellbeing,Agency Staff - Other,A10505,0
London Borough of Sutton,23/02/2022,20020139,"1,156.44",Arthur Rai Medical Services Ltd,TEMP STAFF & CONSULTANCY,Health and Wellbeing,Agency Staff - Other,A10505,0
London Borough of Sutton,31/01/2022,50120534,"1,845.60",Ashlong House Ltd,SOCIAL SERVICES RESIDENTIAL,Peoples Services,Supported Living,A56088,0
London Borough of Sutton,31/01/2022,50120535,"1,264.80",Ashlong House Ltd,SOCIAL SERVICES RESIDENTIAL,Peoples Services,Supported Living,A56088,0
London Borough of Sutton,31/01/2022,50120536,"1,027.20",Ashlong House Ltd,SOCIAL SERVICES RESIDENTIAL,Peoples Services,Supported Living,A56088,0
London Borough of Sutton,25/03/2022,50131083,"1,845.60",Ashlong House Ltd,SOCIAL SERVICES RESIDENTIAL,Peoples Services,Supported Living,A56088,0
London Borough of Sutton,18/03/2022,50126743,"3,994.48",Aspen Place,SOCIAL SERVICES DAY CARE,Peoples Services,Nursing Care - Ext Provider,A56025,0
London Borough of Sutton,18/03/2022,50126752,"5,492.48",Aspens Charities,SOCIAL SERVICES RESIDENTIAL,Peoples Services,Residential Care - Ext Provider,A56114,0
London Borough of Sutton,25/02/2022,20019651,"3,500.00",Aspinall Verdi Ltd,TEMP STAFF & CONSULTANCY,Environment Housing and Neighbourhoods,Professional Fees,A44066,0
London Borough of Sutton,28/02/2022,50120370,"2,240.00",Aspirations Care Ltd,SOCIAL SERVICES DAY CARE,Peoples Services,Home Care Services,A56019,0
London Borough of Sutton,28/02/2022,50120370,"6,644.40",Aspirations Care Ltd,SOCIAL SERVICES DAY CARE,Peoples Services,Home Care Services,A56019,0
London Borough of Sutton,02/03/2022,20020062,"1,410.00",Athona Ltd,TEMP STAFF & CONSULTANCY,Peoples Services,Agency Staff - Other,A10505,0
London Borough of Sutton,28/03/2022,50128020,"3,300.00",Aunty Connies Childcare,GRANTS & EX GRATIA PAYMENTS,Peoples Services,Other Supplies & Services,A44291,0
London Borough of Sutton,18/03/2022,50126763,"5,806.24",Autism & Aspergers Care Services,SOCIAL SERVICES RESIDENTIAL,Peoples Services,Residential Care - Ext Provider,A56114,0
London Borough of Sutton,16/03/2022,50130404,"2,989.28",Avance Ltd,CHILDREN'S SERVICES - FOSTERING & ADOPTION SERVICES,Peoples Services,Accommodation - Supported Living,A62001,0
London Borough of Sutton,16/03/2022,50130441,"4,650.00",Avance Ltd,CHILDREN'S SERVICES - FOSTERING & ADOPTION SERVICES,Peoples Services,Approved Lodgings,A61000,0
London Borough of Sutton,16/03/2022,50130442,"5,148.22",Avance Ltd,CHILDREN'S SERVICES - FOSTERING & ADOPTION SERVICES,Peoples Services,Approved Lodgings,A61000,0
London Borough of Sutton,08/03/2022,50121662,572.40,Avenue Primary Acadamy,GRANTS & EX GRATIA PAYMENTS,Peoples Services,Early Years Pupil Premium,A60031,0
London Borough of Sutton,08/03/2022,50121688,"16,230.24",Avenue Primary Acadamy,GRANTS & EX GRATIA PAYMENTS,Peoples Services,Payments to Schools,A51013,0
London Borough of Sutton,08/03/2022,50121724,"3,300.00",Avenue Primary Acadamy,GRANTS & EX GRATIA PAYMENTS,Resources,"Grants, Contributions & Donations",A47005,0
London Borough of Sutton,08/03/2022,50121776,"1,635.00",Avenue Primary Acadamy,GRANTS & EX GRATIA PAYMENTS,Resources,"Grants, Contributions & Donations",A47005,0
London Borough of Sutton,08/03/2022,50122805,"2,000.00",Avenue Primary Acadamy,GRANTS & EX GRATIA PAYMENTS,Peoples Services,Top Up Additional Support,A60015,0
London Borough of Sutton,21/03/2022,50127688,"14,136.00",Ayai Care Limited,SOCIAL SERVICES DAY CARE,Peoples Services,Supported Living,A56088,0
London Borough of Sutton,08/03/2022,50122392,"17,253.29",The Adventure Pre-School,GRANTS & EX GRATIA PAYMENTS,Peoples Services,Place Funding,A56110,0
London Borough of Sutton,24/02/2022,20019607,"4,320.00",Back on Track Housing Ltd,SOCIAL SERVICES - OTHER,Peoples Services,Approved Lodgings,A61000,0
London Borough of Sutton,02/03/2022,20019985,-896.00,Baily Garner (Health & Safety) Ltd,TEMP STAFF & CONSULTANCY,Environment Housing and Neighbourhoods,Payments to Contractors,C14000,0
London Borough of Sutton,08/03/2022,50122326,"3,431.23",Bandon Hill Pre-School,GRANTS & EX GRATIA PAYMENTS,Peoples Services,Place Funding,A56110,0
London Borough of Sutton,31/03/2022,20021981,947.00,Bandon Hill Primary School (Academy),GRANTS & EX GRATIA PAYMENTS,Peoples Services,Payments to Schools,A51013,0
London Borough of Sutton,08/03/2022,50121657,615.00,Bandon Hill Primary School (Academy),GRANTS & EX GRATIA PAYMENTS,Peoples Services,Disability Access Fund,A56093,0
London Borough of Sutton,08/03/2022,50121689,"16,829.28",Bandon Hill Primary School (Academy),GRANTS & EX GRATIA PAYMENTS,Peoples Services,Payments to Schools,A51013,0
London Borough of Sutton,08/03/2022,50121725,"5,940.00",Bandon Hill Primary School (Academy),GRANTS & EX GRATIA PAYMENTS,Resources,"Grants, Contributions & Donations",A47005,0
London Borough of Sutton,08/03/2022,50121777,"2,985.00",Bandon Hill Primary School (Academy),GRANTS & EX GRATIA PAYMENTS,Resources,"Grants, Contributions & Donations",A47005,0
London Borough of Sutton,14/03/2022,50125742,"3,212.50",Bandon Hill Primary School (Academy),GRANTS & EX GRATIA PAYMENTS,Peoples Services,Top-up Funding,A51016,0
London Borough of Sutton,14/03/2022,50125743,"5,924.58",Bandon Hill Primary School (Academy),GRANTS & EX GRATIA PAYMENTS,Peoples Services,Top-up Funding,A51016,0
London Borough of Sutton,14/03/2022,50125744,"3,141.66",Bandon Hill Primary School (Academy),GRANTS & EX GRATIA PAYMENTS,Peoples Services,Top-up individual funding,A60033,0
London Borough of Sutton,29/03/2022,50130761,880.00,Bandon Hill Primary School (Academy),GRANTS & EX GRATIA PAYMENTS,Peoples Services,Pupil Growth,A51014,0
London Borough of Sutton,14/02/2022,20018934,786.31,Banner Group Limited,BOOKS PUBLICATIONS STATIONERY,Peoples Services,Miscellaneous Expenses,A49000,0
London Borough of Sutton,28/02/2022,50124492,"3,216.36",Banya,SOCIAL SERVICES RESIDENTIAL,Peoples Services,Foster Parents Support,A44110,0
London Borough of Sutton,18/03/2022,50126759,-183.92,Barchester Healthcare Homes Ltd,SOCIAL SERVICES RESIDENTIAL,Peoples Services,Nursing Care - 3rd party top up payment,A56023,0
London Borough of Sutton,18/03/2022,50126759,"2,097.20",Barchester Healthcare Homes Ltd,SOCIAL SERVICES RESIDENTIAL,Peoples Services,Nursing Care - Ext Provider,A56025,0
London Borough of Sutton,04/03/2022,20020810,"2,511.00",Barnardo's,CHILDREN'S SERVICES - RESIDENTIAL,Peoples Services,Play Groups,A56111,0
London Borough of Sutton,08/03/2022,50125190,588.00,Barnardo's,CHILDREN'S SERVICES - RESIDENTIAL,Peoples Services,Provider Contract Payments,A44290,0
London Borough of Sutton,08/03/2022,50125198,514.50,Barnardo's,CHILDREN'S SERVICES - RESIDENTIAL,Peoples Services,Provider Contract Payments,A44290,0
London Borough of Sutton,08/03/2022,50125216,735.00,Barnardo's,CHILDREN'S SERVICES - RESIDENTIAL,Peoples Services,Provider Contract Payments,A44290,0
London Borough of Sutton,08/03/2022,50125217,612.00,Barnardo's,CHILDREN'S SERVICES - RESIDENTIAL,Peoples Services,Provider Contract Payments,A44290,0
London Borough of Sutton,08/03/2022,50125231,759.50,Barnardo's,CHILDREN'S SERVICES - RESIDENTIAL,Peoples Services,Provider Contract Payments,A44290,0
London Borough of Sutton,01/02/2022,50124355,"3,540.00",Be My Family Fostering Agency,CHILDREN'S SERVICES - FOSTERING & ADOPTION SERVICES,Peoples Services,Foster Parents Support,A44110,0
London Borough of Sutton,01/03/2022,50130428,"3,919.28",Be My Family Fostering Agency,CHILDREN'S SERVICES - FOSTERING & ADOPTION SERVICES,Peoples Services,Foster Parents Support,A44110,0
London Borough of Sutton,28/02/2022,50124409,"19,800.00",Bear Care Services Ltd,CHILDREN'S SERVICES - RESIDENTIAL,Peoples Services,Residential Care-Children,A56115,0
London Borough of Sutton,07/03/2022,50130458,"7,700.00",Bear Care Services Ltd,CHILDREN'S SERVICES - RESIDENTIAL,Peoples Services,Residential Care-Children,A56115,0
London Borough of Sutton,24/02/2022,20019546,"13,914.37",Beddington Infants School,GRANTS & EX GRATIA PAYMENTS,Peoples Services,Payments to Contractors,C14000,0
London Borough of Sutton,10/03/2022,20020627,"4,582.88",Beddington Infants School,GRANTS & EX GRATIA PAYMENTS,Peoples Services,Payments to Contractors,C14000,0
London Borough of Sutton,17/03/2022,20021112,"4,100.00",Beddington Infants School,GRANTS & EX GRATIA PAYMENTS,Peoples Services,External Fees and Consultants,C20000,0
London Borough of Sutton,17/03/2022,20021113,"4,628.00",Beddington Infants School,GRANTS & EX GRATIA PAYMENTS,Peoples Services,External Fees and Consultants,C20000,0
London Borough of Sutton,08/03/2022,50121508,"100,189.73",Beddington Infants School,GRANTS & EX GRATIA PAYMENTS,Peoples Services,Payments to Schools,A51013,0
London Borough of Sutton,08/03/2022,50121612,"12,105.00",Beddington Infants School,GRANTS & EX GRATIA PAYMENTS,Peoples Services,Payments to Schools,A51013,0
London Borough of Sutton,08/03/2022,50121613,586.25,Beddington Infants School,GRANTS & EX GRATIA PAYMENTS,Peoples Services,Payments to Schools,A51013,0
London Borough of Sutton,08/03/2022,50121691,"10,520.64",Beddington Infants School,GRANTS & EX GRATIA PAYMENTS,Peoples Services,Payments to Schools,A51013,0
London Borough of Sutton,08/03/2022,50121727,"1,320.00",Beddington Infants School,GRANTS & EX GRATIA PAYMENTS,Resources,"Grants, Contributions & Donations",A47005,0
London Borough of Sutton,08/03/2022,50121779,675.00,Beddington Infants School,GRANTS & EX GRATIA PAYMENTS,Resources,"Grants, Contributions & Donations",A47005,0
London Borough of Sutton,22/03/2022,50127608,"11,232.00",Beddington Infants School,GRANTS & EX GRATIA PAYMENTS,Peoples Services,Payments to Schools,A51013,0
London Borough of Sutton,22/03/2022,50127609,"12,168.00",Beddington Infants School,GRANTS & EX GRATIA PAYMENTS,Peoples Services,Payments to Schools,A51013,0
London Borough of Sutton,08/03/2022,50121664,667.80,Beddington Park Primary (Academy) ,GRANTS & EX GRATIA PAYMENTS,Peoples Services,Early Years Pupil Premium,A60031,0
London Borough of Sutton,08/03/2022,50121692,"12,729.60",Beddington Park Primary (Academy) ,GRANTS & EX GRATIA PAYMENTS,Peoples Services,Payments to Schools,A51013,0
London Borough of Sutton,08/03/2022,50121728,"3,000.00",Beddington Park Primary (Academy) ,GRANTS & EX GRATIA PAYMENTS,Resources,"Grants, Contributions & Donations",A47005,0
London Borough of Sutton,08/03/2022,50121780,"1,455.00",Beddington Park Primary (Academy) ,GRANTS & EX GRATIA PAYMENTS,Resources,"Grants, Contributions & Donations",A47005,0
London Borough of Sutton,22/03/2022,50127606,"9,653.00",Beddington Park Primary (Academy) ,GRANTS & EX GRATIA PAYMENTS,Resources,"Grants, Contributions & Donations",A47005,0
London Borough of Sutton,21/03/2022,50127636,"-4,279.11",Beechcroft Care Limited,SOCIAL SERVICES RESIDENTIAL,Peoples Services,Nursing Care - 3rd party top up payment,A56023,0
London Borough of Sutton,21/03/2022,50127636,"8,558.22",Beechcroft Care Limited,SOCIAL SERVICES RESIDENTIAL,Peoples Services,Supported Living,A56088,0
London Borough of Sutton,21/01/2022,20019189,"1,285.00",Beeches Tree Care,AGRICULTURAL & ESTATE SERVICES,Environment Housing and Neighbourhoods,Other Property Repairs & Maintenance,A20007,0
London Borough of Sutton,22/02/2022,20019412,"7,217.40",Beeches Tree Care,AGRICULTURAL & ESTATE SERVICES,Environment Housing and Neighbourhoods,Plants and Shrubs,A28004,0
London Borough of Sutton,02/03/2022,20019987,"7,917.22",Beeches Tree Care,AGRICULTURAL & ESTATE SERVICES,Environment Housing and Neighbourhoods,Maintenance of trees,A28003,0
London Borough of Sutton,03/03/2022,20020090,"42,824.37",Beeches Tree Care,AGRICULTURAL & ESTATE SERVICES,Environment Housing and Neighbourhoods,Maintenance of trees,A28003,0
London Borough of Sutton,08/03/2022,20020353,"-1,113.43",Beeches Tree Care,AGRICULTURAL & ESTATE SERVICES,Resources,Fees And Charges (VATable),A92310,0
London Borough of Sutton,18/03/2022,20021124,"5,000.00",Beeches Tree Care,AGRICULTURAL & ESTATE SERVICES,Environment Housing and Neighbourhoods,Purchases and Repairs Fixtures & Fittings,A25005,0
London Borough of Sutton,21/03/2022,20021320,"5,409.00",Beeches Tree Care,AGRICULTURAL & ESTATE SERVICES,Environment Housing and Neighbourhoods,Highway Trees - Maintenance,A28005,0
London Borough of Sutton,23/03/2022,20021469,"14,253.14",Beeches Tree Care,AGRICULTURAL & ESTATE SERVICES,Environment Housing and Neighbourhoods,Highway Trees - Maintenance,A28005,0
London Borough of Sutton,31/03/2022,20021921,"7,865.90",Beeches Tree Care,AGRICULTURAL & ESTATE SERVICES,Environment Housing and Neighbourhoods,Maintenance of trees,A28003,0
London Borough of Sutton,08/03/2022,50122327,"1,086.91",Belmont Village Playgroup,GRANTS & EX GRATIA PAYMENTS,Peoples Services,Place Funding,A56110,0
London Borough of Sutton,08/03/2022,50122396,"8,260.51",Belmont Village Playgroup,GRANTS & EX GRATIA PAYMENTS,Peoples Services,Place Funding,A56110,0
London Borough of Sutton,18/01/2022,50120374,827.97,Best at Home Domiciliary Care Services Ltd,SOCIAL SERVICES DAY CARE,Peoples Services,Home Care Services,A56019,0
London Borough of Sutton,16/01/2022,50120378,981.94,Best at Home Domiciliary Care Services Ltd,SOCIAL SERVICES DAY CARE,Peoples Services,Home Care Services,A56019,0
London Borough of Sutton,16/01/2022,50120382,542.50,Best at Home Domiciliary Care Services Ltd,SOCIAL SERVICES DAY CARE,Peoples Services,Home Care Services,A56019,0
London Borough of Sutton,16/01/2022,50120383,827.97,Best at Home Domiciliary Care Services Ltd,SOCIAL SERVICES DAY CARE,Peoples Services,Home Care Services,A56019,0
London Borough of Sutton,16/01/2022,50120406,827.97,Best at Home Domiciliary Care Services Ltd,SOCIAL SERVICES DAY CARE,Peoples Services,Home Care Services,A56019,0
London Borough of Sutton,16/01/2022,50120416,599.98,Best at Home Domiciliary Care Services Ltd,SOCIAL SERVICES DAY CARE,Peoples Services,Home Care Services,A56019,0
London Borough of Sutton,16/01/2022,50120416,245.50,Best at Home Domiciliary Care Services Ltd,SOCIAL SERVICES DAY CARE,Peoples Services,Home Care Services,A56019,0
London Borough of Sutton,27/02/2022,50123595,827.97,Best at Home Domiciliary Care Services Ltd,SOCIAL SERVICES DAY CARE,Peoples Services,Home Care Services,A56019,0
London Borough of Sutton,27/02/2022,50123602,981.94,Best at Home Domiciliary Care Services Ltd,SOCIAL SERVICES DAY CARE,Peoples Services,Home Care Services,A56019,0
London Borough of Sutton,27/02/2022,50123605,827.97,Best at Home Domiciliary Care Services Ltd,SOCIAL SERVICES DAY CARE,Peoples Services,Home Care Services,A56019,0
London Borough of Sutton,27/02/2022,50123612,542.50,Best at Home Domiciliary Care Services Ltd,SOCIAL SERVICES DAY CARE,Peoples Services,Home Care Services,A56019,0
London Borough of Sutton,27/02/2022,50123618,599.98,Best at Home Domiciliary Care Services Ltd,SOCIAL SERVICES DAY CARE,Peoples Services,Home Care Services,A56019,0
London Borough of Sutton,27/02/2022,50123618,245.50,Best at Home Domiciliary Care Services Ltd,SOCIAL SERVICES DAY CARE,Peoples Services,Home Care Services,A56019,0
London Borough of Sutton,06/03/2022,50125873,599.98,Best at Home Domiciliary Care Services Ltd,SOCIAL SERVICES DAY CARE,Peoples Services,Home Care Services,A56019,0
London Borough of Sutton,06/03/2022,50125873,245.50,Best at Home Domiciliary Care Services Ltd,SOCIAL SERVICES DAY CARE,Peoples Services,Home Care Services,A56019,0
London Borough of Sutton,06/03/2022,50125877,827.97,Best at Home Domiciliary Care Services Ltd,SOCIAL SERVICES DAY CARE,Peoples Services,Home Care Services,A56019,0
London Borough of Sutton,06/03/2022,50125877,18.50,Best at Home Domiciliary Care Services Ltd,SOCIAL SERVICES DAY CARE,Peoples Services,Home Care Services,A56019,0
London Borough of Sutton,06/03/2022,50125880,542.50,Best at Home Domiciliary Care Services Ltd,SOCIAL SERVICES DAY CARE,Peoples Services,Home Care Services,A56019,0
London Borough of Sutton,06/03/2022,50125881,827.97,Best at Home Domiciliary Care Services Ltd,SOCIAL SERVICES DAY CARE,Peoples Services,Home Care Services,A56019,0
London Borough of Sutton,06/03/2022,50125906,827.97,Best at Home Domiciliary Care Services Ltd,SOCIAL SERVICES DAY CARE,Peoples Services,Home Care Services,A56019,0
London Borough of Sutton,06/03/2022,50125908,981.94,Best at Home Domiciliary Care Services Ltd,SOCIAL SERVICES DAY CARE,Peoples Services,Home Care Services,A56019,0
London Borough of Sutton,13/03/2022,50127486,827.97,Best at Home Domiciliary Care Services Ltd,SOCIAL SERVICES DAY CARE,Peoples Services,Home Care Services,A56019,0
London Borough of Sutton,13/03/2022,50127494,981.94,Best at Home Domiciliary Care Services Ltd,SOCIAL SERVICES DAY CARE,Peoples Services,Home Care Services,A56019,0
London Borough of Sutton,13/03/2022,50127497,599.98,Best at Home Domiciliary Care Services Ltd,SOCIAL SERVICES DAY CARE,Peoples Services,Home Care Services,A56019,0
London Borough of Sutton,13/03/2022,50127497,245.50,Best at Home Domiciliary Care Services Ltd,SOCIAL SERVICES DAY CARE,Peoples Services,Home Care Services,A56019,0
London Borough of Sutton,13/03/2022,50127502,827.97,Best at Home Domiciliary Care Services Ltd,SOCIAL SERVICES DAY CARE,Peoples Services,Home Care Services,A56019,0
London Borough of Sutton,13/03/2022,50127502,18.50,Best at Home Domiciliary Care Services Ltd,SOCIAL SERVICES DAY CARE,Peoples Services,Home Care Services,A56019,0
London Borough of Sutton,13/03/2022,50127503,542.50,Best at Home Domiciliary Care Services Ltd,SOCIAL SERVICES DAY CARE,Peoples Services,Home Care Services,A56019,0
London Borough of Sutton,13/03/2022,50127504,827.97,Best at Home Domiciliary Care Services Ltd,SOCIAL SERVICES DAY CARE,Peoples Services,Home Care Services,A56019,0
London Borough of Sutton,28/02/2022,20020171,"5,712.00",Bestcourt UK Ltd,ACCOMMODATION BED & BREAKFAST,Environment Housing and Neighbourhoods,Bed & Breakfast,A56000,0
London Borough of Sutton,17/03/2022,50126429,"1,080.00",REDACTED - PERSONAL DATA,CARE LEAVERS,Peoples Services,Miscellaneous Expenses,A49000,0
London Borough of Sutton,01/02/2022,20021111,"2,246.00",Better Families Social Work Services Ltd,SUNDRY SUPPLIER - SOCIAL SERVICES,Peoples Services,Client Related Assessments,A56017,0
London Borough of Sutton,17/03/2022,50129842,"22,667.00",BIG BEAR BESPOKE EDUCATION,CHILDREN'S SERVICES - SEN SERVICES,Peoples Services,Independent School Fees,A56002,0
London Borough of Sutton,15/02/2022,50120794,600.00,Bizzy Bees Day Nursery,GRANTS & EX GRATIA PAYMENTS,Peoples Services,SEND Inclusion funding,A60038,0
London Borough of Sutton,08/03/2022,50122383,539.13,Bizzy Bees Day Nursery,GRANTS & EX GRATIA PAYMENTS,Peoples Services,Place Funding,A56110,0
London Borough of Sutton,08/03/2022,50122499,"7,941.63",Bizzy Bees Day Nursery,GRANTS & EX GRATIA PAYMENTS,Peoples Services,Place Funding,A56110,0
London Borough of Sutton,11/03/2022,20020686,"80,000.00",Bloom Procurement Services Ltd,TEMP STAFF & CONSULTANCY,Resources,Professional Fees,A44066,0
London Borough of Sutton,18/03/2022,50126847,"4,800.00",BNP Care Ltd,SOCIAL SERVICES RESIDENTIAL,Peoples Services,Residential Care - Ext Provider,A56114,0
London Borough of Sutton,18/03/2022,50126921,"3,800.00",BNP Care Ltd,SOCIAL SERVICES RESIDENTIAL,Peoples Services,Residential Care - Ext Provider,A56114,0
London Borough of Sutton,18/03/2022,50127108,"2,050.00",BNP Care Ltd,SOCIAL SERVICES RESIDENTIAL,Peoples Services,Residential Care - Ext Provider,A56114,0
London Borough of Sutton,08/03/2022,50122480,954.72,Billy Bears Playdays,GRANTS & EX GRATIA PAYMENTS,Peoples Services,Place Funding,A56110,0
London Borough of Sutton,11/03/2022,20020815,"5,500.00",Bournemouth University,ACADEMIC INSTNS - OTHER,Peoples Services,Staff Development And Training,A15022,0
London Borough of Sutton,28/02/2022,20019807,"52,000.00",Bow Tie Construction Ltd,CONSTRUCTION INDUSTRY,Environment Housing and Neighbourhoods,Payments to Contractors,C14000,0
London Borough of Sutton,02/03/2022,20019922,"69,525.48",Bow Tie Construction Ltd,CONSTRUCTION INDUSTRY,Environment Housing and Neighbourhoods,Payments to Contractors,C14000,0
London Borough of Sutton,22/02/2022,20020954,"65,800.00",Bow Tie Construction Ltd,CONSTRUCTION INDUSTRY,Environment Housing and Neighbourhoods,Payments to Contractors,C14000,0
London Borough of Sutton,14/03/2022,20020901,888.79,Bradford Council ,SUNDRY SUPPLIER - EDUCATION,Peoples Services,Miscellaneous Expenses,A49000,0
London Borough of Sutton,07/03/2022,20020262,"3,281.25",Brand Narrative,TEMP STAFF & CONSULTANCY,Environment Housing and Neighbourhoods,Purchases and Repairs Fixtures & Fittings,A25005,0
London Borough of Sutton,25/02/2022,20020180,"5,295.32",Breyer Group Plc,CONSTRUCTION INDUSTRY,Environment Housing and Neighbourhoods,Payments to Contractors,C14000,0
London Borough of Sutton,25/02/2022,20020181,"2,749.87",Breyer Group Plc,CONSTRUCTION INDUSTRY,Environment Housing and Neighbourhoods,Payments to Contractors,C14000,0
London Borough of Sutton,08/03/2022,20020504,"29,760.59",Breyer Group Plc,CONSTRUCTION INDUSTRY,Environment Housing and Neighbourhoods,Payments to Contractors,C14000,0
London Borough of Sutton,18/03/2022,50126828,"3,612.00",Bridge House Care Centre,SOCIAL SERVICES RESIDENTIAL,Peoples Services,Nursing Care - Ext Provider,A56025,0
London Borough of Sutton,18/03/2022,50126828,-735.68,Bridge House Care Centre,SOCIAL SERVICES RESIDENTIAL,Peoples Services,Nursing Care - 3rd party top up payment,A56023,0
London Borough of Sutton,18/03/2022,50126868,"3,555.32",Bridge House Care Centre,SOCIAL SERVICES RESIDENTIAL,Peoples Services,Nursing Care - Ext Provider,A56025,0
London Borough of Sutton,18/03/2022,50126868,-632.64,Bridge House Care Centre,SOCIAL SERVICES RESIDENTIAL,Peoples Services,Nursing Care - 3rd party top up payment,A56023,0
London Borough of Sutton,18/03/2022,50126869,"3,626.72",Bridge House Care Centre,SOCIAL SERVICES RESIDENTIAL,Peoples Services,Nursing Care - Ext Provider,A56025,0
London Borough of Sutton,18/03/2022,50126869,-750.40,Bridge House Care Centre,SOCIAL SERVICES RESIDENTIAL,Peoples Services,Nursing Care - 3rd party top up payment,A56023,0
London Borough of Sutton,18/03/2022,50126883,-750.40,Bridge House Care Centre,SOCIAL SERVICES RESIDENTIAL,Peoples Services,Nursing Care - 3rd party top up payment,A56023,0
London Borough of Sutton,18/03/2022,50126938,"3,736.00",Bridge House Care Centre,SOCIAL SERVICES RESIDENTIAL,Peoples Services,Nursing Care Short Term,A56026,0
London Borough of Sutton,18/03/2022,50126938,-750.40,Bridge House Care Centre,SOCIAL SERVICES RESIDENTIAL,Peoples Services,Nursing Care - 3rd party top up payment,A56023,0
London Borough of Sutton,18/03/2022,50126939,"3,472.64",Bridge House Care Centre,SOCIAL SERVICES RESIDENTIAL,Peoples Services,Nursing Care - Ext Provider,A56025,0
London Borough of Sutton,18/03/2022,50126939,-632.64,Bridge House Care Centre,SOCIAL SERVICES RESIDENTIAL,Peoples Services,Nursing Care - 3rd party top up payment,A56023,0
London Borough of Sutton,18/03/2022,50126940,"3,626.72",Bridge House Care Centre,SOCIAL SERVICES RESIDENTIAL,Peoples Services,Nursing Care Short Term,A56026,0
London Borough of Sutton,18/03/2022,50126940,-750.40,Bridge House Care Centre,SOCIAL SERVICES RESIDENTIAL,Peoples Services,Nursing Care - 3rd party top up payment,A56023,0
London Borough of Sutton,18/03/2022,50127051,"3,611.68",Bridge House Care Centre,SOCIAL SERVICES RESIDENTIAL,Peoples Services,Nursing Care - Ext Provider,A56025,0
London Borough of Sutton,18/03/2022,50127051,-735.68,Bridge House Care Centre,SOCIAL SERVICES RESIDENTIAL,Peoples Services,Nursing Care - 3rd party top up payment,A56023,0
London Borough of Sutton,18/03/2022,50127052,"3,502.24",Bridge House Care Centre,SOCIAL SERVICES RESIDENTIAL,Peoples Services,Nursing Care - Ext Provider,A56025,0
London Borough of Sutton,18/03/2022,50127052,-662.24,Bridge House Care Centre,SOCIAL SERVICES RESIDENTIAL,Peoples Services,Nursing Care - 3rd party top up payment,A56023,0
London Borough of Sutton,18/03/2022,50127086,"3,626.72",Bridge House Care Centre,SOCIAL SERVICES RESIDENTIAL,Peoples Services,Nursing Care Short Term,A56026,0
London Borough of Sutton,18/03/2022,50127086,-750.40,Bridge House Care Centre,SOCIAL SERVICES RESIDENTIAL,Peoples Services,Nursing Care - 3rd party top up payment,A56023,0
London Borough of Sutton,18/03/2022,50127087,-536.00,Bridge House Care Centre,SOCIAL SERVICES RESIDENTIAL,Peoples Services,Nursing Care - 3rd party top up payment,A56023,0
London Borough of Sutton,18/03/2022,50127087,"2,668.57",Bridge House Care Centre,SOCIAL SERVICES RESIDENTIAL,Peoples Services,Nursing Care - Ext Provider,A56025,0
London Borough of Sutton,18/03/2022,50127088,"3,626.72",Bridge House Care Centre,SOCIAL SERVICES RESIDENTIAL,Peoples Services,Nursing Care - Ext Provider,A56025,0
London Borough of Sutton,18/03/2022,50127088,-750.40,Bridge House Care Centre,SOCIAL SERVICES RESIDENTIAL,Peoples Services,Nursing Care - 3rd party top up payment,A56023,0
London Borough of Sutton,18/03/2022,50127089,"3,626.72",Bridge House Care Centre,SOCIAL SERVICES RESIDENTIAL,Peoples Services,Nursing Care - Ext Provider,A56025,0
London Borough of Sutton,18/03/2022,50127091,"2,559.09",Bridge House Care Centre,SOCIAL SERVICES RESIDENTIAL,Peoples Services,Nursing Care Short Term,A56026,0
London Borough of Sutton,18/03/2022,50127130,"1,413.54",Bridge House Care Centre,SOCIAL SERVICES RESIDENTIAL,Peoples Services,Nursing Care - Ext Provider,A56025,0
London Borough of Sutton,18/03/2022,50127130,-134.00,Bridge House Care Centre,SOCIAL SERVICES RESIDENTIAL,Peoples Services,Nursing Care - 3rd party top up payment,A56023,0
London Borough of Sutton,18/03/2022,50127135,"2,075.08",Bridge House Care Centre,SOCIAL SERVICES RESIDENTIAL,Peoples Services,Nursing Care - Ext Provider,A56025,0
London Borough of Sutton,01/02/2022,50124369,"3,160.00",Bridging Gaps Limited,CHILDREN'S SERVICES - FOSTERING & ADOPTION SERVICES,Peoples Services,Foster Parents Support,A44110,0
London Borough of Sutton,01/03/2022,50130392,"3,498.57",Bridging Gaps Limited,CHILDREN'S SERVICES - FOSTERING & ADOPTION SERVICES,Peoples Services,Foster Parents Support,A44110,0
London Borough of Sutton,01/03/2022,50125737,"3,707.69",Bright Futures Care Ltd,CHILDREN'S SERVICES - FOSTERING & ADOPTION SERVICES,Peoples Services,Independent School Fees,A56002,0
London Borough of Sutton,01/02/2022,50124364,"2,999.92",Brighter Futures Foster Care Ltd,CHILDREN'S SERVICES - FOSTERING & ADOPTION SERVICES,Peoples Services,Foster Parents Support,A44110,0
London Borough of Sutton,01/02/2022,50124365,"2,999.96",Brighter Futures Foster Care Ltd,CHILDREN'S SERVICES - FOSTERING & ADOPTION SERVICES,Peoples Services,Foster Parents Support,A44110,0
London Borough of Sutton,01/02/2022,50124372,"2,479.96",Brighter Futures Foster Care Ltd,CHILDREN'S SERVICES - FOSTERING & ADOPTION SERVICES,Peoples Services,Foster Parents Support,A44110,0
London Borough of Sutton,01/03/2022,50130396,"3,321.38",Brighter Futures Foster Care Ltd,CHILDREN'S SERVICES - FOSTERING & ADOPTION SERVICES,Peoples Services,Foster Parents Support,A44110,0
London Borough of Sutton,01/03/2022,50130424,"3,321.34",Brighter Futures Foster Care Ltd,CHILDREN'S SERVICES - FOSTERING & ADOPTION SERVICES,Peoples Services,Foster Parents Support,A44110,0
London Borough of Sutton,01/03/2022,50130425,"2,745.67",Brighter Futures Foster Care Ltd,CHILDREN'S SERVICES - FOSTERING & ADOPTION SERVICES,Peoples Services,Foster Parents Support,A44110,0
London Borough of Sutton,03/03/2022,20020116,"1,331.64",British Gas,UTILITIES,Health and Wellbeing,Electricity,A21000,0
London Borough of Sutton,22/02/2022,20020126,767.87,British Gas,UTILITIES,HRA,Electricity,A21000,0
London Borough of Sutton,01/03/2022,20020539,780.31,British Gas,UTILITIES,Resources,Electricity,A21000,0
London Borough of Sutton,31/01/2022,20020580,732.90,British Gas,UTILITIES,Resources,Electricity,A21000,0
London Borough of Sutton,18/03/2022,20021126,"2,135.13",British Gas,UTILITIES,Health and Wellbeing,Gas,A21003,0
London Borough of Sutton,18/03/2022,50126773,-766.48,British Home & Hospital For Incurables,SOCIAL SERVICES RESIDENTIAL,Peoples Services,Nursing Care - Client Cont ( Net paymt ),A56024,0
London Borough of Sutton,18/03/2022,50126773,"2,497.88",British Home & Hospital For Incurables,SOCIAL SERVICES RESIDENTIAL,Peoples Services,Nursing Care - Ext Provider,A56025,0
London Borough of Sutton,27/02/2022,20020998,"18,058.59",British Telecommunications Plc,UTILITIES,Resources,Telephones,A45020,0
London Borough of Sutton,27/02/2022,20021371,"18,058.59",British Telecommunications Plc,UTILITIES,Resources,Telephones,A45020,0
London Borough of Sutton,08/12/2021,20019827,"1,000.00",Browne Jacobson LLP,FINANCIAL / INSURANCE INSTNS,Resources,External Legal Fees,C20008,0
London Borough of Sutton,17/12/2021,20020914,472.50,Browne Jacobson LLP,FINANCIAL / INSURANCE INSTNS,HRA,Professional Fees,A44066,0
London Borough of Sutton,24/02/2022,20019738,"5,000.00",Built Environment Networking Ltd,SUNDRY SUPPLIER - ENV SERVICES,Development Growth and Regeneration,Professional Fees,A44066,0
London Borough of Sutton,28/02/2022,20019797,"1,736.00",Buller Hotel,ACCOMMODATION BED & BREAKFAST,Environment Housing and Neighbourhoods,Bed & Breakfast,A56000,0
London Borough of Sutton,28/02/2022,20019798,"1,736.00",Buller Hotel,ACCOMMODATION BED & BREAKFAST,Environment Housing and Neighbourhoods,Bed & Breakfast,A56000,0
London Borough of Sutton,08/03/2022,50122332,"3,239.42",Bumpsa Daisies Nurserys,GRANTS & EX GRATIA PAYMENTS,Peoples Services,Place Funding,A56110,0
London Borough of Sutton,08/03/2022,50122405,"11,529.54",Bumpsa Daisies Nurserys,GRANTS & EX GRATIA PAYMENTS,Peoples Services,Place Funding,A56110,0
London Borough of Sutton,08/03/2022,50122194,"2,275.50",Busy Bees Day Nurseries Ltd ,GRANTS & EX GRATIA PAYMENTS,Peoples Services,Place Funding,A56110,0
London Borough of Sutton,08/03/2022,50122287,615.00,Busy Bees Day Nurseries Ltd ,GRANTS & EX GRATIA PAYMENTS,Peoples Services,Disability Access Fund,A56093,0
London Borough of Sutton,08/03/2022,50122335,"2,862.91",Busy Bees Day Nurseries Ltd ,GRANTS & EX GRATIA PAYMENTS,Peoples Services,Place Funding,A56110,0
London Borough of Sutton,08/03/2022,50122408,"13,542.01",Busy Bees Day Nurseries Ltd ,GRANTS & EX GRATIA PAYMENTS,Peoples Services,Place Funding,A56110,0
London Borough of Sutton,08/03/2022,50122334,547.01,Busy Bees Day Nurseries Ltd ,GRANTS & EX GRATIA PAYMENTS,Peoples Services,Place Funding,A56110,0
London Borough of Sutton,08/03/2022,50122407,"8,986.82",Busy Bees Day Nurseries Ltd ,GRANTS & EX GRATIA PAYMENTS,Peoples Services,Place Funding,A56110,0
London Borough of Sutton,18/03/2022,50126704,"7,824.28",Butterfly's Care Homes Ltd,SOCIAL SERVICES RESIDENTIAL,Peoples Services,Residential Care - Ext Provider,A56114,0
London Borough of Sutton,10/03/2022,20020688,"448,552.51",Buxton Building Contractors Ltd,CONSTRUCTION INDUSTRY,Environment Housing and Neighbourhoods,Payments to Contractors,C14000,0
London Borough of Sutton,01/03/2022,50124385,"2,687.72",By The Bridge Ltd,CHILDREN'S SERVICES - FOSTERING & ADOPTION SERVICES,Peoples Services,Foster Parents Support,A44110,0
London Borough of Sutton,01/03/2022,50124386,"2,687.72",By The Bridge Ltd,CHILDREN'S SERVICES - FOSTERING & ADOPTION SERVICES,Peoples Services,Foster Parents Support,A44110,0
London Borough of Sutton,01/03/2022,50124403,"4,215.40",By The Bridge Ltd,CHILDREN'S SERVICES - FOSTERING & ADOPTION SERVICES,Peoples Services,Foster Parents Support,A44110,0
London Borough of Sutton,10/03/2022,50130411,"2,975.69",By The Bridge Ltd,CHILDREN'S SERVICES - FOSTERING & ADOPTION SERVICES,Peoples Services,Foster Parents Support,A44110,0
London Borough of Sutton,10/03/2022,50130412,"2,975.69",By The Bridge Ltd,CHILDREN'S SERVICES - FOSTERING & ADOPTION SERVICES,Peoples Services,Foster Parents Support,A44110,0
London Borough of Sutton,10/03/2022,50130448,"4,667.05",By The Bridge Ltd,CHILDREN'S SERVICES - FOSTERING & ADOPTION SERVICES,Peoples Services,Foster Parents Support,A44110,0
London Borough of Sutton,28/02/2022,50130430,"8,071.40",Calcot Services for Children Ltd,CHILDREN'S SERVICES - FOSTERING & ADOPTION SERVICES,Peoples Services,Approved Lodgings,A61000,0
London Borough of Sutton,17/03/2022,50130431,"13,721.38",Calcot Services for Children Ltd,CHILDREN'S SERVICES - FOSTERING & ADOPTION SERVICES,Peoples Services,Approved Lodgings,A61000,0
London Borough of Sutton,01/02/2022,50124351,"5,760.00",Caldecott Fostering Ltd,CHILDREN'S SERVICES - FOSTERING & ADOPTION SERVICES,Peoples Services,Foster Parents Support,A44110,0
London Borough of Sutton,01/03/2022,50130388,"6,377.14",Caldecott Fostering Ltd,CHILDREN'S SERVICES - FOSTERING & ADOPTION SERVICES,Peoples Services,Foster Parents Support,A44110,0
London Borough of Sutton,26/01/2022,50124399,"18,159.96",Cambian Childcare Ltd,CHILDREN'S SERVICES - FOSTERING & ADOPTION SERVICES,Peoples Services,Residential Care-Children,A56115,0
London Borough of Sutton,24/02/2022,50130383,"20,105.67",Cambian Childcare Ltd,CHILDREN'S SERVICES - FOSTERING & ADOPTION SERVICES,Peoples Services,Residential Care-Children,A56115,0
London Borough of Sutton,25/03/2022,20021627,616.00,Cambridge Maintenance Services Ltd.,SOCIAL SERVICES RESIDENTIAL,Peoples Services,Contract Cleaning,A27010,0
London Borough of Sutton,23/03/2022,20021445,"75,000.00",CAN DIGITAL SOLUTION LTD,PRESS & PUBLICITY,Peoples Services,Contract Cleaning,A27010,0
London Borough of Sutton,18/03/2022,50126801,"-12,973.78",Canterbury Oast Trust,SOCIAL SERVICES RESIDENTIAL,Peoples Services,Residential Care - Client Cont ( Net Paymt ),A56113,0
London Borough of Sutton,18/03/2022,50126801,"11,858.40",Canterbury Oast Trust,SOCIAL SERVICES RESIDENTIAL,Peoples Services,Residential Care - Client Cont ( Net Paymt ),A56113,0
London Borough of Sutton,18/03/2022,50126801,204.72,Canterbury Oast Trust,SOCIAL SERVICES RESIDENTIAL,Peoples Services,One to One Care,A56108,0
London Borough of Sutton,18/03/2022,50126801,"3,913.56",Canterbury Oast Trust,SOCIAL SERVICES RESIDENTIAL,Peoples Services,Residential Care - Ext Provider,A56114,0
London Borough of Sutton,17/03/2022,50129845,"2,025.40",Capel Manor College,GRANTS & EX GRATIA PAYMENTS,Peoples Services,Independent School Fees,A56002,0
London Borough of Sutton,04/03/2022,20020451,"5,825.00",Capita Business Services Ltd,BUSINESS & COMPUTER SYSTEMS,Resources,Intangible Assets - Purchase,C13000,0
London Borough of Sutton,10/03/2022,20021088,"13,335.79",Capita Business Services Ltd,BUSINESS & COMPUTER SYSTEMS,Health and Wellbeing,Other Supplies & Services,A44291,0
London Borough of Sutton,28/02/2022,50124421,"5,143.92",Capstone Foster Care (South East) Ltd,CHILDREN'S SERVICES - FOSTERING & ADOPTION SERVICES,Peoples Services,Foster Parents Support,A44110,0
London Borough of Sutton,03/02/2022,20020025,"4,420.08",Care Advocates Ltd,MANAGEMENT & TRAINING SERVICES,Peoples Services,Approved Lodgings,A61000,0
London Borough of Sutton,02/03/2022,20020194,"4,893.66",Care Advocates Ltd,MANAGEMENT & TRAINING SERVICES,Peoples Services,Approved Lodgings,A61000,0
London Borough of Sutton,03/02/2022,50120519,"8,233.96",Care Advocates Ltd,MANAGEMENT & TRAINING SERVICES,Peoples Services,Supported Living,A56088,0
London Borough of Sutton,03/02/2022,50120528,"5,953.92",Care Advocates Ltd,MANAGEMENT & TRAINING SERVICES,Peoples Services,Supported Living,A56088,0
London Borough of Sutton,18/03/2022,50126920,"3,200.00",Care Concern Group,SOCIAL SERVICES RESIDENTIAL,Peoples Services,Residential Care - Ext Provider,A56114,0
London Borough of Sutton,09/03/2022,50122757,"1,000.00",Care Direct Uk Ltd ,SOCIAL SERVICES RESIDENTIAL,Peoples Services,Contract Cleaning,A27010,0
London Borough of Sutton,18/03/2022,50126994,"3,631.80",Care Direct Uk Ltd ,SOCIAL SERVICES RESIDENTIAL,Peoples Services,Residential Care - Ext Provider,A56114,0
London Borough of Sutton,17/02/2022,20019810,589.50,Care for the Family,OPERATIONAL EQUIPMENT/MATERIAL,Health and Wellbeing,Other Supplies & Services,A44291,0
London Borough of Sutton,07/03/2022,50123467,843.00,Care More Ltd,SOCIAL SERVICES RESIDENTIAL,Peoples Services,Home Care Services,A56019,0
London Borough of Sutton,07/03/2022,50123468,820.00,Care More Ltd,SOCIAL SERVICES RESIDENTIAL,Peoples Services,Home Care Services,A56019,0
London Borough of Sutton,07/03/2022,50123469,"1,400.00",Care More Ltd,SOCIAL SERVICES RESIDENTIAL,Peoples Services,Home Care Services,A56019,0
London Borough of Sutton,07/03/2022,50123470,"1,400.00",Care More Ltd,SOCIAL SERVICES RESIDENTIAL,Peoples Services,Home Care Services,A56019,0
London Borough of Sutton,07/03/2022,50123473,"1,484.00",Care More Ltd,SOCIAL SERVICES RESIDENTIAL,Peoples Services,Home Care Services,A56019,0
London Borough of Sutton,07/03/2022,50123478,606.00,Care More Ltd,SOCIAL SERVICES RESIDENTIAL,Peoples Services,Home Care Services,A56019,0
London Borough of Sutton,07/03/2022,50123479,681.00,Care More Ltd,SOCIAL SERVICES RESIDENTIAL,Peoples Services,Home Care Services,A56019,0
London Borough of Sutton,07/03/2022,50123487,635.00,Care More Ltd,SOCIAL SERVICES RESIDENTIAL,Peoples Services,Home Care Services,A56019,0
London Borough of Sutton,07/03/2022,50123488,684.00,Care More Ltd,SOCIAL SERVICES RESIDENTIAL,Peoples Services,Home Care Services,A56019,0
London Borough of Sutton,07/03/2022,50123489,709.50,Care More Ltd,SOCIAL SERVICES RESIDENTIAL,Peoples Services,Home Care Services,A56019,0
London Borough of Sutton,07/03/2022,50123498,"1,400.00",Care More Ltd,SOCIAL SERVICES RESIDENTIAL,Peoples Services,Home Care Services,A56019,0
London Borough of Sutton,07/03/2022,50123500,606.00,Care More Ltd,SOCIAL SERVICES RESIDENTIAL,Peoples Services,Home Care Services,A56019,0
London Borough of Sutton,07/03/2022,50123504,39.00,Care More Ltd,SOCIAL SERVICES RESIDENTIAL,Peoples Services,Home Care Services,A56019,0
London Borough of Sutton,07/03/2022,50123504,"1,773.75",Care More Ltd,SOCIAL SERVICES RESIDENTIAL,Peoples Services,Home Care Services,A56019,0
London Borough of Sutton,07/03/2022,50123505,567.00,Care More Ltd,SOCIAL SERVICES RESIDENTIAL,Peoples Services,Home Care Services,A56019,0
London Borough of Sutton,07/03/2022,50123506,916.50,Care More Ltd,SOCIAL SERVICES RESIDENTIAL,Peoples Services,Home Care Services,A56019,0
London Borough of Sutton,07/03/2022,50123508,800.50,Care More Ltd,SOCIAL SERVICES RESIDENTIAL,Peoples Services,Home Care Services,A56019,0
London Borough of Sutton,07/03/2022,50123509,729.50,Care More Ltd,SOCIAL SERVICES RESIDENTIAL,Peoples Services,Home Care Services,A56019,0
London Borough of Sutton,07/03/2022,50123511,"1,526.00",Care More Ltd,SOCIAL SERVICES RESIDENTIAL,Peoples Services,Home Care Services,A56019,0
London Borough of Sutton,07/03/2022,50123512,"1,484.00",Care More Ltd,SOCIAL SERVICES RESIDENTIAL,Peoples Services,Home Care Services,A56019,0
London Borough of Sutton,07/03/2022,50123515,609.00,Care More Ltd,SOCIAL SERVICES RESIDENTIAL,Peoples Services,Home Care Services,A56019,0
London Borough of Sutton,07/03/2022,50123516,742.00,Care More Ltd,SOCIAL SERVICES RESIDENTIAL,Peoples Services,Home Care Services,A56019,0
London Borough of Sutton,07/03/2022,50123517,762.75,Care More Ltd,SOCIAL SERVICES RESIDENTIAL,Peoples Services,Home Care Services,A56019,0
London Borough of Sutton,22/03/2022,50129884,529.50,Care More Ltd,SOCIAL SERVICES RESIDENTIAL,Peoples Services,Home Care Services,A56019,0
London Borough of Sutton,22/03/2022,50129885,"1,400.00",Care More Ltd,SOCIAL SERVICES RESIDENTIAL,Peoples Services,Home Care Services,A56019,0
London Borough of Sutton,22/03/2022,50129887,606.00,Care More Ltd,SOCIAL SERVICES RESIDENTIAL,Peoples Services,Home Care Services,A56019,0
London Borough of Sutton,22/03/2022,50129890,"1,400.00",Care More Ltd,SOCIAL SERVICES RESIDENTIAL,Peoples Services,Home Care Services,A56019,0
London Borough of Sutton,22/03/2022,50129893,684.00,Care More Ltd,SOCIAL SERVICES RESIDENTIAL,Peoples Services,Home Care Services,A56019,0
London Borough of Sutton,22/03/2022,50129894,635.00,Care More Ltd,SOCIAL SERVICES RESIDENTIAL,Peoples Services,Home Care Services,A56019,0
London Borough of Sutton,22/03/2022,50129897,"1,400.00",Care More Ltd,SOCIAL SERVICES RESIDENTIAL,Peoples Services,Home Care Services,A56019,0
London Borough of Sutton,22/03/2022,50129898,51.50,Care More Ltd,SOCIAL SERVICES RESIDENTIAL,Peoples Services,Home Care Services,A56019,0
London Borough of Sutton,22/03/2022,50129898,"1,751.50",Care More Ltd,SOCIAL SERVICES RESIDENTIAL,Peoples Services,Home Care Services,A56019,0
London Borough of Sutton,22/03/2022,50129899,567.00,Care More Ltd,SOCIAL SERVICES RESIDENTIAL,Peoples Services,Home Care Services,A56019,0
London Borough of Sutton,22/03/2022,50129901,960.00,Care More Ltd,SOCIAL SERVICES RESIDENTIAL,Peoples Services,Home Care Services,A56019,0
London Borough of Sutton,22/03/2022,50129904,"1,484.00",Care More Ltd,SOCIAL SERVICES RESIDENTIAL,Peoples Services,Home Care Services,A56019,0
London Borough of Sutton,22/03/2022,50129907,679.00,Care More Ltd,SOCIAL SERVICES RESIDENTIAL,Peoples Services,Home Care Services,A56019,0
London Borough of Sutton,22/03/2022,50129909,800.50,Care More Ltd,SOCIAL SERVICES RESIDENTIAL,Peoples Services,Home Care Services,A56019,0
London Borough of Sutton,22/03/2022,50129910,742.00,Care More Ltd,SOCIAL SERVICES RESIDENTIAL,Peoples Services,Home Care Services,A56019,0
London Borough of Sutton,22/03/2022,50129912,"1,526.00",Care More Ltd,SOCIAL SERVICES RESIDENTIAL,Peoples Services,Home Care Services,A56019,0
London Borough of Sutton,22/03/2022,50129913,"1,484.00",Care More Ltd,SOCIAL SERVICES RESIDENTIAL,Peoples Services,Home Care Services,A56019,0
London Borough of Sutton,22/03/2022,50129916,"1,134.00",Care More Ltd,SOCIAL SERVICES RESIDENTIAL,Peoples Services,Home Care Services,A56019,0
London Borough of Sutton,22/03/2022,50129917,709.50,Care More Ltd,SOCIAL SERVICES RESIDENTIAL,Peoples Services,Home Care Services,A56019,0
London Borough of Sutton,22/03/2022,50129920,645.00,Care More Ltd,SOCIAL SERVICES RESIDENTIAL,Peoples Services,Home Care Services,A56019,0
London Borough of Sutton,22/03/2022,50129922,609.00,Care More Ltd,SOCIAL SERVICES RESIDENTIAL,Peoples Services,Home Care Services,A56019,0
London Borough of Sutton,22/03/2022,50129923,742.00,Care More Ltd,SOCIAL SERVICES RESIDENTIAL,Peoples Services,Home Care Services,A56019,0
London Borough of Sutton,22/03/2022,50129924,693.50,Care More Ltd,SOCIAL SERVICES RESIDENTIAL,Peoples Services,Home Care Services,A56019,0
London Borough of Sutton,22/03/2022,50129928,641.50,Care More Ltd,SOCIAL SERVICES RESIDENTIAL,Peoples Services,Home Care Services,A56019,0
London Borough of Sutton,22/03/2022,50129929,821.25,Care More Ltd,SOCIAL SERVICES RESIDENTIAL,Peoples Services,Home Care Services,A56019,0
London Borough of Sutton,23/08/2021,50130958,709.00,Care More Ltd,SOCIAL SERVICES RESIDENTIAL,Peoples Services,Home Care Services,A56019,0
London Borough of Sutton,18/03/2022,50126731,-662.24,Care UK Homecare Ltd,SOCIAL SERVICES RESIDENTIAL,Peoples Services,Nursing Care - 3rd party top up payment,A56023,0
London Borough of Sutton,18/03/2022,50126731,"3,586.28",Care UK Homecare Ltd,SOCIAL SERVICES RESIDENTIAL,Peoples Services,Nursing Care - Ext Provider,A56025,0
London Borough of Sutton,18/03/2022,50127141,-425.60,Care UK Homecare Ltd,SOCIAL SERVICES RESIDENTIAL,Peoples Services,Residential Care - Client Cont ( Net Paymt ),A56113,0
London Borough of Sutton,18/03/2022,50127141,"4,600.00",Care UK Homecare Ltd,SOCIAL SERVICES RESIDENTIAL,Peoples Services,Residential Care - Ext Provider,A56114,0
London Borough of Sutton,13/03/2022,50125263,"4,060.00",Care Unlimited Domcare Ltd,SOCIAL SERVICES DAY CARE,Peoples Services,Supported Living,A56088,0
London Borough of Sutton,13/03/2022,50125264,"4,060.00",Care Unlimited Domcare Ltd,SOCIAL SERVICES DAY CARE,Peoples Services,Supported Living,A56088,0
London Borough of Sutton,13/03/2022,50125265,"4,060.00",Care Unlimited Domcare Ltd,SOCIAL SERVICES DAY CARE,Peoples Services,Supported Living,A56088,0
London Borough of Sutton,13/03/2022,50125270,"4,060.00",Care Unlimited Domcare Ltd,SOCIAL SERVICES DAY CARE,Peoples Services,Supported Living,A56088,0
London Borough of Sutton,13/03/2022,50125282,"4,732.00",Care Unlimited Domcare Ltd,SOCIAL SERVICES DAY CARE,Peoples Services,Supported Living,A56088,0
London Borough of Sutton,18/03/2022,50126765,"3,626.72",Care Unlimited Group Ltd,SOCIAL SERVICES DAY CARE,Peoples Services,Nursing Care - Ext Provider,A56025,0
London Borough of Sutton,18/03/2022,50126765,-750.40,Care Unlimited Group Ltd,SOCIAL SERVICES DAY CARE,Peoples Services,Nursing Care - 3rd party top up payment,A56023,0
London Borough of Sutton,18/03/2022,50126961,-750.40,Care Unlimited Group Ltd,SOCIAL SERVICES DAY CARE,Peoples Services,Nursing Care - 3rd party top up payment,A56023,0
London Borough of Sutton,18/03/2022,50126961,"3,626.72",Care Unlimited Group Ltd,SOCIAL SERVICES DAY CARE,Peoples Services,Nursing Care - Ext Provider,A56025,0
London Borough of Sutton,18/03/2022,50126962,"3,612.00",Care Unlimited Group Ltd,SOCIAL SERVICES DAY CARE,Peoples Services,Nursing Care - Ext Provider,A56025,0
London Borough of Sutton,18/03/2022,50126962,-735.68,Care Unlimited Group Ltd,SOCIAL SERVICES DAY CARE,Peoples Services,Nursing Care - 3rd party top up payment,A56023,0
London Borough of Sutton,18/03/2022,50126993,"-3,096.24",Care Unlimited Group Ltd,SOCIAL SERVICES DAY CARE,Peoples Services,Nursing Care - 3rd party top up payment,A56023,0
London Borough of Sutton,18/03/2022,50126993,"6,192.48",Care Unlimited Group Ltd,SOCIAL SERVICES DAY CARE,Peoples Services,Nursing Care - Ext Provider,A56025,0
London Borough of Sutton,18/03/2022,50127158,"3,626.72",Care Unlimited Group Ltd,SOCIAL SERVICES DAY CARE,Peoples Services,Nursing Care - Ext Provider,A56025,0
London Borough of Sutton,18/03/2022,50127158,-750.40,Care Unlimited Group Ltd,SOCIAL SERVICES DAY CARE,Peoples Services,Nursing Care - 3rd party top up payment,A56023,0
London Borough of Sutton,03/03/2022,50122114,812.00,Care4Care Services Ltd,SOCIAL SERVICES DAY CARE,Peoples Services,Home Care Services,A56019,0
London Borough of Sutton,03/03/2022,50122115,796.50,Care4Care Services Ltd,SOCIAL SERVICES DAY CARE,Peoples Services,Home Care Services,A56019,0
London Borough of Sutton,03/03/2022,50122116,955.20,Care4Care Services Ltd,SOCIAL SERVICES DAY CARE,Peoples Services,Home Care Services,A56019,0
London Borough of Sutton,03/03/2022,50122136,812.00,Care4Care Services Ltd,SOCIAL SERVICES DAY CARE,Peoples Services,Home Care Services,A56019,0
London Borough of Sutton,03/03/2022,50122137,"3,248.00",Care4Care Services Ltd,SOCIAL SERVICES DAY CARE,Peoples Services,Home Care Services,A56019,0
London Borough of Sutton,11/02/2022,50125262,"2,403.40",Care4Care Services Ltd,SOCIAL SERVICES DAY CARE,Peoples Services,Home Care Services,A56019,0
London Borough of Sutton,03/03/2022,50125274,"2,268.00",Care4Care Services Ltd,SOCIAL SERVICES DAY CARE,Peoples Services,Home Care Services,A56019,0
London Borough of Sutton,22/02/2022,20019526,500.00,Caremark (Sutton),SOCIAL SERVICES DAY CARE,Peoples Services,Home Care Services,A56019,0
London Borough of Sutton,20/02/2022,50120605,540.75,Caremark (Sutton),SOCIAL SERVICES DAY CARE,Peoples Services,Home Care Services,A56019,0
London Borough of Sutton,20/02/2022,50120623,251.63,Caremark (Sutton),SOCIAL SERVICES DAY CARE,Peoples Services,Home Care Services,A56019,0
London Borough of Sutton,20/02/2022,50120623,284.47,Caremark (Sutton),SOCIAL SERVICES DAY CARE,Peoples Services,Home Care Services,A56019,0
London Borough of Sutton,20/02/2022,50120624,801.93,Caremark (Sutton),SOCIAL SERVICES DAY CARE,Peoples Services,Home Care Services,A56019,0
London Borough of Sutton,20/02/2022,50120624,33.72,Caremark (Sutton),SOCIAL SERVICES DAY CARE,Peoples Services,Home Care Services,A56019,0
London Borough of Sutton,20/02/2022,50120633,965.62,Caremark (Sutton),SOCIAL SERVICES DAY CARE,Peoples Services,Home Care Services,A56019,0
London Borough of Sutton,20/02/2022,50120633,150.50,Caremark (Sutton),SOCIAL SERVICES DAY CARE,Peoples Services,Home Care Services,A56019,0
London Borough of Sutton,20/02/2022,50120635,500.41,Caremark (Sutton),SOCIAL SERVICES DAY CARE,Peoples Services,Home Care Services,A56019,0
London Borough of Sutton,20/02/2022,50120651,554.56,Caremark (Sutton),SOCIAL SERVICES DAY CARE,Peoples Services,Home Care Services,A56019,0
London Borough of Sutton,20/02/2022,50120666,865.20,Caremark (Sutton),SOCIAL SERVICES DAY CARE,Peoples Services,Home Care Services,A56019,0
London Borough of Sutton,27/02/2022,50124853,540.75,Caremark (Sutton),SOCIAL SERVICES DAY CARE,Peoples Services,Home Care Services,A56019,0
London Borough of Sutton,06/03/2022,50124857,555.08,Caremark (Sutton),SOCIAL SERVICES DAY CARE,Peoples Services,Home Care Services,A56019,0
London Borough of Sutton,27/02/2022,50124899,246.00,Caremark (Sutton),SOCIAL SERVICES DAY CARE,Peoples Services,Home Care Services,A56019,0
London Borough of Sutton,27/02/2022,50124899,268.60,Caremark (Sutton),SOCIAL SERVICES DAY CARE,Peoples Services,Home Care Services,A56019,0
London Borough of Sutton,06/03/2022,50124900,268.91,Caremark (Sutton),SOCIAL SERVICES DAY CARE,Peoples Services,Home Care Services,A56019,0
London Borough of Sutton,06/03/2022,50124900,318.09,Caremark (Sutton),SOCIAL SERVICES DAY CARE,Peoples Services,Home Care Services,A56019,0
London Borough of Sutton,27/02/2022,50124901,783.36,Caremark (Sutton),SOCIAL SERVICES DAY CARE,Peoples Services,Home Care Services,A56019,0
London Borough of Sutton,27/02/2022,50124901,32.94,Caremark (Sutton),SOCIAL SERVICES DAY CARE,Peoples Services,Home Care Services,A56019,0
London Borough of Sutton,06/03/2022,50124902,801.93,Caremark (Sutton),SOCIAL SERVICES DAY CARE,Peoples Services,Home Care Services,A56019,0
London Borough of Sutton,06/03/2022,50124902,33.72,Caremark (Sutton),SOCIAL SERVICES DAY CARE,Peoples Services,Home Care Services,A56019,0
London Borough of Sutton,27/02/2022,50124911,"1,854.00",Caremark (Sutton),SOCIAL SERVICES DAY CARE,Peoples Services,Home Care Services,A56019,0
London Borough of Sutton,27/02/2022,50124926,940.61,Caremark (Sutton),SOCIAL SERVICES DAY CARE,Peoples Services,Home Care Services,A56019,0
London Borough of Sutton,27/02/2022,50124926,145.41,Caremark (Sutton),SOCIAL SERVICES DAY CARE,Peoples Services,Home Care Services,A56019,0
London Borough of Sutton,06/03/2022,50124927,965.62,Caremark (Sutton),SOCIAL SERVICES DAY CARE,Peoples Services,Home Care Services,A56019,0
London Borough of Sutton,06/03/2022,50124927,150.50,Caremark (Sutton),SOCIAL SERVICES DAY CARE,Peoples Services,Home Care Services,A56019,0
London Borough of Sutton,27/02/2022,50124928,500.41,Caremark (Sutton),SOCIAL SERVICES DAY CARE,Peoples Services,Home Care Services,A56019,0
London Borough of Sutton,06/03/2022,50124929,500.41,Caremark (Sutton),SOCIAL SERVICES DAY CARE,Peoples Services,Home Care Services,A56019,0
London Borough of Sutton,27/02/2022,50124938,563.16,Caremark (Sutton),SOCIAL SERVICES DAY CARE,Peoples Services,Home Care Services,A56019,0
London Borough of Sutton,06/03/2022,50124939,558.86,Caremark (Sutton),SOCIAL SERVICES DAY CARE,Peoples Services,Home Care Services,A56019,0
London Borough of Sutton,27/02/2022,50124948,865.20,Caremark (Sutton),SOCIAL SERVICES DAY CARE,Peoples Services,Home Care Services,A56019,0
London Borough of Sutton,06/03/2022,50124949,865.20,Caremark (Sutton),SOCIAL SERVICES DAY CARE,Peoples Services,Home Care Services,A56019,0
London Borough of Sutton,16/03/2022,50127346,"1,918.50",Caremark (Sutton),SOCIAL SERVICES DAY CARE,Peoples Services,Home Care Services,A56019,0
London Borough of Sutton,16/03/2022,50127347,"1,918.50",Caremark (Sutton),SOCIAL SERVICES DAY CARE,Peoples Services,Home Care Services,A56019,0
London Borough of Sutton,16/03/2022,50127348,"1,918.50",Caremark (Sutton),SOCIAL SERVICES DAY CARE,Peoples Services,Home Care Services,A56019,0
London Borough of Sutton,16/03/2022,50127349,"1,918.50",Caremark (Sutton),SOCIAL SERVICES DAY CARE,Peoples Services,Home Care Services,A56019,0
London Borough of Sutton,16/03/2022,50127350,"1,918.50",Caremark (Sutton),SOCIAL SERVICES DAY CARE,Peoples Services,Home Care Services,A56019,0
London Borough of Sutton,16/03/2022,50127351,"1,918.50",Caremark (Sutton),SOCIAL SERVICES DAY CARE,Peoples Services,Home Care Services,A56019,0
London Borough of Sutton,16/03/2022,50127423,"1,918.50",Caremark (Sutton),SOCIAL SERVICES DAY CARE,Peoples Services,Home Care Services,A56019,0
London Borough of Sutton,16/03/2022,50127424,"1,918.50",Caremark (Sutton),SOCIAL SERVICES DAY CARE,Peoples Services,Home Care Services,A56019,0
London Borough of Sutton,13/03/2022,50131059,551.50,Caremark (Sutton),SOCIAL SERVICES DAY CARE,Peoples Services,Home Care Services,A56019,0
London Borough of Sutton,13/03/2022,50131061,775.20,Caremark (Sutton),SOCIAL SERVICES DAY CARE,Peoples Services,Home Care Services,A56019,0
London Borough of Sutton,13/03/2022,50131061,32.25,Caremark (Sutton),SOCIAL SERVICES DAY CARE,Peoples Services,Home Care Services,A56019,0
London Borough of Sutton,13/03/2022,50131066,"1,897.00",Caremark (Sutton),SOCIAL SERVICES DAY CARE,Peoples Services,Home Care Services,A56019,0
London Borough of Sutton,13/03/2022,50131070,965.62,Caremark (Sutton),SOCIAL SERVICES DAY CARE,Peoples Services,Home Care Services,A56019,0
London Borough of Sutton,13/03/2022,50131070,150.50,Caremark (Sutton),SOCIAL SERVICES DAY CARE,Peoples Services,Home Care Services,A56019,0
London Borough of Sutton,13/03/2022,50131071,500.29,Caremark (Sutton),SOCIAL SERVICES DAY CARE,Peoples Services,Home Care Services,A56019,0
London Borough of Sutton,13/03/2022,50131076,558.86,Caremark (Sutton),SOCIAL SERVICES DAY CARE,Peoples Services,Home Care Services,A56019,0
London Borough of Sutton,13/03/2022,50131078,878.10,Caremark (Sutton),SOCIAL SERVICES DAY CARE,Peoples Services,Home Care Services,A56019,0
London Borough of Sutton,21/03/2022,50131109,750.00,Caremark (Sutton),SOCIAL SERVICES DAY CARE,Peoples Services,Miscellaneous Expenses,A49000,0
London Borough of Sutton,28/02/2022,20019748,"5,235.00",Caremore Group Ltd,CHILDREN'S SERVICES - FOSTERING & ADOPTION SERVICES,Peoples Services,Approved Lodgings,A61000,0
London Borough of Sutton,18/03/2022,50127016,"5,531.60",Caretech Community Services Ltd,SOCIAL SERVICES RESIDENTIAL,Peoples Services,Residential Care - Ext Provider,A56114,0
London Borough of Sutton,18/03/2022,50127058,"5,534.00",Caretech Community Services Ltd,SOCIAL SERVICES RESIDENTIAL,Peoples Services,Residential Care - Ext Provider,A56114,0
London Borough of Sutton,18/03/2022,50127058,-721.20,Caretech Community Services Ltd,SOCIAL SERVICES RESIDENTIAL,Peoples Services,Residential Care - Client Cont ( Net Paymt ),A56113,0
London Borough of Sutton,18/03/2022,50127059,"5,534.00",Caretech Community Services Ltd,SOCIAL SERVICES RESIDENTIAL,Peoples Services,Residential Care - Ext Provider,A56114,0
London Borough of Sutton,18/03/2022,50127059,-425.60,Caretech Community Services Ltd,SOCIAL SERVICES RESIDENTIAL,Peoples Services,Residential Care - Client Cont ( Net Paymt ),A56113,0
London Borough of Sutton,18/03/2022,50127121,"5,676.16",Caretech Community Services Ltd,SOCIAL SERVICES RESIDENTIAL,Peoples Services,Residential Care - Ext Provider,A56114,0
London Borough of Sutton,18/03/2022,50127121,-608.80,Caretech Community Services Ltd,SOCIAL SERVICES RESIDENTIAL,Peoples Services,Residential Care - Client Cont ( Net Paymt ),A56113,0
London Borough of Sutton,08/03/2022,50121729,"3,390.00",Carew Academy,CHILDREN'S SERVICES - RESIDENTIAL,Resources,"Grants, Contributions & Donations",A47005,0
London Borough of Sutton,08/03/2022,50121782,"1,695.00",Carew Academy,CHILDREN'S SERVICES - RESIDENTIAL,Resources,"Grants, Contributions & Donations",A47005,0
London Borough of Sutton,28/02/2022,50129854,617.92,Carew Academy,CHILDREN'S SERVICES - RESIDENTIAL,Peoples Services,Top-up Funding,A51016,0
London Borough of Sutton,28/02/2022,20020242,"4,350.00",Caridon Young Living Ltd,CHILDREN'S SERVICES - RESIDENTIAL,Peoples Services,Approved Lodgings,A61000,0
London Borough of Sutton,28/02/2022,20020243,"3,600.00",Caridon Young Living Ltd,CHILDREN'S SERVICES - RESIDENTIAL,Peoples Services,Approved Lodgings,A61000,0
London Borough of Sutton,28/02/2022,20020244,"4,100.00",Caridon Young Living Ltd,CHILDREN'S SERVICES - RESIDENTIAL,Peoples Services,Approved Lodgings,A61000,0
London Borough of Sutton,28/02/2022,50124391,"5,350.00",Caridon Young Living Ltd,CHILDREN'S SERVICES - RESIDENTIAL,Peoples Services,Approved Lodgings,A61000,0
London Borough of Sutton,28/02/2022,50124439,"4,850.00",Caridon Young Living Ltd,CHILDREN'S SERVICES - RESIDENTIAL,Peoples Services,Approved Lodgings,A61000,0
London Borough of Sutton,28/02/2022,50124440,962.50,Caridon Young Living Ltd,CHILDREN'S SERVICES - RESIDENTIAL,Peoples Services,Approved Lodgings,A61000,0
London Borough of Sutton,21/03/2022,50127675,"3,176.03",Care Support Partners Ltd,SOCIAL SERVICES RESIDENTIAL,Peoples Services,Supported Living,A56088,0
London Borough of Sutton,25/02/2022,50120336,"1,287.44",Carlene House,SOCIAL SERVICES RESIDENTIAL,Peoples Services,Supported Living,A56088,0
London Borough of Sutton,25/02/2022,50120338,"5,793.48",Carlene House,SOCIAL SERVICES RESIDENTIAL,Peoples Services,Supported Living,A56088,0
London Borough of Sutton,25/02/2022,50120339,"1,609.30",Carlene House,SOCIAL SERVICES RESIDENTIAL,Peoples Services,Supported Living,A56088,0
London Borough of Sutton,25/02/2022,50120340,"1,287.44",Carlene House,SOCIAL SERVICES RESIDENTIAL,Peoples Services,Supported Living,A56088,0
London Borough of Sutton,15/03/2022,50125277,"1,020.80",Carlene House,SOCIAL SERVICES RESIDENTIAL,Peoples Services,Supported Living,A56088,0
London Borough of Sutton,15/03/2022,50125287,"1,287.44",Carlene House,SOCIAL SERVICES RESIDENTIAL,Peoples Services,Supported Living,A56088,0
London Borough of Sutton,15/03/2022,50125289,829.40,Carlene House,SOCIAL SERVICES RESIDENTIAL,Peoples Services,Supported Living,A56088,0
London Borough of Sutton,15/03/2022,50125294,"1,287.44",Carlene House,SOCIAL SERVICES RESIDENTIAL,Peoples Services,Supported Living,A56088,0
London Borough of Sutton,15/03/2022,50125312,"3,218.60",Carlene House,SOCIAL SERVICES RESIDENTIAL,Peoples Services,Supported Living,A56088,0
London Borough of Sutton,15/03/2022,50125495,"3,421.24",Carlene House,SOCIAL SERVICES RESIDENTIAL,Peoples Services,Supported Living,A56088,0
London Borough of Sutton,15/03/2022,50125496,"1,219.68",Carlene House,SOCIAL SERVICES RESIDENTIAL,Peoples Services,Supported Living,A56088,0
London Borough of Sutton,15/03/2022,50125498,"2,671.60",Carlene House,SOCIAL SERVICES RESIDENTIAL,Peoples Services,Supported Living,A56088,0
London Borough of Sutton,15/03/2022,50125499,"2,591.84",Carlene House,SOCIAL SERVICES RESIDENTIAL,Peoples Services,Supported Living,A56088,0
London Borough of Sutton,18/03/2022,50126787,"5,478.12",Carlene House,SOCIAL SERVICES RESIDENTIAL,Peoples Services,Residential Care - Ext Provider,A56114,0
London Borough of Sutton,18/03/2022,50126788,"5,478.12",Carlene House,SOCIAL SERVICES RESIDENTIAL,Peoples Services,Residential Care - Ext Provider,A56114,0
London Borough of Sutton,18/03/2022,50126789,"5,478.12",Carlene House,SOCIAL SERVICES RESIDENTIAL,Peoples Services,Residential Care - Ext Provider,A56114,0
London Borough of Sutton,18/03/2022,50126867,"5,478.12",Carlene House,SOCIAL SERVICES RESIDENTIAL,Peoples Services,Residential Care - Ext Provider,A56114,0
London Borough of Sutton,18/03/2022,50126880,"5,478.12",Carlene House,SOCIAL SERVICES RESIDENTIAL,Peoples Services,Residential Care - Ext Provider,A56114,0
London Borough of Sutton,18/03/2022,50127146,"5,478.12",Carlene House,SOCIAL SERVICES RESIDENTIAL,Peoples Services,Residential Care - Ext Provider,A56114,0
London Borough of Sutton,18/03/2022,50127154,"5,478.12",Carlene House,SOCIAL SERVICES RESIDENTIAL,Peoples Services,Residential Care - Ext Provider,A56114,0
London Borough of Sutton,03/02/2022,50127454,"1,020.80",Carlene House,SOCIAL SERVICES RESIDENTIAL,Peoples Services,Supported Living,A56088,0
London Borough of Sutton,08/03/2022,50122355,710.40,REDACTED - PERSONAL DATA,GRANTS & EX GRATIA PAYMENTS,Peoples Services,Place Funding,A56110,0
London Borough of Sutton,08/03/2022,50122450,636.48,REDACTED - PERSONAL DATA,GRANTS & EX GRATIA PAYMENTS,Peoples Services,Place Funding,A56110,0
London Borough of Sutton,24/02/2022,20019562,"1,000.00",Carole Small Family Counsellor and Psychotherapist,"SOCIAL SERVICES - DOLS, GUM & BIA ASSESSMENTS",Peoples Services,Client Care/Assistance,A61011,0
London Borough of Sutton,08/03/2022,50122330,"1,592.01",REDACTED - PERSONAL DATA,GRANTS & EX GRATIA PAYMENTS,Peoples Services,Place Funding,A56110,0
London Borough of Sutton,08/03/2022,50122403,"1,272.96",REDACTED - PERSONAL DATA,GRANTS & EX GRATIA PAYMENTS,Peoples Services,Place Funding,A56110,0
London Borough of Sutton,08/03/2022,50121730,"10,200.00",Carshalton Boys Sports College (Academy),GRANTS & EX GRATIA PAYMENTS,Resources,"Grants, Contributions & Donations",A47005,0
London Borough of Sutton,08/03/2022,50121783,"5,100.00",Carshalton Boys Sports College (Academy),GRANTS & EX GRATIA PAYMENTS,Resources,"Grants, Contributions & Donations",A47005,0
London Borough of Sutton,28/02/2022,20019803,"1,405.00",Carter Jonas LLP,LEGAL & PROFESSIONAL SERVICES,Environment Housing and Neighbourhoods,Payments to Contractors,C14000,0
London Borough of Sutton,22/02/2022,20021179,585.36,Castle Water Ltd,UTILITIES,Health and Wellbeing,Water Services,A24005,0
London Borough of Sutton,20/12/2021,20021180,-544.49,Castle Water Ltd,UTILITIES,Health and Wellbeing,Water Services,A24005,0
London Borough of Sutton,08/03/2022,50122451,605.88,REDACTED - PERSONAL DATA,GRANTS & EX GRATIA PAYMENTS,Peoples Services,Place Funding,A56110,0
London Borough of Sutton,01/03/2022,20020293,956.97,Caysh Enterprise Cic,CHILDREN'S SERVICES - RESIDENTIAL,Peoples Services,Approved Lodgings,A61000,0
London Borough of Sutton,28/02/2022,20019686,"1,271.48",Caysh Housing Project,SOCIAL SERVICES RESIDENTIAL,Peoples Services,Approved Lodgings,A61000,0
London Borough of Sutton,28/02/2022,20019687,"1,345.40",Caysh Housing Project,SOCIAL SERVICES RESIDENTIAL,Peoples Services,Approved Lodgings,A61000,0
London Borough of Sutton,28/02/2022,20019688,"1,345.12",Caysh Housing Project,SOCIAL SERVICES RESIDENTIAL,Peoples Services,Miscellaneous Expenses,A49000,0
London Borough of Sutton,25/02/2022,20020050,599.04,Central & North West London Nhs Foundation Trust,SOCIAL SERVICES - OTHER,Health and Wellbeing,Provider Contract Payments,A44290,0
London Borough of Sutton,25/02/2022,20020052,"3,294.82",Central & North West London Nhs Foundation Trust,SOCIAL SERVICES - OTHER,Health and Wellbeing,Provider Contract Payments,A44290,0
London Borough of Sutton,01/02/2022,50124412,"5,242.72",Channels & Choices Theraputic Fostering Ltd,CHILDREN'S SERVICES - FOSTERING & ADOPTION SERVICES,Peoples Services,Foster Parents Support,A44110,0
London Borough of Sutton,01/03/2022,50130456,"5,804.44",Channels & Choices Theraputic Fostering Ltd,CHILDREN'S SERVICES - FOSTERING & ADOPTION SERVICES,Peoples Services,Foster Parents Support,A44110,0
London Borough of Sutton,18/03/2022,50127157,"3,850.40",Chase House Limited,SOCIAL SERVICES-HOME CARE,Peoples Services,Nursing Care - Ext Provider,A56025,0
London Borough of Sutton,18/03/2022,50127157,-750.40,Chase House Limited,SOCIAL SERVICES-HOME CARE,Peoples Services,Nursing Care - 3rd party top up payment,A56023,0
London Borough of Sutton,08/03/2022,50122337,856.74,Cheam Baptist Church Pre-School,GRANTS & EX GRATIA PAYMENTS,Peoples Services,Place Funding,A56110,0
London Borough of Sutton,08/03/2022,50122413,"10,898.41",Cheam Baptist Church Pre-School,GRANTS & EX GRATIA PAYMENTS,Peoples Services,Place Funding,A56110,0
London Borough of Sutton,08/03/2022,50121666,858.60,Cheam Common Infants School -ACADEMY,GRANTS & EX GRATIA PAYMENTS,Peoples Services,Early Years Pupil Premium,A60031,0
London Borough of Sutton,08/03/2022,50121694,"29,271.84",Cheam Common Infants School -ACADEMY,GRANTS & EX GRATIA PAYMENTS,Peoples Services,Payments to Schools,A51013,0
London Borough of Sutton,10/03/2022,50122850,602.66,Cheam Common Infants School -ACADEMY,GRANTS & EX GRATIA PAYMENTS,Non-Service Cost Centres,Recharge-Teaching Staff,A10600,0
London Borough of Sutton,10/03/2022,50122851,"3,150.00",Cheam Common Infants School -ACADEMY,GRANTS & EX GRATIA PAYMENTS,Non-Service Cost Centres,Recharge-Teaching Staff,A10600,0
London Borough of Sutton,10/03/2022,50122852,"1,034.99",Cheam Common Infants School -ACADEMY,GRANTS & EX GRATIA PAYMENTS,Non-Service Cost Centres,Recharge-Teaching Staff,A10600,0
London Borough of Sutton,17/03/2022,50125851,"8,395.47",Cheam Common Infants School -ACADEMY,GRANTS & EX GRATIA PAYMENTS,Non-Service Cost Centres,Recharge-Teaching Staff,A10600,0
London Borough of Sutton,22/03/2022,50127592,720.00,Cheam Common Infants School -ACADEMY,GRANTS & EX GRATIA PAYMENTS,Resources,"Grants, Contributions & Donations",A47005,0
London Borough of Sutton,08/03/2022,50121786,750.00,Cheam Common Junior Academy,GRANTS & EX GRATIA PAYMENTS,Resources,"Grants, Contributions & Donations",A47005,0
London Borough of Sutton,10/03/2022,50122849,"7,592.58",Cheam Common Junior Academy,GRANTS & EX GRATIA PAYMENTS,Non-Service Cost Centres,Recharge-Teaching Staff,A10600,0
London Borough of Sutton,22/03/2022,50127593,"1,530.00",Cheam Common Junior Academy,GRANTS & EX GRATIA PAYMENTS,Resources,"Grants, Contributions & Donations",A47005,0
London Borough of Sutton,29/03/2022,50130755,"4,152.56",Cheam Common Junior Academy,GRANTS & EX GRATIA PAYMENTS,Peoples Services,Payments to Schools,A51013,0
London Borough of Sutton,29/03/2022,50130756,"3,717.39",Cheam Common Junior Academy,GRANTS & EX GRATIA PAYMENTS,Peoples Services,Payments to Schools,A51013,0
London Borough of Sutton,30/03/2022,50131148,536.03,Cheam Common Junior Academy,GRANTS & EX GRATIA PAYMENTS,Non-Service Cost Centres,Recharge-Teaching Staff,A10600,0
London Borough of Sutton,08/03/2022,50121584,"3,212.00",Cheam High School (Academy),GRANTS & EX GRATIA PAYMENTS,Peoples Services,Pupil Growth,A51014,0
London Borough of Sutton,08/03/2022,50121603,"2,034.20",Cheam High School (Academy),GRANTS & EX GRATIA PAYMENTS,Peoples Services,Payments to Schools,A51013,0
London Borough of Sutton,08/03/2022,50121732,"7,230.00",Cheam High School (Academy),GRANTS & EX GRATIA PAYMENTS,Resources,"Grants, Contributions & Donations",A47005,0
London Borough of Sutton,08/03/2022,50121788,"3,615.00",Cheam High School (Academy),GRANTS & EX GRATIA PAYMENTS,Resources,"Grants, Contributions & Donations",A47005,0
London Borough of Sutton,08/03/2022,50121696,"15,752.88",Cheam Park Farm Primary School,GRANTS & EX GRATIA PAYMENTS,Peoples Services,Payments to Schools,A51013,0
London Borough of Sutton,08/03/2022,50121789,765.00,Cheam Park Farm Primary School,GRANTS & EX GRATIA PAYMENTS,Resources,"Grants, Contributions & Donations",A47005,0
London Borough of Sutton,10/03/2022,50122855,"6,313.01",Cheam Park Farm Primary School,GRANTS & EX GRATIA PAYMENTS,Non-Service Cost Centres,Recharge-Teaching Staff,A10600,0
London Borough of Sutton,10/03/2022,50122856,577.73,Cheam Park Farm Primary School,GRANTS & EX GRATIA PAYMENTS,Non-Service Cost Centres,Recharge-Teaching Staff,A10600,0
London Borough of Sutton,10/03/2022,50122857,600.00,Cheam Park Farm Primary School,GRANTS & EX GRATIA PAYMENTS,Non-Service Cost Centres,Recharge-Teaching Staff,A10600,0
London Borough of Sutton,17/03/2022,50125862,"2,151.10",Cheam Park Farm Primary School,GRANTS & EX GRATIA PAYMENTS,Non-Service Cost Centres,Recharge-Teaching Staff,A10600,0
London Borough of Sutton,22/03/2022,50127594,"1,530.00",Cheam Park Farm Primary School,GRANTS & EX GRATIA PAYMENTS,Resources,"Grants, Contributions & Donations",A47005,0
London Borough of Sutton,29/03/2022,50130769,556.00,Cheam Park Farm Primary School,GRANTS & EX GRATIA PAYMENTS,Peoples Services,Pupil Growth,A51014,0
London Borough of Sutton,29/03/2022,50130779,678.00,Cheam Park Farm Primary School,GRANTS & EX GRATIA PAYMENTS,Peoples Services,Pupil Growth,A51014,0
London Borough of Sutton,29/03/2022,50130797,"1,368.93",Cheam Park Farm Primary School,GRANTS & EX GRATIA PAYMENTS,Non-Service Cost Centres,Recharge-Teaching Staff,A10600,0
London Borough of Sutton,30/03/2022,50131149,"1,368.93",Cheam Park Farm Primary School,GRANTS & EX GRATIA PAYMENTS,Non-Service Cost Centres,Recharge-Teaching Staff,A10600,0
London Borough of Sutton,30/03/2022,50131151,629.03,Cheam Park Farm Primary School,GRANTS & EX GRATIA PAYMENTS,Non-Service Cost Centres,Recharge-Teaching Staff,A10600,0
London Borough of Sutton,30/03/2022,50131152,"2,498.13",Cheam Park Farm Primary School,GRANTS & EX GRATIA PAYMENTS,Non-Service Cost Centres,Recharge-Teaching Staff,A10600,0
London Borough of Sutton,18/03/2022,50126775,"2,535.14",Chegworth Nursing Home Bayswift Ltd,SOCIAL SERVICES RESIDENTIAL,Peoples Services,Nursing Care Short Term,A56026,0
London Borough of Sutton,18/03/2022,50126775,-509.20,Chegworth Nursing Home Bayswift Ltd,SOCIAL SERVICES RESIDENTIAL,Peoples Services,Nursing Care - 3rd party top up payment,A56023,0
London Borough of Sutton,18/03/2022,50126815,"3,736.00",Chegworth Nursing Home Bayswift Ltd,SOCIAL SERVICES RESIDENTIAL,Peoples Services,Nursing Care Short Term,A56026,0
London Borough of Sutton,18/03/2022,50126815,-750.40,Chegworth Nursing Home Bayswift Ltd,SOCIAL SERVICES RESIDENTIAL,Peoples Services,Nursing Care - 3rd party top up payment,A56023,0
London Borough of Sutton,18/03/2022,50126816,-632.64,Chegworth Nursing Home Bayswift Ltd,SOCIAL SERVICES RESIDENTIAL,Peoples Services,Nursing Care - 3rd party top up payment,A56023,0
London Borough of Sutton,18/03/2022,50126816,"3,800.00",Chegworth Nursing Home Bayswift Ltd,SOCIAL SERVICES RESIDENTIAL,Peoples Services,Nursing Care - Ext Provider,A56025,0
London Borough of Sutton,18/03/2022,50126817,"4,026.72",Chegworth Nursing Home Bayswift Ltd,SOCIAL SERVICES RESIDENTIAL,Peoples Services,Nursing Care - Ext Provider,A56025,0
London Borough of Sutton,18/03/2022,50126817,-750.40,Chegworth Nursing Home Bayswift Ltd,SOCIAL SERVICES RESIDENTIAL,Peoples Services,Nursing Care - 3rd party top up payment,A56023,0
London Borough of Sutton,18/03/2022,50126818,"3,736.00",Chegworth Nursing Home Bayswift Ltd,SOCIAL SERVICES RESIDENTIAL,Peoples Services,Nursing Care - Ext Provider,A56025,0
London Borough of Sutton,18/03/2022,50126818,-750.40,Chegworth Nursing Home Bayswift Ltd,SOCIAL SERVICES RESIDENTIAL,Peoples Services,Nursing Care - 3rd party top up payment,A56023,0
London Borough of Sutton,18/03/2022,50126854,"3,555.32",Chegworth Nursing Home Bayswift Ltd,SOCIAL SERVICES RESIDENTIAL,Peoples Services,Nursing Care - Ext Provider,A56025,0
London Borough of Sutton,18/03/2022,50126854,-632.64,Chegworth Nursing Home Bayswift Ltd,SOCIAL SERVICES RESIDENTIAL,Peoples Services,Nursing Care - 3rd party top up payment,A56023,0
London Borough of Sutton,18/03/2022,50126855,"2,800.00",Chegworth Nursing Home Bayswift Ltd,SOCIAL SERVICES RESIDENTIAL,Peoples Services,Nursing Care Short Term,A56026,0
London Borough of Sutton,18/03/2022,50126856,"3,736.00",Chegworth Nursing Home Bayswift Ltd,SOCIAL SERVICES RESIDENTIAL,Peoples Services,Respite Care,A56116,0
London Borough of Sutton,18/03/2022,50126856,-750.40,Chegworth Nursing Home Bayswift Ltd,SOCIAL SERVICES RESIDENTIAL,Peoples Services,Nursing Care - 3rd party top up payment,A56023,0
London Borough of Sutton,18/03/2022,50126892,"3,736.00",Chegworth Nursing Home Bayswift Ltd,SOCIAL SERVICES RESIDENTIAL,Peoples Services,Nursing Care - Ext Provider,A56025,0
London Borough of Sutton,18/03/2022,50126892,-750.40,Chegworth Nursing Home Bayswift Ltd,SOCIAL SERVICES RESIDENTIAL,Peoples Services,Nursing Care - 3rd party top up payment,A56023,0
London Borough of Sutton,18/03/2022,50126925,"3,736.00",Chegworth Nursing Home Bayswift Ltd,SOCIAL SERVICES RESIDENTIAL,Peoples Services,Nursing Care - Ext Provider,A56025,0
London Borough of Sutton,18/03/2022,50126925,-750.40,Chegworth Nursing Home Bayswift Ltd,SOCIAL SERVICES RESIDENTIAL,Peoples Services,Nursing Care - 3rd party top up payment,A56023,0
London Borough of Sutton,18/03/2022,50126996,-735.68,Chegworth Nursing Home Bayswift Ltd,SOCIAL SERVICES RESIDENTIAL,Peoples Services,Nursing Care - 3rd party top up payment,A56023,0
London Borough of Sutton,18/03/2022,50126996,"3,612.00",Chegworth Nursing Home Bayswift Ltd,SOCIAL SERVICES RESIDENTIAL,Peoples Services,Nursing Care - Ext Provider,A56025,0
London Borough of Sutton,18/03/2022,50126997,"4,000.00",Chegworth Nursing Home Bayswift Ltd,SOCIAL SERVICES RESIDENTIAL,Peoples Services,Nursing Care - Ext Provider,A56025,0
London Borough of Sutton,18/03/2022,50127036,-662.24,Chegworth Nursing Home Bayswift Ltd,SOCIAL SERVICES RESIDENTIAL,Peoples Services,Nursing Care - 3rd party top up payment,A56023,0
London Borough of Sutton,18/03/2022,50127036,"4,800.00",Chegworth Nursing Home Bayswift Ltd,SOCIAL SERVICES RESIDENTIAL,Peoples Services,Nursing Care Short Term,A56026,0
London Borough of Sutton,18/03/2022,50127037,"3,575.68",Chegworth Nursing Home Bayswift Ltd,SOCIAL SERVICES RESIDENTIAL,Peoples Services,Nursing Care - Ext Provider,A56025,0
London Borough of Sutton,18/03/2022,50127037,-735.68,Chegworth Nursing Home Bayswift Ltd,SOCIAL SERVICES RESIDENTIAL,Peoples Services,Nursing Care - 3rd party top up payment,A56023,0
London Borough of Sutton,18/03/2022,50127116,"3,555.32",Chegworth Nursing Home Bayswift Ltd,SOCIAL SERVICES RESIDENTIAL,Peoples Services,Nursing Care - Ext Provider,A56025,0
London Borough of Sutton,18/03/2022,50127116,-632.64,Chegworth Nursing Home Bayswift Ltd,SOCIAL SERVICES RESIDENTIAL,Peoples Services,Nursing Care - 3rd party top up payment,A56023,0
London Borough of Sutton,18/03/2022,50127159,"3,626.72",Chegworth Nursing Home Bayswift Ltd,SOCIAL SERVICES RESIDENTIAL,Peoples Services,Nursing Care Short Term,A56026,0
London Borough of Sutton,18/03/2022,50127159,-750.40,Chegworth Nursing Home Bayswift Ltd,SOCIAL SERVICES RESIDENTIAL,Peoples Services,Nursing Care - 3rd party top up payment,A56023,0
London Borough of Sutton,18/03/2022,50127160,"3,643.84",Chegworth Nursing Home Bayswift Ltd,SOCIAL SERVICES RESIDENTIAL,Peoples Services,Nursing Care - Ext Provider,A56025,0
London Borough of Sutton,18/03/2022,50127160,-735.68,Chegworth Nursing Home Bayswift Ltd,SOCIAL SERVICES RESIDENTIAL,Peoples Services,Nursing Care - 3rd party top up payment,A56023,0
London Borough of Sutton,28/02/2022,20019684,"6,028.78",Chelsea and Westminster NHS ft,SOCIAL SERVICES - OTHER,Health and Wellbeing,Provider Contract Payments,A44290,0
London Borough of Sutton,18/03/2022,50127015,"2,790.40",Cherry Lodge,SOCIAL SERVICES RESIDENTIAL,Peoples Services,Residential Care - Ext Provider,A56114,0
London Borough of Sutton,18/03/2022,50127015,-462.28,Cherry Lodge,SOCIAL SERVICES RESIDENTIAL,Peoples Services,Residential Care - Client Cont ( Net Paymt ),A56113,0
London Borough of Sutton,18/03/2022,50127057,"3,360.00",Cherry Lodge,SOCIAL SERVICES RESIDENTIAL,Peoples Services,Residential Care - Ext Provider,A56114,0
London Borough of Sutton,18/03/2022,50126846,"7,178.57",CHHG Ltd,SOCIAL SERVICES RESIDENTIAL,Peoples Services,Nursing Care - Ext Provider,A56025,0
London Borough of Sutton,18/03/2022,50126846,-804.00,CHHG Ltd,SOCIAL SERVICES RESIDENTIAL,Peoples Services,Nursing Care - 3rd party top up payment,A56023,0
London Borough of Sutton,18/03/2022,50126914,-735.68,CHHG Ltd,SOCIAL SERVICES RESIDENTIAL,Peoples Services,Nursing Care - 3rd party top up payment,A56023,0
London Borough of Sutton,18/03/2022,50126914,"3,812.00",CHHG Ltd,SOCIAL SERVICES RESIDENTIAL,Peoples Services,Nursing Care - Ext Provider,A56025,0
London Borough of Sutton,18/03/2022,50126955,"-4,055.83",CHHG Ltd,SOCIAL SERVICES RESIDENTIAL,Peoples Services,Nursing Care - Ext Provider,A56025,0
London Borough of Sutton,18/03/2022,50126955,632.64,CHHG Ltd,SOCIAL SERVICES RESIDENTIAL,Peoples Services,Nursing Care - 3rd party top up payment,A56023,0
London Borough of Sutton,01/03/2022,20020497,"1,047.00",Childcare and Learning (Cranbrook) Limited,CHILDREN'S SERVICES - DAY CARE,Peoples Services,C.C.A Daycare & Playschemes,A61005,0
London Borough of Sutton,01/02/2022,50124378,"3,096.00",Children of Colour,CHILDREN'S SERVICES - FOSTERING & ADOPTION SERVICES,Peoples Services,Foster Parents Support,A44110,0
London Borough of Sutton,01/02/2022,50124379,"3,017.60",Children of Colour,CHILDREN'S SERVICES - FOSTERING & ADOPTION SERVICES,Peoples Services,Foster Parents Support,A44110,0
London Borough of Sutton,07/02/2022,50124359,"14,697.76",Children's Trust,CHILDREN'S SERVICES - DAY CARE,Peoples Services,Residential Care-Children,A56115,0
London Borough of Sutton,04/03/2022,50130455,"16,272.52",Children's Trust,CHILDREN'S SERVICES - DAY CARE,Peoples Services,Residential Care-Children,A56115,0
London Borough of Sutton,08/03/2022,50122414,"2,882.88",Chiltern Day Nursery,GRANTS & EX GRATIA PAYMENTS,Peoples Services,Place Funding,A56110,0
London Borough of Sutton,18/03/2022,50126905,"7,526.32",Choice Care Group (Surrey) Ltd,SOCIAL SERVICES RESIDENTIAL,Peoples Services,Residential Care - Ext Provider,A56114,0
London Borough of Sutton,18/03/2022,50126906,"7,511.00",Choice Care Group (Surrey) Ltd,SOCIAL SERVICES RESIDENTIAL,Peoples Services,Residential Care - Ext Provider,A56114,0
London Borough of Sutton,18/03/2022,50126906,-356.80,Choice Care Group (Surrey) Ltd,SOCIAL SERVICES RESIDENTIAL,Peoples Services,Residential Care - Client Cont ( Net Paymt ),A56113,0
London Borough of Sutton,18/03/2022,50126983,"7,240.00",Choice Care Group (Surrey) Ltd,SOCIAL SERVICES RESIDENTIAL,Peoples Services,Residential Care - Ext Provider,A56114,0
London Borough of Sutton,18/03/2022,50127018,"8,368.28",Choice Care Group (Surrey) Ltd,SOCIAL SERVICES RESIDENTIAL,Peoples Services,Residential Care - Ext Provider,A56114,0
London Borough of Sutton,31/08/2021,20018670,"1,544.28",Choice Support,GRANTS & EX GRATIA PAYMENTS,Peoples Services,Building Rents,A22005,0
London Borough of Sutton,24/02/2022,50120520,"3,114.76",Choice Support,GRANTS & EX GRATIA PAYMENTS,Peoples Services,Supported Living,A56088,0
London Borough of Sutton,24/02/2022,50120520,"2,724.48",Choice Support,GRANTS & EX GRATIA PAYMENTS,Peoples Services,Supported Living,A56088,0
London Borough of Sutton,24/02/2022,50120520,215.88,Choice Support,GRANTS & EX GRATIA PAYMENTS,Peoples Services,Supported Living,A56088,0
London Borough of Sutton,24/02/2022,50120520,572.48,Choice Support,GRANTS & EX GRATIA PAYMENTS,Peoples Services,Supported Living,A56088,0
London Borough of Sutton,24/02/2022,50120521,"5,077.68",Choice Support,GRANTS & EX GRATIA PAYMENTS,Peoples Services,Supported Living,A56088,0
London Borough of Sutton,24/02/2022,50120521,801.48,Choice Support,GRANTS & EX GRATIA PAYMENTS,Peoples Services,Supported Living,A56088,0
London Borough of Sutton,24/02/2022,50120522,"5,504.08",Choice Support,GRANTS & EX GRATIA PAYMENTS,Peoples Services,Supported Living,A56088,0
London Borough of Sutton,24/02/2022,50120522,215.88,Choice Support,GRANTS & EX GRATIA PAYMENTS,Peoples Services,Supported Living,A56088,0
London Borough of Sutton,24/02/2022,50120522,572.48,Choice Support,GRANTS & EX GRATIA PAYMENTS,Peoples Services,Supported Living,A56088,0
London Borough of Sutton,24/02/2022,50120524,"5,058.08",Choice Support,GRANTS & EX GRATIA PAYMENTS,Peoples Services,Supported Living,A56088,0
London Borough of Sutton,24/02/2022,50120524,801.48,Choice Support,GRANTS & EX GRATIA PAYMENTS,Peoples Services,Supported Living,A56088,0
London Borough of Sutton,24/02/2022,50120526,801.48,Choice Support,GRANTS & EX GRATIA PAYMENTS,Peoples Services,Supported Living,A56088,0
London Borough of Sutton,24/02/2022,50120526,"4,336.80",Choice Support,GRANTS & EX GRATIA PAYMENTS,Peoples Services,Supported Living,A56088,0
London Borough of Sutton,24/02/2022,50120530,"2,448.00",Choice Support,GRANTS & EX GRATIA PAYMENTS,Peoples Services,Supported Living,A56088,0
London Borough of Sutton,24/02/2022,50120530,"1,406.60",Choice Support,GRANTS & EX GRATIA PAYMENTS,Peoples Services,Supported Living,A56088,0
London Borough of Sutton,24/02/2022,50120530,215.88,Choice Support,GRANTS & EX GRATIA PAYMENTS,Peoples Services,Supported Living,A56088,0
London Borough of Sutton,24/02/2022,50120530,572.48,Choice Support,GRANTS & EX GRATIA PAYMENTS,Peoples Services,Supported Living,A56088,0
London Borough of Sutton,24/02/2022,50120531,"5,995.52",Choice Support,GRANTS & EX GRATIA PAYMENTS,Peoples Services,Supported Living,A56088,0
London Borough of Sutton,24/02/2022,50120531,801.48,Choice Support,GRANTS & EX GRATIA PAYMENTS,Peoples Services,Supported Living,A56088,0
London Borough of Sutton,24/02/2022,50120537,"2,032.36",Choice Support,GRANTS & EX GRATIA PAYMENTS,Peoples Services,Supported Living,A56088,0
London Borough of Sutton,24/02/2022,50120537,"1,308.16",Choice Support,GRANTS & EX GRATIA PAYMENTS,Peoples Services,Supported Living,A56088,0
London Borough of Sutton,24/02/2022,50120537,215.88,Choice Support,GRANTS & EX GRATIA PAYMENTS,Peoples Services,Supported Living,A56088,0
London Borough of Sutton,24/02/2022,50120537,572.48,Choice Support,GRANTS & EX GRATIA PAYMENTS,Peoples Services,Supported Living,A56088,0
London Borough of Sutton,24/02/2022,50120538,"1,475.12",Choice Support,GRANTS & EX GRATIA PAYMENTS,Peoples Services,Supported Living,A56088,0
London Borough of Sutton,24/02/2022,50120538,"1,537.80",Choice Support,GRANTS & EX GRATIA PAYMENTS,Peoples Services,Supported Living,A56088,0
London Borough of Sutton,24/02/2022,50120538,215.88,Choice Support,GRANTS & EX GRATIA PAYMENTS,Peoples Services,Supported Living,A56088,0
London Borough of Sutton,24/02/2022,50120538,572.48,Choice Support,GRANTS & EX GRATIA PAYMENTS,Peoples Services,Supported Living,A56088,0
London Borough of Sutton,18/03/2022,50126848,"5,509.00",Choice Support,GRANTS & EX GRATIA PAYMENTS,Peoples Services,Residential Care - Ext Provider,A56114,0
London Borough of Sutton,21/03/2022,50127611,"1,688.52",Choice Support,GRANTS & EX GRATIA PAYMENTS,Peoples Services,Supported Living,A56088,0
London Borough of Sutton,21/03/2022,50127611,"2,420.12",Choice Support,GRANTS & EX GRATIA PAYMENTS,Peoples Services,Supported Living,A56088,0
London Borough of Sutton,21/03/2022,50127617,"1,192.52",Choice Support,GRANTS & EX GRATIA PAYMENTS,Peoples Services,Supported Living,A56088,0
London Borough of Sutton,21/03/2022,50127617,"2,946.24",Choice Support,GRANTS & EX GRATIA PAYMENTS,Peoples Services,Supported Living,A56088,0
London Borough of Sutton,21/03/2022,50127618,"1,697.82",Choice Support,GRANTS & EX GRATIA PAYMENTS,Peoples Services,Supported Living,A56088,0
London Borough of Sutton,21/03/2022,50127618,"2,490.28",Choice Support,GRANTS & EX GRATIA PAYMENTS,Peoples Services,Supported Living,A56088,0
London Borough of Sutton,21/03/2022,50127619,"1,697.82",Choice Support,GRANTS & EX GRATIA PAYMENTS,Peoples Services,Supported Living,A56088,0
London Borough of Sutton,21/03/2022,50127619,"5,191.00",Choice Support,GRANTS & EX GRATIA PAYMENTS,Peoples Services,Supported Living,A56088,0
London Borough of Sutton,21/03/2022,50127620,574.87,Choice Support,GRANTS & EX GRATIA PAYMENTS,Peoples Services,Supported Living,A56088,0
London Borough of Sutton,21/03/2022,50127620,"3,675.10",Choice Support,GRANTS & EX GRATIA PAYMENTS,Peoples Services,Supported Living,A56088,0
London Borough of Sutton,21/03/2022,50127628,484.53,Choice Support,GRANTS & EX GRATIA PAYMENTS,Peoples Services,Supported Living,A56088,0
London Borough of Sutton,21/03/2022,50127628,128.39,Choice Support,GRANTS & EX GRATIA PAYMENTS,Peoples Services,Supported Living,A56088,0
London Borough of Sutton,21/03/2022,50127628,"1,651.99",Choice Support,GRANTS & EX GRATIA PAYMENTS,Peoples Services,Supported Living,A56088,0
London Borough of Sutton,21/03/2022,50127628,"2,349.98",Choice Support,GRANTS & EX GRATIA PAYMENTS,Peoples Services,Supported Living,A56088,0
London Borough of Sutton,21/03/2022,50127629,949.92,Choice Support,GRANTS & EX GRATIA PAYMENTS,Peoples Services,Supported Living,A56088,0
London Borough of Sutton,21/03/2022,50127629,"6,281.76",Choice Support,GRANTS & EX GRATIA PAYMENTS,Peoples Services,Supported Living,A56088,0
London Borough of Sutton,21/03/2022,50127630,484.53,Choice Support,GRANTS & EX GRATIA PAYMENTS,Peoples Services,Supported Living,A56088,0
London Borough of Sutton,21/03/2022,50127630,128.39,Choice Support,GRANTS & EX GRATIA PAYMENTS,Peoples Services,Supported Living,A56088,0
London Borough of Sutton,21/03/2022,50127630,"1,616.91",Choice Support,GRANTS & EX GRATIA PAYMENTS,Peoples Services,Supported Living,A56088,0
London Borough of Sutton,21/03/2022,50127630,"2,285.45",Choice Support,GRANTS & EX GRATIA PAYMENTS,Peoples Services,Supported Living,A56088,0
London Borough of Sutton,21/03/2022,50127631,446.14,Choice Support,GRANTS & EX GRATIA PAYMENTS,Peoples Services,Supported Living,A56088,0
London Borough of Sutton,21/03/2022,50127631,"5,728.36",Choice Support,GRANTS & EX GRATIA PAYMENTS,Peoples Services,Supported Living,A56088,0
London Borough of Sutton,21/03/2022,50127635,"1,697.82",Choice Support,GRANTS & EX GRATIA PAYMENTS,Peoples Services,Supported Living,A56088,0
London Borough of Sutton,21/03/2022,50127635,"3,145.83",Choice Support,GRANTS & EX GRATIA PAYMENTS,Peoples Services,Supported Living,A56088,0
London Borough of Sutton,21/03/2022,50127639,"3,182.02",Choice Support,GRANTS & EX GRATIA PAYMENTS,Peoples Services,Supported Living,A56088,0
London Borough of Sutton,21/03/2022,50127640,"1,616.96",Choice Support,GRANTS & EX GRATIA PAYMENTS,Peoples Services,Supported Living,A56088,0
London Borough of Sutton,21/03/2022,50127643,"1,688.52",Choice Support,GRANTS & EX GRATIA PAYMENTS,Peoples Services,Supported Living,A56088,0
London Borough of Sutton,21/03/2022,50127643,"4,068.62",Choice Support,GRANTS & EX GRATIA PAYMENTS,Peoples Services,Supported Living,A56088,0
London Borough of Sutton,21/03/2022,50127644,872.47,Choice Support,GRANTS & EX GRATIA PAYMENTS,Peoples Services,Supported Living,A56088,0
London Borough of Sutton,21/03/2022,50127644,"4,068.62",Choice Support,GRANTS & EX GRATIA PAYMENTS,Peoples Services,Supported Living,A56088,0
London Borough of Sutton,21/03/2022,50127645,"3,437.28",Choice Support,GRANTS & EX GRATIA PAYMENTS,Peoples Services,Supported Living,A56088,0
London Borough of Sutton,21/03/2022,50127654,"1,697.82",Choice Support,GRANTS & EX GRATIA PAYMENTS,Peoples Services,Supported Living,A56088,0
London Borough of Sutton,21/03/2022,50127654,"3,156.68",Choice Support,GRANTS & EX GRATIA PAYMENTS,Peoples Services,Supported Living,A56088,0
London Borough of Sutton,21/03/2022,50127655,"1,688.52",Choice Support,GRANTS & EX GRATIA PAYMENTS,Peoples Services,Supported Living,A56088,0
London Borough of Sutton,21/03/2022,50127655,"3,402.20",Choice Support,GRANTS & EX GRATIA PAYMENTS,Peoples Services,Supported Living,A56088,0
London Borough of Sutton,21/03/2022,50127667,"1,616.96",Choice Support,GRANTS & EX GRATIA PAYMENTS,Peoples Services,Supported Living,A56088,0
London Borough of Sutton,21/03/2022,50127668,"3,277.76",Choice Support,GRANTS & EX GRATIA PAYMENTS,Peoples Services,Supported Living,A56088,0
London Borough of Sutton,21/03/2022,50127669,"1,688.52",Choice Support,GRANTS & EX GRATIA PAYMENTS,Peoples Services,Supported Living,A56088,0
London Borough of Sutton,21/03/2022,50127669,"2,951.43",Choice Support,GRANTS & EX GRATIA PAYMENTS,Peoples Services,Supported Living,A56088,0
London Borough of Sutton,21/03/2022,50127670,484.53,Choice Support,GRANTS & EX GRATIA PAYMENTS,Peoples Services,Supported Living,A56088,0
London Borough of Sutton,21/03/2022,50127670,117.88,Choice Support,GRANTS & EX GRATIA PAYMENTS,Peoples Services,Supported Living,A56088,0
London Borough of Sutton,21/03/2022,50127670,"2,400.46",Choice Support,GRANTS & EX GRATIA PAYMENTS,Peoples Services,Supported Living,A56088,0
London Borough of Sutton,21/03/2022,50127670,"1,830.78",Choice Support,GRANTS & EX GRATIA PAYMENTS,Peoples Services,Supported Living,A56088,0
London Borough of Sutton,21/03/2022,50127671,872.47,Choice Support,GRANTS & EX GRATIA PAYMENTS,Peoples Services,Supported Living,A56088,0
London Borough of Sutton,21/03/2022,50127671,"1,431.04",Choice Support,GRANTS & EX GRATIA PAYMENTS,Peoples Services,Supported Living,A56088,0
London Borough of Sutton,21/03/2022,50127671,"2,791.91",Choice Support,GRANTS & EX GRATIA PAYMENTS,Peoples Services,Supported Living,A56088,0
London Borough of Sutton,21/03/2022,50127672,484.53,Choice Support,GRANTS & EX GRATIA PAYMENTS,Peoples Services,Supported Living,A56088,0
London Borough of Sutton,21/03/2022,50127672,117.88,Choice Support,GRANTS & EX GRATIA PAYMENTS,Peoples Services,Supported Living,A56088,0
London Borough of Sutton,21/03/2022,50127672,"1,881.44",Choice Support,GRANTS & EX GRATIA PAYMENTS,Peoples Services,Supported Living,A56088,0
London Borough of Sutton,21/03/2022,50127672,"2,112.42",Choice Support,GRANTS & EX GRATIA PAYMENTS,Peoples Services,Supported Living,A56088,0
London Borough of Sutton,21/03/2022,50127681,484.53,Choice Support,GRANTS & EX GRATIA PAYMENTS,Peoples Services,Supported Living,A56088,0
London Borough of Sutton,21/03/2022,50127681,128.39,Choice Support,GRANTS & EX GRATIA PAYMENTS,Peoples Services,Supported Living,A56088,0
London Borough of Sutton,21/03/2022,50127681,"1,626.03",Choice Support,GRANTS & EX GRATIA PAYMENTS,Peoples Services,Supported Living,A56088,0
London Borough of Sutton,21/03/2022,50127681,"2,314.90",Choice Support,GRANTS & EX GRATIA PAYMENTS,Peoples Services,Supported Living,A56088,0
London Borough of Sutton,21/03/2022,50127682,"1,697.82",Choice Support,GRANTS & EX GRATIA PAYMENTS,Peoples Services,Supported Living,A56088,0
London Borough of Sutton,21/03/2022,50127682,"3,206.51",Choice Support,GRANTS & EX GRATIA PAYMENTS,Peoples Services,Supported Living,A56088,0
London Borough of Sutton,21/03/2022,50127683,484.53,Choice Support,GRANTS & EX GRATIA PAYMENTS,Peoples Services,Supported Living,A56088,0
London Borough of Sutton,21/03/2022,50127683,128.39,Choice Support,GRANTS & EX GRATIA PAYMENTS,Peoples Services,Supported Living,A56088,0
London Borough of Sutton,21/03/2022,50127683,"1,599.37",Choice Support,GRANTS & EX GRATIA PAYMENTS,Peoples Services,Supported Living,A56088,0
London Borough of Sutton,21/03/2022,50127683,"2,069.38",Choice Support,GRANTS & EX GRATIA PAYMENTS,Peoples Services,Supported Living,A56088,0
London Borough of Sutton,08/03/2022,50122338,"5,029.63",Christchurch Fledgelings Pre-School,GRANTS & EX GRATIA PAYMENTS,Peoples Services,Place Funding,A56110,0
London Borough of Sutton,08/03/2022,50122415,"9,528.48",Christchurch Fledgelings Pre-School,GRANTS & EX GRATIA PAYMENTS,Peoples Services,Place Funding,A56110,0
London Borough of Sutton,28/02/2022,20019794,"2,600.00",Chroma Vision Limited,AGRICULTURAL & ESTATE SERVICES,Environment Housing and Neighbourhoods,CCTV Rapid Deployment Cameras,A45035,0
London Borough of Sutton,18/01/2022,20020164,"2,437.50",CIPFA Business Limited,CONFERENCES,Resources,Legal Services,A44025,0
London Borough of Sutton,13/12/2021,20020198,"4,181.80",CIPFA Business Limited,CONFERENCES,Resources,Legal Services,A44025,0
London Borough of Sutton,13/12/2021,20020540,"1,950.00",CIPFA Business Limited,CONFERENCES,Resources,Legal Services,A44025,0
London Borough of Sutton,13/12/2021,20020540,"1,462.50",CIPFA Business Limited,CONFERENCES,Resources,Legal Services,A44025,0
London Borough of Sutton,13/12/2021,20020540,"2,437.50",CIPFA Business Limited,CONFERENCES,Resources,Legal Services,A44025,0
London Borough of Sutton,08/03/2022,50121690,"17,267.58",Barrow Hedges Primary School Academy,GRANTS & EX GRATIA PAYMENTS,Peoples Services,Payments to Schools,A51013,0
London Borough of Sutton,08/03/2022,50121726,"1,800.00",Barrow Hedges Primary School Academy,GRANTS & EX GRATIA PAYMENTS,Resources,"Grants, Contributions & Donations",A47005,0
London Borough of Sutton,08/03/2022,50121778,885.00,Barrow Hedges Primary School Academy,GRANTS & EX GRATIA PAYMENTS,Resources,"Grants, Contributions & Donations",A47005,0
London Borough of Sutton,14/03/2022,50125745,"1,030.00",Barrow Hedges Primary School Academy,GRANTS & EX GRATIA PAYMENTS,Peoples Services,Top-up Funding,A51016,0
London Borough of Sutton,29/03/2022,50130764,657.00,Barrow Hedges Primary School Academy,GRANTS & EX GRATIA PAYMENTS,Peoples Services,Pupil Growth,A51014,0
London Borough of Sutton,24/02/2022,20019899,"2,381.50",City & Guilds,SUBSCRIPTIONS & PUBLICATIONS,Health and Wellbeing,Examination Fees,A44200,0
London Borough of Sutton,02/03/2022,20020079,"3,638.66",City of London Corporation,CENTRAL & LOCAL GOVERNMENT,Environment Housing and Neighbourhoods,Hazardous Waste Disposal,A56069,0
London Borough of Sutton,28/02/2022,20020104,"1,750.00",City Sprint UK (Excel) Ltd,DELIVERY AND COURIER SERVICES,Health and Wellbeing,Hire of Transport - Non Staff,A32000,0
London Borough of Sutton,01/03/2022,20020106,"12,181.00",Cityglen Ltd,ACCOMMODATION BED & BREAKFAST,Environment Housing and Neighbourhoods,Bed & Breakfast,A56000,0
London Borough of Sutton,18/03/2022,50126844,"9,740.29",Claremont Care Svs Ltd,SOCIAL SERVICES RESIDENTIAL,Peoples Services,Nursing Care - Ext Provider,A56025,0
London Borough of Sutton,18/03/2022,50126844,"-1,956.40",Claremont Care Svs Ltd,SOCIAL SERVICES RESIDENTIAL,Peoples Services,Nursing Care - 3rd party top up payment,A56023,0
London Borough of Sutton,18/03/2022,50126845,-974.00,Claremont Care Svs Ltd,SOCIAL SERVICES RESIDENTIAL,Peoples Services,Nursing Care - 3rd party top up payment,A56023,0
London Borough of Sutton,18/03/2022,50126845,"4,374.00",Claremont Care Svs Ltd,SOCIAL SERVICES RESIDENTIAL,Peoples Services,Nursing Care - Ext Provider,A56025,0
London Borough of Sutton,18/03/2022,50126845,-632.64,Claremont Care Svs Ltd,SOCIAL SERVICES RESIDENTIAL,Peoples Services,Nursing Care - 3rd party top up payment,A56023,0
London Borough of Sutton,18/03/2022,50126886,"4,388.56",Claremont Care Svs Ltd,SOCIAL SERVICES RESIDENTIAL,Peoples Services,Nursing Care - Ext Provider,A56025,0
London Borough of Sutton,18/03/2022,50126886,-750.40,Claremont Care Svs Ltd,SOCIAL SERVICES RESIDENTIAL,Peoples Services,Nursing Care - 3rd party top up payment,A56023,0
London Borough of Sutton,18/03/2022,50126912,"3,736.00",Claremont Care Svs Ltd,SOCIAL SERVICES RESIDENTIAL,Peoples Services,Nursing Care - Ext Provider,A56025,0
London Borough of Sutton,18/03/2022,50126912,-750.40,Claremont Care Svs Ltd,SOCIAL SERVICES RESIDENTIAL,Peoples Services,Nursing Care - 3rd party top up payment,A56023,0
London Borough of Sutton,18/03/2022,50126951,"6,279.72",Claremont Care Svs Ltd,SOCIAL SERVICES RESIDENTIAL,Peoples Services,Nursing Care - Ext Provider,A56025,0
London Borough of Sutton,18/03/2022,50126951,-750.40,Claremont Care Svs Ltd,SOCIAL SERVICES RESIDENTIAL,Peoples Services,Nursing Care - 3rd party top up payment,A56023,0
London Borough of Sutton,18/03/2022,50126985,-735.68,Claremont Care Svs Ltd,SOCIAL SERVICES RESIDENTIAL,Peoples Services,Nursing Care - 3rd party top up payment,A56023,0
London Borough of Sutton,18/03/2022,50126985,"5,200.00",Claremont Care Svs Ltd,SOCIAL SERVICES RESIDENTIAL,Peoples Services,Nursing Care - Ext Provider,A56025,0
London Borough of Sutton,18/03/2022,50126749,-735.68,Clarendon Nursing Home,SOCIAL SERVICES RESIDENTIAL,Peoples Services,Nursing Care - 3rd party top up payment,A56023,0
London Borough of Sutton,18/03/2022,50126749,"3,612.00",Clarendon Nursing Home,SOCIAL SERVICES RESIDENTIAL,Peoples Services,Nursing Care - Ext Provider,A56025,0
London Borough of Sutton,16/02/2022,50120806,750.00,Classroom Teachers Ltd,ACADEMIC INSTNS - OTHER,Peoples Services,Independent School Fees,A56002,0
London Borough of Sutton,19/01/2022,50120823,"1,350.00",Classroom Teachers Ltd,ACADEMIC INSTNS - OTHER,Peoples Services,Independent School Fees,A56002,0
London Borough of Sutton,09/03/2022,50125734,750.00,Classroom Teachers Ltd,ACADEMIC INSTNS - OTHER,Peoples Services,Independent School Fees,A56002,0
London Borough of Sutton,16/03/2022,50129840,750.00,Classroom Teachers Ltd,ACADEMIC INSTNS - OTHER,Peoples Services,Independent School Fees,A56002,0
London Borough of Sutton,23/03/2022,50131089,750.00,Classroom Teachers Ltd,ACADEMIC INSTNS - OTHER,Peoples Services,Independent School Fees,A56002,0
London Borough of Sutton,28/02/2022,50120523,"6,333.60",Clear Thinking Care Limited,SOCIAL SERVICES RESIDENTIAL,Peoples Services,Supported Living,A56088,0
London Borough of Sutton,28/02/2022,20020072,"1,235.00",Clemlec Group LTD,BUILDING MNTCE - SERVICES,Environment Housing and Neighbourhoods,Grants Given For Capital Purposes,C20004,0
London Borough of Sutton,27/02/2022,50120695,834.50,Clovecare Ltd,SOCIAL SERVICES RESIDENTIAL,Peoples Services,Home Care Services,A56019,0
London Borough of Sutton,27/02/2022,50120695,37.50,Clovecare Ltd,SOCIAL SERVICES RESIDENTIAL,Peoples Services,Home Care Services,A56019,0
London Borough of Sutton,27/02/2022,50120733,597.00,Clovecare Ltd,SOCIAL SERVICES RESIDENTIAL,Peoples Services,Home Care Services,A56019,0
London Borough of Sutton,06/03/2022,50124604,834.50,Clovecare Ltd,SOCIAL SERVICES RESIDENTIAL,Peoples Services,Home Care Services,A56019,0
London Borough of Sutton,06/03/2022,50124604,37.50,Clovecare Ltd,SOCIAL SERVICES RESIDENTIAL,Peoples Services,Home Care Services,A56019,0
London Borough of Sutton,06/03/2022,50124634,597.00,Clovecare Ltd,SOCIAL SERVICES RESIDENTIAL,Peoples Services,Home Care Services,A56019,0
London Borough of Sutton,13/03/2022,50127356,597.00,Clovecare Ltd,SOCIAL SERVICES RESIDENTIAL,Peoples Services,Home Care Services,A56019,0
London Borough of Sutton,13/03/2022,50127392,834.50,Clovecare Ltd,SOCIAL SERVICES RESIDENTIAL,Peoples Services,Home Care Services,A56019,0
London Borough of Sutton,13/03/2022,50127392,37.50,Clovecare Ltd,SOCIAL SERVICES RESIDENTIAL,Peoples Services,Home Care Services,A56019,0
London Borough of Sutton,17/03/2022,50131115,950.00,Clovecare Ltd,SOCIAL SERVICES RESIDENTIAL,Peoples Services,Home Care Services,A56019,0
London Borough of Sutton,18/03/2022,50127031,"3,094.00",Cloyda Limited,SOCIAL SERVICES RESIDENTIAL,Peoples Services,Residential Care - Ext Provider,A56114,0
London Borough of Sutton,18/03/2022,50126755,"4,080.72",Coast Care Homes Ltd,SOCIAL SERVICES RESIDENTIAL,Peoples Services,Residential Care - Ext Provider,A56114,0
London Borough of Sutton,01/02/2022,50120362,"1,632.12",Cognithan Ltd,SOCIAL SERVICES RESIDENTIAL,Peoples Services,Supported Living,A56088,0
London Borough of Sutton,18/03/2022,50126753,"5,045.80",Cognithan Ltd,SOCIAL SERVICES RESIDENTIAL,Peoples Services,Residential Care - Ext Provider,A56114,0
London Borough of Sutton,02/02/2022,20018752,"36,320.00",Cognus Ltd,LEGAL & PROFESSIONAL SERVICES,Peoples Services,Independent School Fees,A56002,0
London Borough of Sutton,11/02/2022,20018806,"1,333.00",Cognus Ltd,LEGAL & PROFESSIONAL SERVICES,Peoples Services,Consultancy Services,A56007,0
London Borough of Sutton,11/02/2022,20018806,"1,333.00",Cognus Ltd,LEGAL & PROFESSIONAL SERVICES,Peoples Services,Consultancy Services,A56007,0
London Borough of Sutton,11/02/2022,20018806,"1,333.00",Cognus Ltd,LEGAL & PROFESSIONAL SERVICES,Peoples Services,Consultancy Services,A56007,0
London Borough of Sutton,11/02/2022,20018806,"1,333.00",Cognus Ltd,LEGAL & PROFESSIONAL SERVICES,Peoples Services,Consultancy Services,A56007,0
London Borough of Sutton,11/02/2022,20018806,"1,334.00",Cognus Ltd,LEGAL & PROFESSIONAL SERVICES,Peoples Services,Consultancy Services,A56007,0
London Borough of Sutton,11/02/2022,20018806,"1,334.00",Cognus Ltd,LEGAL & PROFESSIONAL SERVICES,Peoples Services,Consultancy Services,A56007,0
London Borough of Sutton,04/03/2022,20020434,"267,791.67",Cognus Ltd,LEGAL & PROFESSIONAL SERVICES,Peoples Services,Special Educational Needs,A51015,0
London Borough of Sutton,15/03/2022,20020972,"100,000.00",Cognus Ltd,LEGAL & PROFESSIONAL SERVICES,Peoples Services,Consultancy Services,A56007,0
London Borough of Sutton,21/03/2022,20021271,"-207,361.32",Cognus Ltd,LEGAL & PROFESSIONAL SERVICES,Peoples Services,Consultancy Services,A56007,0
London Borough of Sutton,21/03/2022,20021271,"-213,735.90",Cognus Ltd,LEGAL & PROFESSIONAL SERVICES,Peoples Services,Consultancy Services,A56007,0
London Borough of Sutton,21/03/2022,20021272,"-207,361.32",Cognus Ltd,LEGAL & PROFESSIONAL SERVICES,Peoples Services,Consultancy Services,A56007,0
London Borough of Sutton,21/03/2022,20021272,"-213,735.90",Cognus Ltd,LEGAL & PROFESSIONAL SERVICES,Peoples Services,Consultancy Services,A56007,0
London Borough of Sutton,22/03/2022,20021281,"32,600.00",Cognus Ltd,LEGAL & PROFESSIONAL SERVICES,Peoples Services,Consultancy Services,A56007,0
London Borough of Sutton,22/03/2022,20021292,"55,922.00",Cognus Ltd,LEGAL & PROFESSIONAL SERVICES,Peoples Services,Consultancy Services,A56007,0
London Borough of Sutton,22/03/2022,20021340,"5,934.20",Cognus Ltd,LEGAL & PROFESSIONAL SERVICES,Peoples Services,Consultancy Services,A56007,0
London Borough of Sutton,21/03/2022,20021405,"207,375.00",Cognus Ltd,LEGAL & PROFESSIONAL SERVICES,Peoples Services,Consultancy Services,A56007,0
London Borough of Sutton,21/03/2022,20021405,"213,750.00",Cognus Ltd,LEGAL & PROFESSIONAL SERVICES,Peoples Services,Consultancy Services,A56007,0
London Borough of Sutton,21/03/2022,20021406,"207,375.00",Cognus Ltd,LEGAL & PROFESSIONAL SERVICES,Peoples Services,Consultancy Services,A56007,0
London Borough of Sutton,21/03/2022,20021406,"213,750.00",Cognus Ltd,LEGAL & PROFESSIONAL SERVICES,Peoples Services,Consultancy Services,A56007,0
London Borough of Sutton,09/12/2021,20021844,"207,375.00",Cognus Ltd,LEGAL & PROFESSIONAL SERVICES,Peoples Services,Consultancy Services,A56007,0
London Borough of Sutton,09/12/2021,20021844,"213,750.00",Cognus Ltd,LEGAL & PROFESSIONAL SERVICES,Peoples Services,Consultancy Services,A56007,0
London Borough of Sutton,01/03/2022,20021845,"207,375.00",Cognus Ltd,LEGAL & PROFESSIONAL SERVICES,Peoples Services,Consultancy Services,A56007,0
London Borough of Sutton,01/03/2022,20021845,"213,750.00",Cognus Ltd,LEGAL & PROFESSIONAL SERVICES,Peoples Services,Consultancy Services,A56007,0
London Borough of Sutton,01/02/2022,20021846,"207,375.00",Cognus Ltd,LEGAL & PROFESSIONAL SERVICES,Peoples Services,Consultancy Services,A56007,0
London Borough of Sutton,01/02/2022,20021846,"213,750.00",Cognus Ltd,LEGAL & PROFESSIONAL SERVICES,Peoples Services,Consultancy Services,A56007,0
London Borough of Sutton,30/03/2022,20021887,"10,000.00",Cognus Ltd,LEGAL & PROFESSIONAL SERVICES,Peoples Services,Predictable Needs funding,A56125,0
London Borough of Sutton,30/03/2022,20021888,"10,000.00",Cognus Ltd,LEGAL & PROFESSIONAL SERVICES,Peoples Services,Predictable Needs funding,A56125,0
London Borough of Sutton,08/03/2022,50122416,"13,614.48",Collingwood School Ltd,GRANTS & EX GRATIA PAYMENTS,Peoples Services,Place Funding,A56110,0
London Borough of Sutton,28/03/2022,50128015,"3,150.00",Come and Play Childcare Ltd,CHILDREN'S SERVICES - DAY CARE,Peoples Services,Other Supplies & Services,A44291,0
London Borough of Sutton,28/02/2022,20019762,"5,000.00",Community Action Sutton,GRANTS & EX GRATIA PAYMENTS,Resources,Subscriptions,A47010,0
London Borough of Sutton,22/03/2022,20021384,"94,842.00",Community Catalysts CIC,SOCIAL SERVICES - OTHER,Peoples Services,Contract Cleaning,A27010,0
London Borough of Sutton,01/02/2022,50124354,"3,079.72",Compass Fostering London Ltd,CHILDREN'S SERVICES - FOSTERING & ADOPTION SERVICES,Peoples Services,Foster Parents Support,A44110,0
London Borough of Sutton,01/02/2022,50124356,"2,986.20",Compass Fostering London Ltd,CHILDREN'S SERVICES - FOSTERING & ADOPTION SERVICES,Peoples Services,Foster Parents Support,A44110,0
London Borough of Sutton,01/02/2022,50124357,"2,859.92",Compass Fostering London Ltd,CHILDREN'S SERVICES - FOSTERING & ADOPTION SERVICES,Peoples Services,Foster Parents Support,A44110,0
London Borough of Sutton,01/03/2022,50130381,"3,166.34",Compass Fostering London Ltd,CHILDREN'S SERVICES - FOSTERING & ADOPTION SERVICES,Peoples Services,Foster Parents Support,A44110,0
London Borough of Sutton,01/03/2022,50130429,"3,409.69",Compass Fostering London Ltd,CHILDREN'S SERVICES - FOSTERING & ADOPTION SERVICES,Peoples Services,Foster Parents Support,A44110,0
London Borough of Sutton,01/03/2022,50130459,"3,306.15",Compass Fostering London Ltd,CHILDREN'S SERVICES - FOSTERING & ADOPTION SERVICES,Peoples Services,Foster Parents Support,A44110,0
London Borough of Sutton,01/02/2022,50124358,"2,895.76",Compass Fostering South Ltd,CHILDREN'S SERVICES - FOSTERING & ADOPTION SERVICES,Peoples Services,Foster Parents Support,A44110,0
London Borough of Sutton,01/02/2022,50124400,"3,622.08",Compass Fostering South Ltd,CHILDREN'S SERVICES - FOSTERING & ADOPTION SERVICES,Peoples Services,Foster Parents Support,A44110,0
London Borough of Sutton,01/03/2022,50130400,"4,010.16",Compass Fostering South Ltd,CHILDREN'S SERVICES - FOSTERING & ADOPTION SERVICES,Peoples Services,Foster Parents Support,A44110,0
London Borough of Sutton,01/03/2022,50130437,"3,206.02",Compass Fostering South Ltd,CHILDREN'S SERVICES - FOSTERING & ADOPTION SERVICES,Peoples Services,Foster Parents Support,A44110,0
London Borough of Sutton,10/02/2022,20018642,"2,708.19",Compass Minerals,OFFICE SUPPLIES,Environment Housing and Neighbourhoods,Purchases and Repairs Fixtures & Fittings,A25005,0
London Borough of Sutton,15/02/2022,50120799,"3,000.00",Co-operative Childcare,GRANTS & EX GRATIA PAYMENTS,Peoples Services,SEND Inclusion funding,A60038,0
London Borough of Sutton,08/03/2022,50122358,"-4,219.78",Co-operative Childcare,GRANTS & EX GRATIA PAYMENTS,Peoples Services,Place Funding,A56110,0
London Borough of Sutton,08/03/2022,50122454,"6,123.52",Co-operative Childcare,GRANTS & EX GRATIA PAYMENTS,Peoples Services,Place Funding,A56110,0
London Borough of Sutton,25/01/2022,50124493,"16,850.68",Cornerways Childrens Services Ltd,CHILDREN'S SERVICES - FOSTERING & ADOPTION SERVICES,Peoples Services,Residential Care-Children,A56115,0
London Borough of Sutton,25/02/2022,50130440,"18,656.11",Cornerways Childrens Services Ltd,CHILDREN'S SERVICES - FOSTERING & ADOPTION SERVICES,Peoples Services,Residential Care-Children,A56115,0
London Borough of Sutton,07/01/2022,20020042,954.00,Corporate Home Away (South) Limited,SUNDRY SUPPLIER - HOUSING,Peoples Services,Client Care/Assistance,A61011,0
London Borough of Sutton,18/03/2022,50126888,"4,535.68",Country Court Care Homes 2 Ltd,SOCIAL SERVICES RESIDENTIAL,Peoples Services,Nursing Care - Ext Provider,A56025,0
London Borough of Sutton,18/03/2022,50126888,-735.68,Country Court Care Homes 2 Ltd,SOCIAL SERVICES RESIDENTIAL,Peoples Services,Nursing Care - 3rd party top up payment,A56023,0
London Borough of Sutton,18/03/2022,50127105,"2,052.00",Country Court Care Homes 2 Ltd,SOCIAL SERVICES RESIDENTIAL,Peoples Services,Nursing Care - Ext Provider,A56025,0
London Borough of Sutton,18/03/2022,50127105,-402.00,Country Court Care Homes 2 Ltd,SOCIAL SERVICES RESIDENTIAL,Peoples Services,Nursing Care - 3rd party top up payment,A56023,0
London Borough of Sutton,28/03/2022,50128014,"3,240.00",Crafty Critters Club Ltd,TEMP STAFF & CONSULTANCY,Peoples Services,Other Supplies & Services,A44291,0
London Borough of Sutton,18/03/2022,50127107,"19,800.41",Cream 11 Ltd,SOCIAL SERVICES RESIDENTIAL,Peoples Services,Residential Care - Ext Provider,A56114,0
London Borough of Sutton,18/03/2022,50127107,"18,397.51",Cream 11 Ltd,SOCIAL SERVICES RESIDENTIAL,Peoples Services,One to One Care,A56108,0
London Borough of Sutton,14/02/2022,50124401,"6,284.00",Credo Care Limited,CHILDREN'S SERVICE - OTHER,Peoples Services,Foster Parents Support,A44110,0
London Borough of Sutton,18/03/2022,50126785,"3,736.00",CRNH Ltd,SOCIAL SERVICES RESIDENTIAL,Peoples Services,Nursing Care Short Term,A56026,0
London Borough of Sutton,18/03/2022,50126785,-750.40,CRNH Ltd,SOCIAL SERVICES RESIDENTIAL,Peoples Services,Nursing Care - 3rd party top up payment,A56023,0
London Borough of Sutton,18/03/2022,50126786,"3,201.71",CRNH Ltd,SOCIAL SERVICES RESIDENTIAL,Peoples Services,Nursing Care - Ext Provider,A56025,0
London Borough of Sutton,18/03/2022,50126786,-536.00,CRNH Ltd,SOCIAL SERVICES RESIDENTIAL,Peoples Services,Nursing Care - 3rd party top up payment,A56023,0
London Borough of Sutton,18/03/2022,50126865,"3,502.08",CRNH Ltd,SOCIAL SERVICES RESIDENTIAL,Peoples Services,Nursing Care - Ext Provider,A56025,0
London Borough of Sutton,18/03/2022,50126865,-632.64,CRNH Ltd,SOCIAL SERVICES RESIDENTIAL,Peoples Services,Nursing Care - 3rd party top up payment,A56023,0
London Borough of Sutton,18/03/2022,50126866,"3,555.32",CRNH Ltd,SOCIAL SERVICES RESIDENTIAL,Peoples Services,Nursing Care - Ext Provider,A56025,0
London Borough of Sutton,18/03/2022,50126866,-662.24,CRNH Ltd,SOCIAL SERVICES RESIDENTIAL,Peoples Services,Nursing Care - 3rd party top up payment,A56023,0
London Borough of Sutton,18/03/2022,50126878,"4,070.40",CRNH Ltd,SOCIAL SERVICES RESIDENTIAL,Peoples Services,Nursing Care - Ext Provider,A56025,0
London Borough of Sutton,18/03/2022,50126878,-662.24,CRNH Ltd,SOCIAL SERVICES RESIDENTIAL,Peoples Services,Nursing Care - 3rd party top up payment,A56023,0
London Borough of Sutton,18/03/2022,50126897,"-2,668.57",CRNH Ltd,SOCIAL SERVICES RESIDENTIAL,Peoples Services,Nursing Care Short Term,A56026,0
London Borough of Sutton,18/03/2022,50126901,-735.68,CRNH Ltd,SOCIAL SERVICES RESIDENTIAL,Peoples Services,Nursing Care - 3rd party top up payment,A56023,0
London Borough of Sutton,18/03/2022,50126901,"3,612.00",CRNH Ltd,SOCIAL SERVICES RESIDENTIAL,Peoples Services,Nursing Care Short Term,A56026,0
London Borough of Sutton,18/03/2022,50126936,"3,612.00",CRNH Ltd,SOCIAL SERVICES RESIDENTIAL,Peoples Services,Nursing Care - Ext Provider,A56025,0
London Borough of Sutton,18/03/2022,50126936,-735.68,CRNH Ltd,SOCIAL SERVICES RESIDENTIAL,Peoples Services,Nursing Care - 3rd party top up payment,A56023,0
London Borough of Sutton,18/03/2022,50127003,-735.68,CRNH Ltd,SOCIAL SERVICES RESIDENTIAL,Peoples Services,Nursing Care - 3rd party top up payment,A56023,0
London Borough of Sutton,18/03/2022,50127003,"3,612.00",CRNH Ltd,SOCIAL SERVICES RESIDENTIAL,Peoples Services,Nursing Care - Ext Provider,A56025,0
London Borough of Sutton,18/03/2022,50127083,"3,736.00",CRNH Ltd,SOCIAL SERVICES RESIDENTIAL,Peoples Services,Nursing Care - Ext Provider,A56025,0
London Borough of Sutton,18/03/2022,50127083,-750.40,CRNH Ltd,SOCIAL SERVICES RESIDENTIAL,Peoples Services,Nursing Care - 3rd party top up payment,A56023,0
London Borough of Sutton,18/03/2022,50127084,"-1,179.20",CRNH Ltd,SOCIAL SERVICES RESIDENTIAL,Peoples Services,Nursing Care - 3rd party top up payment,A56023,0
London Borough of Sutton,18/03/2022,50127084,"5,870.86",CRNH Ltd,SOCIAL SERVICES RESIDENTIAL,Peoples Services,Nursing Care Short Term,A56026,0
London Borough of Sutton,18/03/2022,50127152,"-12,771.00",CRNH Ltd,SOCIAL SERVICES RESIDENTIAL,Peoples Services,Nursing Care - Ext Provider,A56025,0
London Borough of Sutton,18/03/2022,50127152,"3,114.77",CRNH Ltd,SOCIAL SERVICES RESIDENTIAL,Peoples Services,Nursing Care - 3rd party top up payment,A56023,0
London Borough of Sutton,18/03/2022,50126965,"3,612.00",Cross Care Services Ltd,SOCIAL SERVICES RESIDENTIAL,Peoples Services,Nursing Care - Ext Provider,A56025,0
London Borough of Sutton,18/03/2022,50126965,-735.68,Cross Care Services Ltd,SOCIAL SERVICES RESIDENTIAL,Peoples Services,Nursing Care - 3rd party top up payment,A56023,0
London Borough of Sutton,18/03/2022,50127038,"3,611.68",Cross Care Services Ltd,SOCIAL SERVICES RESIDENTIAL,Peoples Services,Nursing Care - Ext Provider,A56025,0
London Borough of Sutton,18/03/2022,50127038,-735.68,Cross Care Services Ltd,SOCIAL SERVICES RESIDENTIAL,Peoples Services,Nursing Care - 3rd party top up payment,A56023,0
London Borough of Sutton,18/03/2022,50127076,"3,612.00",Cross Care Services Ltd,SOCIAL SERVICES RESIDENTIAL,Peoples Services,Nursing Care - Ext Provider,A56025,0
London Borough of Sutton,18/03/2022,50127076,-735.68,Cross Care Services Ltd,SOCIAL SERVICES RESIDENTIAL,Peoples Services,Nursing Care - 3rd party top up payment,A56023,0
London Borough of Sutton,18/03/2022,50127077,"3,612.00",Cross Care Services Ltd,SOCIAL SERVICES RESIDENTIAL,Peoples Services,Nursing Care - Ext Provider,A56025,0
London Borough of Sutton,18/03/2022,50127077,-735.68,Cross Care Services Ltd,SOCIAL SERVICES RESIDENTIAL,Peoples Services,Nursing Care - 3rd party top up payment,A56023,0
London Borough of Sutton,18/03/2022,50127117,"3,626.72",Cross Care Services Ltd,SOCIAL SERVICES RESIDENTIAL,Peoples Services,Nursing Care - Ext Provider,A56025,0
London Borough of Sutton,18/03/2022,50127117,-750.40,Cross Care Services Ltd,SOCIAL SERVICES RESIDENTIAL,Peoples Services,Nursing Care - 3rd party top up payment,A56023,0
London Borough of Sutton,18/03/2022,50127145,"3,502.08",Cross Care Services Ltd,SOCIAL SERVICES RESIDENTIAL,Peoples Services,Nursing Care - Ext Provider,A56025,0
London Borough of Sutton,21/03/2022,50129867,"2,183.92",Croydon College,ACADEMIC INSTNS - OTHER,Peoples Services,Top-up Funding,A51016,0
London Borough of Sutton,21/03/2022,50129868,"2,183.92",Croydon College,ACADEMIC INSTNS - OTHER,Peoples Services,Top-up Funding,A51016,0
London Borough of Sutton,06/07/2021,20016621,"51,144.68",LONDON BOROUGH OF CROYDON,CENTRAL & LOCAL GOVERNMENT,Environment Housing and Neighbourhoods,Civic Amenity,A56052,0
London Borough of Sutton,30/11/2021,20018661,"490,607.64",LONDON BOROUGH OF CROYDON,CENTRAL & LOCAL GOVERNMENT,Environment Housing and Neighbourhoods,Waste Contractor Payment,A56057,0
London Borough of Sutton,04/01/2022,20019614,"14,227.85",LONDON BOROUGH OF CROYDON,CENTRAL & LOCAL GOVERNMENT,Resources,Building Rents,A22005,0
London Borough of Sutton,04/01/2022,20019619,"5,196.00",LONDON BOROUGH OF CROYDON,CENTRAL & LOCAL GOVERNMENT,Resources,Building Rents,A22005,0
London Borough of Sutton,04/01/2022,20019620,967.50,LONDON BOROUGH OF CROYDON,CENTRAL & LOCAL GOVERNMENT,Resources,Building Rents,A22005,0
London Borough of Sutton,04/01/2022,20019621,"2,577.80",LONDON BOROUGH OF CROYDON,CENTRAL & LOCAL GOVERNMENT,Resources,Building Rents,A22005,0
London Borough of Sutton,01/02/2022,20019622,"18,408.65",LONDON BOROUGH OF CROYDON,CENTRAL & LOCAL GOVERNMENT,Resources,Building Rents,A22005,0
London Borough of Sutton,04/01/2022,20019623,"5,803.00",LONDON BOROUGH OF CROYDON,CENTRAL & LOCAL GOVERNMENT,Resources,Building Rents,A22005,0
London Borough of Sutton,04/01/2022,20019624,857.57,LONDON BOROUGH OF CROYDON,CENTRAL & LOCAL GOVERNMENT,Resources,Building Rents,A22005,0
London Borough of Sutton,04/01/2022,20019625,"3,533.16",LONDON BOROUGH OF CROYDON,CENTRAL & LOCAL GOVERNMENT,Resources,Building Rents,A22005,0
London Borough of Sutton,04/01/2022,20019626,"2,727.50",LONDON BOROUGH OF CROYDON,CENTRAL & LOCAL GOVERNMENT,Resources,Building Rents,A22005,0
London Borough of Sutton,04/01/2022,20019628,"3,031.27",LONDON BOROUGH OF CROYDON,CENTRAL & LOCAL GOVERNMENT,Resources,Building Rents,A22005,0
London Borough of Sutton,04/01/2022,20019629,"7,834.63",LONDON BOROUGH OF CROYDON,CENTRAL & LOCAL GOVERNMENT,Resources,Building Rents,A22005,0
London Borough of Sutton,04/01/2022,20019630,"5,865.05",LONDON BOROUGH OF CROYDON,CENTRAL & LOCAL GOVERNMENT,Resources,Building Rents,A22005,0
London Borough of Sutton,04/01/2022,20019631,"18,680.00",LONDON BOROUGH OF CROYDON,CENTRAL & LOCAL GOVERNMENT,Resources,Building Rents,A22005,0
London Borough of Sutton,04/01/2022,20019633,"12,906.70",LONDON BOROUGH OF CROYDON,CENTRAL & LOCAL GOVERNMENT,Resources,Building Rents,A22005,0
London Borough of Sutton,22/02/2022,50124420,"2,884.00",LONDON BOROUGH OF CROYDON,CENTRAL & LOCAL GOVERNMENT,Peoples Services,Foster Parents Support,A44110,0
London Borough of Sutton,22/02/2022,50124441,"2,548.00",LONDON BOROUGH OF CROYDON,CENTRAL & LOCAL GOVERNMENT,Peoples Services,Foster Parents Support,A44110,0
London Borough of Sutton,28/02/2022,20019839,"6,524.00",Croydon Court Ltd,ACCOMMODATION BED & BREAKFAST,Environment Housing and Neighbourhoods,Bed & Breakfast,A56000,0
London Borough of Sutton,28/02/2022,20019841,980.00,Croydon Court Ltd,ACCOMMODATION BED & BREAKFAST,Peoples Services,C.C.A Rent & Utilities,A61009,0
London Borough of Sutton,14/03/2022,20021006,"1,000.00",Croygas Amateur Boxing Club,SUNDRY SUPPLIER - ENV SERVICES,Environment Housing and Neighbourhoods,Community Initiatives,A44288,0
London Borough of Sutton,18/03/2022,50126706,"7,824.24",CSS Ltd,SOCIAL SERVICES RESIDENTIAL,Peoples Services,Residential Care - Ext Provider,A56114,0
London Borough of Sutton,04/03/2022,50123456,600.00,CSS Ltd,SOCIAL SERVICES RESIDENTIAL,Peoples Services,Day Care Services,A56021,0
London Borough of Sutton,08/03/2022,50121512,"161,839.38",Culvers House Primary School,GRANTS & EX GRATIA PAYMENTS,Peoples Services,Payments to Schools,A51013,0
London Borough of Sutton,08/03/2022,50121621,"39,005.00",Culvers House Primary School,GRANTS & EX GRATIA PAYMENTS,Peoples Services,Payments to Schools,A51013,0
London Borough of Sutton,08/03/2022,50121622,586.25,Culvers House Primary School,GRANTS & EX GRATIA PAYMENTS,Peoples Services,Payments to Schools,A51013,0
London Borough of Sutton,08/03/2022,50121667,"1,431.00",Culvers House Primary School,GRANTS & EX GRATIA PAYMENTS,Peoples Services,Early Years Pupil Premium,A60031,0
London Borough of Sutton,08/03/2022,50121697,"12,438.36",Culvers House Primary School,GRANTS & EX GRATIA PAYMENTS,Peoples Services,Payments to Schools,A51013,0
London Borough of Sutton,08/03/2022,50121733,"4,770.00",Culvers House Primary School,GRANTS & EX GRATIA PAYMENTS,Resources,"Grants, Contributions & Donations",A47005,0
London Borough of Sutton,08/03/2022,50121790,"2,385.00",Culvers House Primary School,GRANTS & EX GRATIA PAYMENTS,Resources,"Grants, Contributions & Donations",A47005,0
London Borough of Sutton,18/03/2022,50126733,"5,600.00",Curado Limited,GRANTS & EX GRATIA PAYMENTS,Peoples Services,Interim Placements - Ext Provider,A56102,0
London Borough of Sutton,18/03/2022,50126719,-622.80,Cygnet Learning Disabilities Midlands Ltd,SOCIAL SERVICES RESIDENTIAL,Peoples Services,Residential Care - Client Cont ( Net Paymt ),A56113,0
London Borough of Sutton,18/03/2022,50126719,"6,580.00",Cygnet Learning Disabilities Midlands Ltd,SOCIAL SERVICES RESIDENTIAL,Peoples Services,Residential Care - Ext Provider,A56114,0
London Borough of Sutton,11/03/2022,20020099,805.00,REDACTED - PERSONAL DATA,GRANTS & EX GRATIA PAYMENTS,Environment Housing and Neighbourhoods,Temporary Protection - Homeless Persons,A62028,0
London Borough of Sutton,29/03/2022,50128038,800.00,Dane Court Grammar School,SUNDRY SUPPLIER - EDUCATION,Peoples Services,Payments to Schools,A51013,0
London Borough of Sutton,13/08/2021,20020173,"1,865.08",Danson Youth Trust,OFFICE SERVICES,Peoples Services,Client Care/Assistance,A61011,0
London Borough of Sutton,02/03/2022,20020174,"1,618.00",Danson Youth Trust,OFFICE SERVICES,Peoples Services,Client Care/Assistance,A61011,0
London Borough of Sutton,01/04/2022,20021884,"1,571.46",Angel Lettings,ACCOMMODATION BED & BREAKFAST,Environment Housing and Neighbourhoods,Temporary Protection - Homeless Persons,A62028,0
London Borough of Sutton,27/02/2022,50120709,560.00,Day and Nite Services,SOCIAL SERVICES DAY CARE,Peoples Services,Home Care Services,A56019,0
London Borough of Sutton,27/02/2022,50120754,504.00,Day and Nite Services,SOCIAL SERVICES DAY CARE,Peoples Services,Home Care Services,A56019,0
London Borough of Sutton,06/03/2022,50124615,560.00,Day and Nite Services,SOCIAL SERVICES DAY CARE,Peoples Services,Home Care Services,A56019,0
London Borough of Sutton,06/03/2022,50124642,504.00,Day and Nite Services,SOCIAL SERVICES DAY CARE,Peoples Services,Home Care Services,A56019,0
London Borough of Sutton,13/03/2022,50127403,504.00,Day and Nite Services,SOCIAL SERVICES DAY CARE,Peoples Services,Home Care Services,A56019,0
London Borough of Sutton,13/03/2022,50127419,560.00,Day and Nite Services,SOCIAL SERVICES DAY CARE,Peoples Services,Home Care Services,A56019,0
London Borough of Sutton,02/03/2022,20020054,846.00,DCC Interactive Ltd,CONFERENCES,Peoples Services,Staff Development And Training,A15022,0
London Borough of Sutton,18/03/2022,50126893,"5,446.57",Denville Hall 2012,SOCIAL SERVICES RESIDENTIAL,Peoples Services,Residential Care - Ext Provider,A56114,0
London Borough of Sutton,18/03/2022,50126718,"3,060.00",Devaglade Trading Limited,SOCIAL SERVICES RESIDENTIAL,Peoples Services,Residential Care - Ext Provider,A56114,0
London Borough of Sutton,17/03/2022,20021103,"4,450.00",Devonshire Primary School,GRANTS & EX GRATIA PAYMENTS,Peoples Services,External Fees and Consultants,C20000,0
London Borough of Sutton,17/03/2022,20021104,"4,743.60",Devonshire Primary School,GRANTS & EX GRATIA PAYMENTS,Peoples Services,Purchase of IT Hardware,C16001,0
London Borough of Sutton,08/03/2022,50121505,"249,204.61",Devonshire Primary School,GRANTS & EX GRATIA PAYMENTS,Peoples Services,Payments to Schools,A51013,0
London Borough of Sutton,08/03/2022,50121608,"59,516.25",Devonshire Primary School,GRANTS & EX GRATIA PAYMENTS,Peoples Services,Payments to Schools,A51013,0
London Borough of Sutton,08/03/2022,50121609,586.25,Devonshire Primary School,GRANTS & EX GRATIA PAYMENTS,Peoples Services,Payments to Schools,A51013,0
London Borough of Sutton,08/03/2022,50121698,"16,046.16",Devonshire Primary School,GRANTS & EX GRATIA PAYMENTS,Peoples Services,Payments to Schools,A51013,0
London Borough of Sutton,08/03/2022,50121734,"5,430.00",Devonshire Primary School,GRANTS & EX GRATIA PAYMENTS,Resources,"Grants, Contributions & Donations",A47005,0
London Borough of Sutton,08/03/2022,50121791,"2,730.00",Devonshire Primary School,GRANTS & EX GRATIA PAYMENTS,Resources,"Grants, Contributions & Donations",A47005,0
London Borough of Sutton,10/03/2022,50122863,"1,711.90",Devonshire Primary School,GRANTS & EX GRATIA PAYMENTS,Non-Service Cost Centres,Recharge-Teaching Staff,A10600,0
London Borough of Sutton,10/03/2022,50122864,"1,913.34",Devonshire Primary School,GRANTS & EX GRATIA PAYMENTS,Non-Service Cost Centres,Recharge-Teaching Staff,A10600,0
London Borough of Sutton,10/03/2022,50122865,"1,042.39",Devonshire Primary School,GRANTS & EX GRATIA PAYMENTS,Non-Service Cost Centres,Recharge-Teaching Staff,A10600,0
London Borough of Sutton,14/03/2022,50125746,708.33,Devonshire Primary School,GRANTS & EX GRATIA PAYMENTS,Peoples Services,Top-up Funding,A51016,0
London Borough of Sutton,17/03/2022,50125850,"4,987.14",Devonshire Primary School,GRANTS & EX GRATIA PAYMENTS,Non-Service Cost Centres,Recharge-Teaching Staff,A10600,0
London Borough of Sutton,29/03/2022,50130771,527.00,Devonshire Primary School,GRANTS & EX GRATIA PAYMENTS,Peoples Services,Pupil Growth,A51014,0
London Borough of Sutton,31/03/2022,50131172,"3,666.94",Devonshire Primary School,GRANTS & EX GRATIA PAYMENTS,Non-Service Cost Centres,Recharge-Teaching Staff,A10600,0
London Borough of Sutton,31/03/2022,50131173,"2,400.00",Devonshire Primary School,GRANTS & EX GRATIA PAYMENTS,Non-Service Cost Centres,Recharge-Teaching Staff,A10600,0
London Borough of Sutton,31/03/2022,50131174,"1,260.00",Devonshire Primary School,GRANTS & EX GRATIA PAYMENTS,Non-Service Cost Centres,Recharge-Teaching Staff,A10600,0
London Borough of Sutton,11/03/2022,50125439,"3,296.00",Direct Care And Support Services,ACCOMMODATION - OTHER,Peoples Services,Home Care Services,A56019,0
London Borough of Sutton,12/03/2022,50125447,"5,514.48",Direct Care And Support Services,ACCOMMODATION - OTHER,Peoples Services,Supported Living,A56088,0
London Borough of Sutton,10/03/2022,50125478,"3,806.40",Direct Care And Support Services,ACCOMMODATION - OTHER,Peoples Services,Supported Living,A56088,0
London Borough of Sutton,20/03/2022,50129941,"4,470.88",Direct Care And Support Services,ACCOMMODATION - OTHER,Peoples Services,Supported Living,A56088,0
London Borough of Sutton,24/03/2022,50130561,"3,692.48",Direct Care And Support Services,ACCOMMODATION - OTHER,Peoples Services,Supported Living,A56088,0
London Borough of Sutton,16/03/2022,20021061,"52,375.00",DLUHC,SUNDRY SUPPLIER - FINANCE,Non-Service Cost Centres,Local Tax income Guarantee CF funding,A91075,0
London Borough of Sutton,03/03/2022,20020087,438.50,DMA Signs Limited,AGRICULTURAL & ESTATE SERVICES,Resources,Payments to Contractors,C14000,0
London Borough of Sutton,08/03/2022,50122420,"2,358.72",Dolphin Day Nursery,GRANTS & EX GRATIA PAYMENTS,Peoples Services,Place Funding,A56110,0
London Borough of Sutton,08/03/2022,50122421,655.20,REDACTED - PERSONAL DATA,GRANTS & EX GRATIA PAYMENTS,Peoples Services,Place Funding,A56110,0
London Borough of Sutton,08/03/2022,50121507,"194,534.42",Dorchester Primary School,GRANTS & EX GRATIA PAYMENTS,Peoples Services,Payments to Schools,A51013,0
London Borough of Sutton,08/03/2022,50121611,"23,873.75",Dorchester Primary School,GRANTS & EX GRATIA PAYMENTS,Peoples Services,Payments to Schools,A51013,0
London Borough of Sutton,08/03/2022,50121699,"15,912.00",Dorchester Primary School,GRANTS & EX GRATIA PAYMENTS,Peoples Services,Payments to Schools,A51013,0
London Borough of Sutton,08/03/2022,50121735,"2,850.00",Dorchester Primary School,GRANTS & EX GRATIA PAYMENTS,Resources,"Grants, Contributions & Donations",A47005,0
London Borough of Sutton,08/03/2022,50121792,"1,410.00",Dorchester Primary School,GRANTS & EX GRATIA PAYMENTS,Resources,"Grants, Contributions & Donations",A47005,0
London Borough of Sutton,03/03/2022,50122789,"2,000.00",Dorchester Primary School,GRANTS & EX GRATIA PAYMENTS,Peoples Services,Top Up Additional Support,A60015,0
London Borough of Sutton,14/03/2022,50125747,"2,270.00",Dorchester Primary School,GRANTS & EX GRATIA PAYMENTS,Peoples Services,Top-up Funding,A51016,0
London Borough of Sutton,29/03/2022,50130772,534.00,Dorchester Primary School,GRANTS & EX GRATIA PAYMENTS,Peoples Services,Pupil Growth,A51014,0
London Borough of Sutton,28/02/2022,20019800,"3,950.00",REDACTED - PERSONAL DATA,TEMP STAFF & CONSULTANCY,Health and Wellbeing,Provider Contract Payments,A44290,0
London Borough of Sutton,20/02/2022,20019268,700.00,REDACTED - PERSONAL DATA,"SOCIAL SERVICES - DOLS, GUM & BIA ASSESSMENTS",Peoples Services,Fees,A44040,0
London Borough of Sutton,20/02/2022,20019269,500.00,REDACTED - PERSONAL DATA,"SOCIAL SERVICES - DOLS, GUM & BIA ASSESSMENTS",Peoples Services,Fees,A44040,0
London Borough of Sutton,28/03/2022,50128019,"2,016.00",Dramabuds,ENTERTAINMENTS INDUSTRY,Peoples Services,Other Supplies & Services,A44291,0
London Borough of Sutton,05/03/2022,20020234,283.17,DSI Billing Services Ltd,OFFICE SERVICES,Resources,Postage & Couriers,A45015,0
London Borough of Sutton,05/03/2022,20020234,283.18,DSI Billing Services Ltd,OFFICE SERVICES,Resources,Postage & Couriers,A45015,0
London Borough of Sutton,01/02/2022,20019581,"2,376.89",Dunfield & Mead Ltd,CHILDREN'S SERVICES - RESIDENTIAL,Peoples Services,Approved Lodgings,A61000,0
London Borough of Sutton,01/02/2022,20019582,"1,350.01",Dunfield & Mead Ltd,CHILDREN'S SERVICES - RESIDENTIAL,Peoples Services,Approved Lodgings,A61000,0
London Borough of Sutton,01/02/2022,20019583,"3,550.00",Dunfield & Mead Ltd,CHILDREN'S SERVICES - RESIDENTIAL,Peoples Services,Approved Lodgings,A61000,0
London Borough of Sutton,01/02/2022,20019584,"3,550.00",Dunfield & Mead Ltd,CHILDREN'S SERVICES - RESIDENTIAL,Peoples Services,Approved Lodgings,A61000,0
London Borough of Sutton,01/02/2022,20019589,"2,000.00",Dunfield & Mead Ltd,CHILDREN'S SERVICES - RESIDENTIAL,Peoples Services,Approved Lodgings,A61000,0
London Borough of Sutton,01/02/2022,20019590,"1,325.00",Dunfield & Mead Ltd,CHILDREN'S SERVICES - RESIDENTIAL,Peoples Services,Approved Lodgings,A61000,0
London Borough of Sutton,01/02/2022,20019592,"1,600.00",Dunfield & Mead Ltd,CHILDREN'S SERVICES - RESIDENTIAL,Peoples Services,Approved Lodgings,A61000,0
London Borough of Sutton,01/02/2022,20019594,"2,425.00",Dunfield & Mead Ltd,CHILDREN'S SERVICES - RESIDENTIAL,Peoples Services,Approved Lodgings,A61000,0
London Borough of Sutton,01/02/2022,20019595,"1,400.00",Dunfield & Mead Ltd,CHILDREN'S SERVICES - RESIDENTIAL,Peoples Services,Approved Lodgings,A61000,0
London Borough of Sutton,01/02/2022,20019596,"1,800.00",Dunfield & Mead Ltd,CHILDREN'S SERVICES - RESIDENTIAL,Peoples Services,Approved Lodgings,A61000,0
London Borough of Sutton,01/02/2022,20019596,250.00,Dunfield & Mead Ltd,CHILDREN'S SERVICES - RESIDENTIAL,Peoples Services,Living Allowance,A56016,0
London Borough of Sutton,25/02/2022,20019627,"-1,660.71",Dunfield & Mead Ltd,CHILDREN'S SERVICES - RESIDENTIAL,Peoples Services,Approved Lodgings,A61000,0
London Borough of Sutton,01/02/2022,50124464,"3,550.00",Dunfield & Mead Ltd,CHILDREN'S SERVICES - RESIDENTIAL,Peoples Services,Accommodation - Supported Living,A62001,0
London Borough of Sutton,01/02/2022,50124470,"4,150.00",Dunfield & Mead Ltd,CHILDREN'S SERVICES - RESIDENTIAL,Peoples Services,Accommodation - Supported Living,A62001,0
London Borough of Sutton,01/02/2022,50124471,"3,550.00",Dunfield & Mead Ltd,CHILDREN'S SERVICES - RESIDENTIAL,Peoples Services,Approved Lodgings,A61000,0
London Borough of Sutton,28/02/2022,20019837,"3,129.00",Dunheved Hotel Ltd,ACCOMMODATION BED & BREAKFAST,Environment Housing and Neighbourhoods,Bed & Breakfast,A56000,0
London Borough of Sutton,18/03/2022,50127104,"3,071.92",Dunheved Lodge,SOCIAL SERVICES RESIDENTIAL,Peoples Services,Residential Care - Ext Provider,A56114,0
London Borough of Sutton,18/03/2022,50127104,"3,016.00",Dunheved Lodge,SOCIAL SERVICES RESIDENTIAL,Peoples Services,One to One Care,A56108,0
London Borough of Sutton,14/03/2022,50127691,660.00,DWT Windows & Doors,CONSTRUCTION INDUSTRY,Environment Housing and Neighbourhoods,Payments to Contractors,C14000,0
London Borough of Sutton,14/03/2022,50127692,920.00,DWT Windows & Doors,CONSTRUCTION INDUSTRY,Environment Housing and Neighbourhoods,Payments to Contractors,C14000,0
London Borough of Sutton,20/02/2022,20019551,"3,548.27",Dynamic Care Ltd,SOCIAL SERVICES RESIDENTIAL,Peoples Services,Approved Lodgings,A61000,0
London Borough of Sutton,20/02/2022,20019552,276.78,Dynamic Care Ltd,SOCIAL SERVICES RESIDENTIAL,Peoples Services,Living Allowance,A56016,0
London Borough of Sutton,20/02/2022,20019552,"5,203.56",Dynamic Care Ltd,SOCIAL SERVICES RESIDENTIAL,Peoples Services,Approved Lodgings,A61000,0
London Borough of Sutton,20/02/2022,20019553,"3,774.99",Dynamic Care Ltd,SOCIAL SERVICES RESIDENTIAL,Peoples Services,Approved Lodgings,A61000,0
London Borough of Sutton,01/03/2022,50124410,"5,450.00",Dynamic Care Ltd,SOCIAL SERVICES RESIDENTIAL,Peoples Services,Approved Lodgings,A61000,0
London Borough of Sutton,01/03/2022,50124457,"5,414.28",Dynamic Care Ltd,SOCIAL SERVICES RESIDENTIAL,Peoples Services,Approved Lodgings,A61000,0
London Borough of Sutton,28/02/2022,20019843,"17,494.70",E Homes And Shelters,ACCOMMODATION BED & BREAKFAST,Environment Housing and Neighbourhoods,Bed & Breakfast,A56000,0
London Borough of Sutton,22/02/2022,50120807,"7,739.06",East Surrey College,GRANTS & EX GRATIA PAYMENTS,Peoples Services,Top-up Funding,A51016,0
London Borough of Sutton,18/03/2022,50127055,"3,626.72",Eastcroft Nursing Home,SOCIAL SERVICES RESIDENTIAL,Peoples Services,Nursing Care - Ext Provider,A56025,0
London Borough of Sutton,18/03/2022,50127055,-750.40,Eastcroft Nursing Home,SOCIAL SERVICES RESIDENTIAL,Peoples Services,Nursing Care - 3rd party top up payment,A56023,0
London Borough of Sutton,18/03/2022,50127118,"3,736.00",Eastcroft Nursing Home,SOCIAL SERVICES RESIDENTIAL,Peoples Services,Nursing Care - Ext Provider,A56025,0
London Borough of Sutton,18/03/2022,50127118,-750.40,Eastcroft Nursing Home,SOCIAL SERVICES RESIDENTIAL,Peoples Services,Nursing Care - 3rd party top up payment,A56023,0
London Borough of Sutton,18/03/2022,50127163,"3,626.72",Eastcroft Nursing Home,SOCIAL SERVICES RESIDENTIAL,Peoples Services,Nursing Care - Ext Provider,A56025,0
London Borough of Sutton,18/03/2022,50127163,-750.40,Eastcroft Nursing Home,SOCIAL SERVICES RESIDENTIAL,Peoples Services,Nursing Care - 3rd party top up payment,A56023,0
London Borough of Sutton,04/03/2022,50125311,"1,495.00",Eating Disorder Home Care Group Ltd,SOCIAL SERVICES - OTHER,Peoples Services,Home Care Services,A56019,0
London Borough of Sutton,15/03/2022,20020938,"1,728.00",EcoLocal,DELIVERY AND COURIER SERVICES,Health and Wellbeing,Provider Contract Payments,A44290,0
London Borough of Sutton,14/01/2022,20019394,894.94,EDF Energy,UTILITIES,HRA,Electricity,A21000,0
London Borough of Sutton,23/02/2022,20019866,509.97,EDF Energy,UTILITIES,HRA,Electricity,A21000,0
London Borough of Sutton,28/01/2022,20020018,657.60,EDF Energy,UTILITIES,HRA,Gas,A21003,0
London Borough of Sutton,28/02/2022,20020019,"1,017.17",EDF Energy,UTILITIES,HRA,Gas,A21003,0
London Borough of Sutton,25/02/2022,20020323,"2,691.87",EDF Energy,UTILITIES,Environment Housing and Neighbourhoods,Electricity,A21000,0
London Borough of Sutton,01/03/2022,20020336,471.20,EDF Energy,UTILITIES,Environment Housing and Neighbourhoods,Electricity,A21000,0
London Borough of Sutton,06/01/2022,20020582,846.36,EDF Energy,UTILITIES,HRA,Electricity,A21000,0
London Borough of Sutton,24/03/2022,50131088,"1,581.97",EKC GROUP,ACADEMIC - STUDENT FEES,Peoples Services,Independent School Fees,A56002,0
London Borough of Sutton,08/03/2022,50122336,724.61,REDACTED - PERSONAL DATA,GRANTS & EX GRATIA PAYMENTS,Peoples Services,Place Funding,A56110,0
London Borough of Sutton,08/03/2022,50122410,636.48,REDACTED - PERSONAL DATA,GRANTS & EX GRATIA PAYMENTS,Peoples Services,Place Funding,A56110,0
London Borough of Sutton,22/02/2022,20019461,"29,846.53",Eldercare,ACCOMMODATION - OTHER,Peoples Services,Other Agencies - Third Party,A57000,0
London Borough of Sutton,31/07/2021,20019665,"5,809.08",Eldercare,ACCOMMODATION - OTHER,Peoples Services,Other Agencies - Third Party,A57000,0
London Borough of Sutton,30/09/2021,20019667,"28,395.64",Eldercare,ACCOMMODATION - OTHER,Peoples Services,Other Agencies - Third Party,A57000,0
London Borough of Sutton,31/10/2021,20019669,"5,809.08",Eldercare,ACCOMMODATION - OTHER,Peoples Services,Other Agencies - Third Party,A57000,0
London Borough of Sutton,31/08/2021,20019670,"5,809.08",Eldercare,ACCOMMODATION - OTHER,Peoples Services,Other Agencies - Third Party,A57000,0
London Borough of Sutton,30/11/2021,20019671,"5,809.08",Eldercare,ACCOMMODATION - OTHER,Peoples Services,Other Agencies - Third Party,A57000,0
London Borough of Sutton,31/12/2021,20020445,"14,431.92",Eldercare,ACCOMMODATION - OTHER,HRA,Supporting People - Alarm Services,A61023,0
London Borough of Sutton,31/12/2021,20020446,"27,257.44",Eldercare,ACCOMMODATION - OTHER,Peoples Services,Other Agencies - Third Party,A57000,0
London Borough of Sutton,31/12/2021,20020447,"12,438.80",Eldercare,ACCOMMODATION - OTHER,Peoples Services,Equipment,A61013,0
London Borough of Sutton,31/12/2021,20020448,"5,809.08",Eldercare,ACCOMMODATION - OTHER,Peoples Services,Other Agencies - Third Party,A57000,0
London Borough of Sutton,31/01/2022,20021118,"27,818.08",Eldercare,ACCOMMODATION - OTHER,Peoples Services,Other Agencies - Third Party,A57000,0
London Borough of Sutton,31/01/2022,20021119,"14,431.92",Eldercare,ACCOMMODATION - OTHER,HRA,Supporting People - Alarm Services,A61023,0
London Borough of Sutton,31/01/2022,20021120,"5,809.08",Eldercare,ACCOMMODATION - OTHER,Peoples Services,Other Agencies - Third Party,A57000,0
London Borough of Sutton,28/02/2022,20021333,"25,244.27",Eldercare,ACCOMMODATION - OTHER,Peoples Services,Other Agencies - Third Party,A57000,0
London Borough of Sutton,10/03/2022,50122879,750.00,Elite CarePlus Ltd,SOCIAL SERVICES DAY CARE,Peoples Services,Home Care Services,A56019,0
London Borough of Sutton,01/03/2022,20019907,"2,632.00",Elite Guarding (UK) Ltd,GRANTS & EX GRATIA PAYMENTS,Environment Housing and Neighbourhoods,Payments to Contractors,C14000,0
London Borough of Sutton,01/03/2022,20019908,"2,632.00",Elite Guarding (UK) Ltd,GRANTS & EX GRATIA PAYMENTS,Environment Housing and Neighbourhoods,Payments to Contractors,C14000,0
London Borough of Sutton,07/03/2022,20020338,"2,632.00",Elite Guarding (UK) Ltd,GRANTS & EX GRATIA PAYMENTS,Environment Housing and Neighbourhoods,Payments to Contractors,C14000,0
London Borough of Sutton,18/03/2022,50126734,"8,772.00",Elysium Healthcare Ltd,CHILDREN'S SERVICES - FOSTERING & ADOPTION SERVICES,Peoples Services,Residential Care - Ext Provider,A56114,0
London Borough of Sutton,18/03/2022,50126712,"7,390.52",Elysium Supported Living Limited,SOCIAL SERVICES RESIDENTIAL,Peoples Services,Residential Care - Ext Provider,A56114,0
London Borough of Sutton,28/02/2022,20019836,"18,860.75",Emission Solutions Ltd,BUSINESS & COMPUTER SYSTEMS,Resources,Other Supplies & Services,A44291,0
London Borough of Sutton,23/12/2021,20017998,"36,000.00",Encompass,TEMP STAFF & CONSULTANCY,Peoples Services,Professional Fees,A44066,0
London Borough of Sutton,14/02/2022,20019132,"368,306.00",Encompass,TEMP STAFF & CONSULTANCY,Environment Housing and Neighbourhoods,Provider Contract Payments,A44290,0
London Borough of Sutton,02/03/2022,20020048,"143,000.26",ENGIE Regeneration Ltd,CONSTRUCTION INDUSTRY,Environment Housing and Neighbourhoods,Payments to Contractors,C14000,0
London Borough of Sutton,21/03/2022,50127613,"3,764.28",Enriched Care Ltd,CHILDREN'S SERVICES - RESIDENTIAL,Peoples Services,Supported Living,A56088,0
London Borough of Sutton,11/02/2022,20019437,"3,845.77",Epsom & St Helier Nhs Trust,OFFICE SERVICES,Peoples Services,Fees,A44040,0
London Borough of Sutton,03/03/2022,20020098,"7,841.63",Epsom & St Helier Nhs Trust,OFFICE SERVICES,Health and Wellbeing,Provider Contract Payments,A44290,0
London Borough of Sutton,04/03/2022,20020158,"88,672.00",Epsom & St Helier Nhs Trust,OFFICE SERVICES,Health and Wellbeing,Provider Contract Payments,A44290,0
London Borough of Sutton,06/01/2022,20020498,"88,672.00",Epsom & St Helier Nhs Trust,OFFICE SERVICES,Health and Wellbeing,Provider Contract Payments,A44290,0
London Borough of Sutton,13/12/2021,20020514,"-28,639.33",Epsom & St Helier Nhs Trust,OFFICE SERVICES,Health and Wellbeing,Provider Contract Payments,A44290,0
London Borough of Sutton,13/12/2021,20020518,"-14,319.67",Epsom & St Helier Nhs Trust,OFFICE SERVICES,Health and Wellbeing,Provider Contract Payments,A44290,0
London Borough of Sutton,13/12/2021,20020519,"-28,639.33",Epsom & St Helier Nhs Trust,OFFICE SERVICES,Health and Wellbeing,Provider Contract Payments,A44290,0
London Borough of Sutton,15/02/2022,50120793,600.00,Epsom & St Helier Nhs Trust,OFFICE SERVICES,Peoples Services,SEND Inclusion funding,A60038,0
London Borough of Sutton,15/02/2022,50120801,"1,800.00",Epsom & St Helier Nhs Trust,OFFICE SERVICES,Peoples Services,SEND Inclusion funding,A60038,0
London Borough of Sutton,08/03/2022,50122510,"-2,733.12",Epsom & St Helier Nhs Trust,OFFICE SERVICES,Peoples Services,Place Funding,A56110,0
London Borough of Sutton,28/02/2022,50120332,630.00,Escoben Care Services Ltd,SOCIAL SERVICES RESIDENTIAL,Peoples Services,Home Care Services,A56019,0
London Borough of Sutton,28/02/2022,50120343,798.00,Escoben Care Services Ltd,SOCIAL SERVICES RESIDENTIAL,Peoples Services,Home Care Services,A56019,0
London Borough of Sutton,28/02/2022,50120345,798.00,Escoben Care Services Ltd,SOCIAL SERVICES RESIDENTIAL,Peoples Services,Home Care Services,A56019,0
London Borough of Sutton,28/02/2022,50120348,"1,134.00",Escoben Care Services Ltd,SOCIAL SERVICES RESIDENTIAL,Peoples Services,Home Care Services,A56019,0
London Borough of Sutton,09/03/2022,50122760,"3,000.00",Escoben Care Services Ltd,SOCIAL SERVICES RESIDENTIAL,Peoples Services,Contract Cleaning,A27010,0
London Borough of Sutton,07/03/2022,50123540,630.00,Escoben Care Services Ltd,SOCIAL SERVICES RESIDENTIAL,Peoples Services,Home Care Services,A56019,0
London Borough of Sutton,07/03/2022,50123542,"1,134.00",Escoben Care Services Ltd,SOCIAL SERVICES RESIDENTIAL,Peoples Services,Home Care Services,A56019,0
London Borough of Sutton,07/03/2022,50123543,798.00,Escoben Care Services Ltd,SOCIAL SERVICES RESIDENTIAL,Peoples Services,Home Care Services,A56019,0
London Borough of Sutton,08/03/2022,50123544,720.00,Escoben Care Services Ltd,SOCIAL SERVICES RESIDENTIAL,Peoples Services,Home Care Services,A56019,0
London Borough of Sutton,08/03/2022,50123545,"1,008.00",Escoben Care Services Ltd,SOCIAL SERVICES RESIDENTIAL,Peoples Services,Home Care Services,A56019,0
London Borough of Sutton,08/03/2022,50123546,"1,008.00",Escoben Care Services Ltd,SOCIAL SERVICES RESIDENTIAL,Peoples Services,Home Care Services,A56019,0
London Borough of Sutton,08/03/2022,50123547,"1,008.00",Escoben Care Services Ltd,SOCIAL SERVICES RESIDENTIAL,Peoples Services,Home Care Services,A56019,0
London Borough of Sutton,08/03/2022,50123548,"1,008.00",Escoben Care Services Ltd,SOCIAL SERVICES RESIDENTIAL,Peoples Services,Home Care Services,A56019,0
London Borough of Sutton,08/03/2022,50123550,"1,008.00",Escoben Care Services Ltd,SOCIAL SERVICES RESIDENTIAL,Peoples Services,Home Care Services,A56019,0
London Borough of Sutton,08/03/2022,50123551,"1,008.00",Escoben Care Services Ltd,SOCIAL SERVICES RESIDENTIAL,Peoples Services,Home Care Services,A56019,0
London Borough of Sutton,07/03/2022,50123560,798.00,Escoben Care Services Ltd,SOCIAL SERVICES RESIDENTIAL,Peoples Services,Home Care Services,A56019,0
London Borough of Sutton,16/03/2022,50125957,798.00,Escoben Care Services Ltd,SOCIAL SERVICES RESIDENTIAL,Peoples Services,Home Care Services,A56019,0
London Borough of Sutton,21/02/2022,50125960,516.00,Escoben Care Services Ltd,SOCIAL SERVICES RESIDENTIAL,Peoples Services,Home Care Services,A56019,0
London Borough of Sutton,16/03/2022,50125962,"1,134.00",Escoben Care Services Ltd,SOCIAL SERVICES RESIDENTIAL,Peoples Services,Home Care Services,A56019,0
London Borough of Sutton,16/03/2022,50125965,630.00,Escoben Care Services Ltd,SOCIAL SERVICES RESIDENTIAL,Peoples Services,Home Care Services,A56019,0
London Borough of Sutton,16/03/2022,50125972,798.00,Escoben Care Services Ltd,SOCIAL SERVICES RESIDENTIAL,Peoples Services,Home Care Services,A56019,0
London Borough of Sutton,28/02/2022,50125994,560.00,Escoben Care Services Ltd,SOCIAL SERVICES RESIDENTIAL,Peoples Services,Home Care Services,A56019,0
London Borough of Sutton,21/03/2022,50129951,"1,134.00",Escoben Care Services Ltd,SOCIAL SERVICES RESIDENTIAL,Peoples Services,Home Care Services,A56019,0
London Borough of Sutton,21/03/2022,50129953,798.00,Escoben Care Services Ltd,SOCIAL SERVICES RESIDENTIAL,Peoples Services,Home Care Services,A56019,0
London Borough of Sutton,21/03/2022,50129955,630.00,Escoben Care Services Ltd,SOCIAL SERVICES RESIDENTIAL,Peoples Services,Home Care Services,A56019,0
London Borough of Sutton,21/03/2022,50129959,798.00,Escoben Care Services Ltd,SOCIAL SERVICES RESIDENTIAL,Peoples Services,Home Care Services,A56019,0
London Borough of Sutton,28/03/2022,50130898,"1,134.00",Escoben Care Services Ltd,SOCIAL SERVICES RESIDENTIAL,Peoples Services,Home Care Services,A56019,0
London Borough of Sutton,28/03/2022,50130904,798.00,Escoben Care Services Ltd,SOCIAL SERVICES RESIDENTIAL,Peoples Services,Home Care Services,A56019,0
London Borough of Sutton,28/03/2022,50130916,630.00,Escoben Care Services Ltd,SOCIAL SERVICES RESIDENTIAL,Peoples Services,Home Care Services,A56019,0
London Borough of Sutton,28/03/2022,50130940,798.00,Escoben Care Services Ltd,SOCIAL SERVICES RESIDENTIAL,Peoples Services,Home Care Services,A56019,0
London Borough of Sutton,30/03/2022,20021840,450.00,Education Software Solutions Ltd,SUNDRY SUPPLIER - ASC,Health and Wellbeing,Professional Fees,A44066,0
London Borough of Sutton,14/03/2022,50125766,"1,113.76",Essex County Council,CENTRAL & LOCAL GOVERNMENT,Peoples Services,Childrens Social Care Transport,A32009,0
London Borough of Sutton,11/03/2022,20020719,"121,824.60",ETEC CONTRACT SERVICES LTD,CONSTRUCTION INDUSTRY,Environment Housing and Neighbourhoods,Payments to Contractors,C14000,0
London Borough of Sutton,05/02/2022,50124366,"3,651.28",Ethelbert Specialist Homes Ltd,CHILDREN'S SERVICES - RESIDENTIAL,Peoples Services,Foster Parents Support,A44110,0
London Borough of Sutton,05/03/2022,50130387,"4,042.49",Ethelbert Specialist Homes Ltd,CHILDREN'S SERVICES - RESIDENTIAL,Peoples Services,Foster Parents Support,A44110,0
London Borough of Sutton,20/02/2022,50120459,551.15,Exodus Health Care Services Ltd,SOCIAL SERVICES RESIDENTIAL,Peoples Services,Home Care Services,A56019,0
London Borough of Sutton,20/02/2022,50120459,91.98,Exodus Health Care Services Ltd,SOCIAL SERVICES RESIDENTIAL,Peoples Services,Home Care Services,A56019,0
London Borough of Sutton,20/02/2022,50120461,612.50,Exodus Health Care Services Ltd,SOCIAL SERVICES RESIDENTIAL,Peoples Services,Home Care Services,A56019,0
London Borough of Sutton,20/02/2022,50120461,52.50,Exodus Health Care Services Ltd,SOCIAL SERVICES RESIDENTIAL,Peoples Services,Home Care Services,A56019,0
London Borough of Sutton,20/02/2022,50120462,551.25,Exodus Health Care Services Ltd,SOCIAL SERVICES RESIDENTIAL,Peoples Services,Home Care Services,A56019,0
London Borough of Sutton,20/02/2022,50120462,52.50,Exodus Health Care Services Ltd,SOCIAL SERVICES RESIDENTIAL,Peoples Services,Home Care Services,A56019,0
London Borough of Sutton,20/02/2022,50120465,551.25,Exodus Health Care Services Ltd,SOCIAL SERVICES RESIDENTIAL,Peoples Services,Home Care Services,A56019,0
London Borough of Sutton,20/02/2022,50120466,551.25,Exodus Health Care Services Ltd,SOCIAL SERVICES RESIDENTIAL,Peoples Services,Home Care Services,A56019,0
London Borough of Sutton,20/02/2022,50120472,612.50,Exodus Health Care Services Ltd,SOCIAL SERVICES RESIDENTIAL,Peoples Services,Home Care Services,A56019,0
London Borough of Sutton,20/02/2022,50120483,367.47,Exodus Health Care Services Ltd,SOCIAL SERVICES RESIDENTIAL,Peoples Services,Home Care Services,A56019,0
London Borough of Sutton,20/02/2022,50120483,336.91,Exodus Health Care Services Ltd,SOCIAL SERVICES RESIDENTIAL,Peoples Services,Home Care Services,A56019,0
London Borough of Sutton,05/12/2021,50123666,367.47,Exodus Health Care Services Ltd,SOCIAL SERVICES RESIDENTIAL,Peoples Services,Home Care Services,A56019,0
London Borough of Sutton,05/12/2021,50123666,336.91,Exodus Health Care Services Ltd,SOCIAL SERVICES RESIDENTIAL,Peoples Services,Home Care Services,A56019,0
London Borough of Sutton,27/02/2022,50123667,367.47,Exodus Health Care Services Ltd,SOCIAL SERVICES RESIDENTIAL,Peoples Services,Home Care Services,A56019,0
London Borough of Sutton,27/02/2022,50123667,336.91,Exodus Health Care Services Ltd,SOCIAL SERVICES RESIDENTIAL,Peoples Services,Home Care Services,A56019,0
London Borough of Sutton,05/12/2021,50123694,551.15,Exodus Health Care Services Ltd,SOCIAL SERVICES RESIDENTIAL,Peoples Services,Home Care Services,A56019,0
London Borough of Sutton,05/12/2021,50123694,91.98,Exodus Health Care Services Ltd,SOCIAL SERVICES RESIDENTIAL,Peoples Services,Home Care Services,A56019,0
London Borough of Sutton,27/02/2022,50123695,551.15,Exodus Health Care Services Ltd,SOCIAL SERVICES RESIDENTIAL,Peoples Services,Home Care Services,A56019,0
London Borough of Sutton,27/02/2022,50123695,91.98,Exodus Health Care Services Ltd,SOCIAL SERVICES RESIDENTIAL,Peoples Services,Home Care Services,A56019,0
London Borough of Sutton,05/12/2021,50123698,612.50,Exodus Health Care Services Ltd,SOCIAL SERVICES RESIDENTIAL,Peoples Services,Home Care Services,A56019,0
London Borough of Sutton,05/12/2021,50123698,52.50,Exodus Health Care Services Ltd,SOCIAL SERVICES RESIDENTIAL,Peoples Services,Home Care Services,A56019,0
London Borough of Sutton,27/02/2022,50123699,612.50,Exodus Health Care Services Ltd,SOCIAL SERVICES RESIDENTIAL,Peoples Services,Home Care Services,A56019,0
London Borough of Sutton,27/02/2022,50123699,52.50,Exodus Health Care Services Ltd,SOCIAL SERVICES RESIDENTIAL,Peoples Services,Home Care Services,A56019,0
London Borough of Sutton,05/12/2021,50123700,551.25,Exodus Health Care Services Ltd,SOCIAL SERVICES RESIDENTIAL,Peoples Services,Home Care Services,A56019,0
London Borough of Sutton,05/12/2021,50123700,52.50,Exodus Health Care Services Ltd,SOCIAL SERVICES RESIDENTIAL,Peoples Services,Home Care Services,A56019,0
London Borough of Sutton,27/02/2022,50123701,551.25,Exodus Health Care Services Ltd,SOCIAL SERVICES RESIDENTIAL,Peoples Services,Home Care Services,A56019,0
London Borough of Sutton,27/02/2022,50123701,52.50,Exodus Health Care Services Ltd,SOCIAL SERVICES RESIDENTIAL,Peoples Services,Home Care Services,A56019,0
London Borough of Sutton,05/12/2021,50123706,551.25,Exodus Health Care Services Ltd,SOCIAL SERVICES RESIDENTIAL,Peoples Services,Home Care Services,A56019,0
London Borough of Sutton,27/02/2022,50123707,551.25,Exodus Health Care Services Ltd,SOCIAL SERVICES RESIDENTIAL,Peoples Services,Home Care Services,A56019,0
London Borough of Sutton,05/12/2021,50123708,551.25,Exodus Health Care Services Ltd,SOCIAL SERVICES RESIDENTIAL,Peoples Services,Home Care Services,A56019,0
London Borough of Sutton,27/02/2022,50123709,551.25,Exodus Health Care Services Ltd,SOCIAL SERVICES RESIDENTIAL,Peoples Services,Home Care Services,A56019,0
London Borough of Sutton,05/12/2021,50123710,551.25,Exodus Health Care Services Ltd,SOCIAL SERVICES RESIDENTIAL,Peoples Services,Home Care Services,A56019,0
London Borough of Sutton,05/12/2021,50123717,612.50,Exodus Health Care Services Ltd,SOCIAL SERVICES RESIDENTIAL,Peoples Services,Home Care Services,A56019,0
London Borough of Sutton,27/02/2022,50123718,612.50,Exodus Health Care Services Ltd,SOCIAL SERVICES RESIDENTIAL,Peoples Services,Home Care Services,A56019,0
London Borough of Sutton,05/12/2021,50123741,551.25,Exodus Health Care Services Ltd,SOCIAL SERVICES RESIDENTIAL,Peoples Services,Home Care Services,A56019,0
London Borough of Sutton,06/03/2022,50126000,612.50,Exodus Health Care Services Ltd,SOCIAL SERVICES RESIDENTIAL,Peoples Services,Home Care Services,A56019,0
London Borough of Sutton,06/03/2022,50126013,367.47,Exodus Health Care Services Ltd,SOCIAL SERVICES RESIDENTIAL,Peoples Services,Home Care Services,A56019,0
London Borough of Sutton,06/03/2022,50126013,336.91,Exodus Health Care Services Ltd,SOCIAL SERVICES RESIDENTIAL,Peoples Services,Home Care Services,A56019,0
London Borough of Sutton,06/03/2022,50126024,551.15,Exodus Health Care Services Ltd,SOCIAL SERVICES RESIDENTIAL,Peoples Services,Home Care Services,A56019,0
London Borough of Sutton,06/03/2022,50126024,91.98,Exodus Health Care Services Ltd,SOCIAL SERVICES RESIDENTIAL,Peoples Services,Home Care Services,A56019,0
London Borough of Sutton,06/03/2022,50126026,612.50,Exodus Health Care Services Ltd,SOCIAL SERVICES RESIDENTIAL,Peoples Services,Home Care Services,A56019,0
London Borough of Sutton,06/03/2022,50126026,52.50,Exodus Health Care Services Ltd,SOCIAL SERVICES RESIDENTIAL,Peoples Services,Home Care Services,A56019,0
London Borough of Sutton,06/03/2022,50126029,551.25,Exodus Health Care Services Ltd,SOCIAL SERVICES RESIDENTIAL,Peoples Services,Home Care Services,A56019,0
London Borough of Sutton,06/03/2022,50126031,551.25,Exodus Health Care Services Ltd,SOCIAL SERVICES RESIDENTIAL,Peoples Services,Home Care Services,A56019,0
London Borough of Sutton,06/03/2022,50126031,52.50,Exodus Health Care Services Ltd,SOCIAL SERVICES RESIDENTIAL,Peoples Services,Home Care Services,A56019,0
London Borough of Sutton,06/03/2022,50126032,551.25,Exodus Health Care Services Ltd,SOCIAL SERVICES RESIDENTIAL,Peoples Services,Home Care Services,A56019,0
London Borough of Sutton,20/03/2022,50130672,551.15,Exodus Health Care Services Ltd,SOCIAL SERVICES RESIDENTIAL,Peoples Services,Home Care Services,A56019,0
London Borough of Sutton,20/03/2022,50130672,91.98,Exodus Health Care Services Ltd,SOCIAL SERVICES RESIDENTIAL,Peoples Services,Home Care Services,A56019,0
London Borough of Sutton,20/03/2022,50130684,612.50,Exodus Health Care Services Ltd,SOCIAL SERVICES RESIDENTIAL,Peoples Services,Home Care Services,A56019,0
London Borough of Sutton,20/03/2022,50130684,52.50,Exodus Health Care Services Ltd,SOCIAL SERVICES RESIDENTIAL,Peoples Services,Home Care Services,A56019,0
London Borough of Sutton,20/03/2022,50130685,551.25,Exodus Health Care Services Ltd,SOCIAL SERVICES RESIDENTIAL,Peoples Services,Home Care Services,A56019,0
London Borough of Sutton,20/03/2022,50130685,52.50,Exodus Health Care Services Ltd,SOCIAL SERVICES RESIDENTIAL,Peoples Services,Home Care Services,A56019,0
London Borough of Sutton,20/03/2022,50130688,551.25,Exodus Health Care Services Ltd,SOCIAL SERVICES RESIDENTIAL,Peoples Services,Home Care Services,A56019,0
London Borough of Sutton,20/03/2022,50130689,551.25,Exodus Health Care Services Ltd,SOCIAL SERVICES RESIDENTIAL,Peoples Services,Home Care Services,A56019,0
London Borough of Sutton,20/03/2022,50130695,612.50,Exodus Health Care Services Ltd,SOCIAL SERVICES RESIDENTIAL,Peoples Services,Home Care Services,A56019,0
London Borough of Sutton,20/03/2022,50130705,367.47,Exodus Health Care Services Ltd,SOCIAL SERVICES RESIDENTIAL,Peoples Services,Home Care Services,A56019,0
London Borough of Sutton,20/03/2022,50130705,336.91,Exodus Health Care Services Ltd,SOCIAL SERVICES RESIDENTIAL,Peoples Services,Home Care Services,A56019,0
London Borough of Sutton,25/03/2022,20021633,985.00,F L Beadle & Sons Ltd,CONSTRUCTION INDUSTRY,Environment Housing and Neighbourhoods,Fencing and Gates,A20021,0
London Borough of Sutton,25/03/2022,20021633,"1,000.00",F L Beadle & Sons Ltd,CONSTRUCTION INDUSTRY,Environment Housing and Neighbourhoods,Fencing and Gates,A20021,0
London Borough of Sutton,10/03/2022,20020595,"15,825.87",F M Conway Limited,CONSTRUCTION INDUSTRY,Environment Housing and Neighbourhoods,External Fees and Consultants,C20000,0
London Borough of Sutton,16/03/2022,20021058,"12,000.00",F M Conway Limited,CONSTRUCTION INDUSTRY,Environment Housing and Neighbourhoods,Payments to Contractors,C14000,0
London Borough of Sutton,08/03/2022,50122340,"3,409.92",Fairlands Pre-School,GRANTS & EX GRATIA PAYMENTS,Peoples Services,Place Funding,A56110,0
London Borough of Sutton,08/03/2022,50122426,"11,394.24",Fairlands Pre-School,GRANTS & EX GRATIA PAYMENTS,Peoples Services,Place Funding,A56110,0
London Borough of Sutton,17/02/2022,50124375,"5,160.00",Family First Fostering,CHILDREN'S SERVICES - FOSTERING & ADOPTION SERVICES,Peoples Services,Foster Parents Support,A44110,0
London Borough of Sutton,17/03/2022,50130433,"5,712.85",Family First Fostering,CHILDREN'S SERVICES - FOSTERING & ADOPTION SERVICES,Peoples Services,Foster Parents Support,A44110,0
London Borough of Sutton,18/03/2022,50126987,"3,626.72",Family Star Ltd,SOCIAL SERVICES RESIDENTIAL,Peoples Services,Nursing Care - Ext Provider,A56025,0
London Borough of Sutton,18/03/2022,50126987,-750.40,Family Star Ltd,SOCIAL SERVICES RESIDENTIAL,Peoples Services,Nursing Care - 3rd party top up payment,A56023,0
London Borough of Sutton,18/03/2022,50126988,"3,736.00",Family Star Ltd,SOCIAL SERVICES RESIDENTIAL,Peoples Services,Nursing Care - Ext Provider,A56025,0
London Borough of Sutton,18/03/2022,50126988,-750.40,Family Star Ltd,SOCIAL SERVICES RESIDENTIAL,Peoples Services,Nursing Care - 3rd party top up payment,A56023,0
London Borough of Sutton,18/03/2022,50127025,"16,708.82",Family Star Ltd,SOCIAL SERVICES RESIDENTIAL,Peoples Services,Nursing Care - Ext Provider,A56025,0
London Borough of Sutton,18/03/2022,50127025,"8,160.12",Family Star Ltd,SOCIAL SERVICES RESIDENTIAL,Peoples Services,Nursing Care Short Term,A56026,0
London Borough of Sutton,18/03/2022,50127025,"-5,145.60",Family Star Ltd,SOCIAL SERVICES RESIDENTIAL,Peoples Services,Nursing Care - 3rd party top up payment,A56023,0
London Borough of Sutton,18/03/2022,50127102,"3,538.56",Family Star Ltd,SOCIAL SERVICES RESIDENTIAL,Peoples Services,Nursing Care - Ext Provider,A56025,0
London Borough of Sutton,18/03/2022,50127102,-662.24,Family Star Ltd,SOCIAL SERVICES RESIDENTIAL,Peoples Services,Nursing Care - 3rd party top up payment,A56023,0
London Borough of Sutton,18/03/2022,50127103,-750.40,Family Star Ltd,SOCIAL SERVICES RESIDENTIAL,Peoples Services,Nursing Care - 3rd party top up payment,A56023,0
London Borough of Sutton,18/03/2022,50127103,"3,626.72",Family Star Ltd,SOCIAL SERVICES RESIDENTIAL,Peoples Services,Nursing Care Short Term,A56026,0
London Borough of Sutton,18/03/2022,50127126,-750.40,Family Star Ltd,SOCIAL SERVICES RESIDENTIAL,Peoples Services,Nursing Care - 3rd party top up payment,A56023,0
London Borough of Sutton,18/03/2022,50127126,"10,112.32",Family Star Ltd,SOCIAL SERVICES RESIDENTIAL,Peoples Services,Nursing Care Short Term,A56026,0
London Borough of Sutton,18/03/2022,50127139,"-1,554.40",Family Star Ltd,SOCIAL SERVICES RESIDENTIAL,Peoples Services,Nursing Care - 3rd party top up payment,A56023,0
London Borough of Sutton,18/03/2022,50127139,"8,386.80",Family Star Ltd,SOCIAL SERVICES RESIDENTIAL,Peoples Services,Nursing Care Short Term,A56026,0
London Borough of Sutton,18/03/2022,50127139,-647.94,Family Star Ltd,SOCIAL SERVICES RESIDENTIAL,Peoples Services,Nursing Care - 3rd party top up payment,A56023,0
London Borough of Sutton,01/03/2022,20021211,"8,110.00",Fern Court London Limited,ACCOMMODATION BED & BREAKFAST,Environment Housing and Neighbourhoods,Bed & Breakfast,A56000,0
London Borough of Sutton,08/03/2022,50122455,"1,426.26",REDACTED - PERSONAL DATA,GRANTS & EX GRATIA PAYMENTS,Peoples Services,Place Funding,A56110,0
London Borough of Sutton,18/03/2022,50126716,"3,520.52",Fircroft Homes,SOCIAL SERVICES RESIDENTIAL,Peoples Services,Residential Care - Ext Provider,A56114,0
London Borough of Sutton,18/03/2022,50126716,-744.80,Fircroft Homes,SOCIAL SERVICES RESIDENTIAL,Peoples Services,Residential Care - Client Cont ( Net Paymt ),A56113,0
London Borough of Sutton,08/03/2022,50122341,"2,514.82",First Little Steps Day Nursery,GRANTS & EX GRATIA PAYMENTS,Peoples Services,Place Funding,A56110,0
London Borough of Sutton,08/03/2022,50122427,"9,141.66",First Little Steps Day Nursery,GRANTS & EX GRATIA PAYMENTS,Peoples Services,Place Funding,A56110,0
London Borough of Sutton,10/03/2022,50125732,"2,000.00",First Little Steps Day Nursery,GRANTS & EX GRATIA PAYMENTS,Peoples Services,Top-up Funding,A51016,0
London Borough of Sutton,28/03/2022,50128011,"3,971.92",Fit for Sport Ltd,CHILDREN'S SERVICE - OTHER,Peoples Services,Other Supplies & Services,A44291,0
London Borough of Sutton,01/02/2022,50120334,"1,105.80",Fitzroy,SOCIAL SERVICES RESIDENTIAL,Peoples Services,Day Care Services,A56021,0
London Borough of Sutton,18/03/2022,50126727,"8,202.99",Fitzroy,SOCIAL SERVICES RESIDENTIAL,Peoples Services,Residential Care - Ext Provider,A56114,0
London Borough of Sutton,18/03/2022,50126727,"5,438.57",Fitzroy,SOCIAL SERVICES RESIDENTIAL,Peoples Services,Residential Care - Client Cont ( Net Paymt ),A56113,0
London Borough of Sutton,18/03/2022,50126727,"-5,864.17",Fitzroy,SOCIAL SERVICES RESIDENTIAL,Peoples Services,Residential Care - Client Cont ( Net Paymt ),A56113,0
London Borough of Sutton,01/02/2022,50124393,"3,240.00",Five Rivers Child Care Ltd,CHILDREN'S SERVICES - FOSTERING & ADOPTION SERVICES,Peoples Services,Foster Parents Support,A44110,0
London Borough of Sutton,02/03/2022,50130382,"3,587.14",Five Rivers Child Care Ltd,CHILDREN'S SERVICES - FOSTERING & ADOPTION SERVICES,Peoples Services,Foster Parents Support,A44110,0
London Borough of Sutton,04/03/2022,50122795,"2,844.00",Fleet Tutors,TEMP STAFF & CONSULTANCY,Peoples Services,Independent School Fees,A56002,0
London Borough of Sutton,04/03/2022,50122796,"2,730.00",Fleet Tutors,TEMP STAFF & CONSULTANCY,Peoples Services,Independent School Fees,A56002,0
London Borough of Sutton,18/03/2022,50127072,"7,200.00",Florence Avenue Care Home Ltd,SOCIAL SERVICES RESIDENTIAL,Peoples Services,Residential Care - Ext Provider,A56114,0
London Borough of Sutton,24/02/2022,20019569,628.11,Flowrite Services Ltd,CATERING SERVICES,Health and Wellbeing,Equipment And Materials Repairs & Maintenance,A40051,0
London Borough of Sutton,07/03/2022,50124458,"3,739.96",Flying Colours Foster Care Ltd,CHILDREN'S SERVICES - FOSTERING & ADOPTION SERVICES,Peoples Services,Foster Parents Support,A44110,0
London Borough of Sutton,08/03/2022,50122286,615.00,Mill House Day Nursery,GRANTS & EX GRATIA PAYMENTS,Peoples Services,Disability Access Fund,A56093,0
London Borough of Sutton,08/03/2022,50122459,"9,682.40",Mill House Day Nursery,GRANTS & EX GRATIA PAYMENTS,Peoples Services,Place Funding,A56110,0
London Borough of Sutton,22/02/2022,50120808,"2,000.00",Foresters Primary,GRANTS & EX GRATIA PAYMENTS,Peoples Services,Top Up Additional Support,A60015,0
London Borough of Sutton,08/03/2022,50121511,"106,273.73",Foresters Primary,GRANTS & EX GRATIA PAYMENTS,Peoples Services,Payments to Schools,A51013,0
London Borough of Sutton,08/03/2022,50121530,"21,000.00",Foresters Primary,GRANTS & EX GRATIA PAYMENTS,Peoples Services,Place Funding,A56110,0
London Borough of Sutton,08/03/2022,50121619,"35,978.75",Foresters Primary,GRANTS & EX GRATIA PAYMENTS,Peoples Services,Payments to Schools,A51013,0
London Borough of Sutton,08/03/2022,50121620,"3,517.50",Foresters Primary,GRANTS & EX GRATIA PAYMENTS,Peoples Services,Payments to Schools,A51013,0
London Borough of Sutton,08/03/2022,50121700,"3,481.92",Foresters Primary,GRANTS & EX GRATIA PAYMENTS,Peoples Services,Payments to Schools,A51013,0
London Borough of Sutton,08/03/2022,50121736,"2,850.00",Foresters Primary,GRANTS & EX GRATIA PAYMENTS,Resources,"Grants, Contributions & Donations",A47005,0
London Borough of Sutton,08/03/2022,50121793,"1,410.00",Foresters Primary,GRANTS & EX GRATIA PAYMENTS,Resources,"Grants, Contributions & Donations",A47005,0
London Borough of Sutton,14/03/2022,50125738,"7,032.00",Foresters Primary,GRANTS & EX GRATIA PAYMENTS,Peoples Services,Top-up individual funding,A60033,0
